Organisation Name,Organisation Code,,Unique Ref No,Effective Date,Directorate  where expenditure incurred,Supplier name ,Payment Date,Net Amount,Procurement Classification (Higher Level),Purpose of Spend,Procurement Classification (Lower Level),,Capital/Revenue,
Walsall Council,http://opendatacommunities.org/id/metropolitan-district-council/walsall,WC67-,WC67-1,30/04/2016,Social Care & Inclusion,1ST CARE LIMITED T/A STUBBY LEAS NURSING HOME,19/04/2016,"2,305.71",73373-RESIDENTIAL & NURSING CARE PLACEMENTS,MH COMMISSIONING,Third Party Payments,,Revenue, 
Walsall Council,http://opendatacommunities.org/id/metropolitan-district-council/walsall,WC67-,WC67-2,30/04/2016,Social Care & Inclusion,1ST CARE LIMITED T/A STUBBY LEAS NURSING HOME,05/04/2016,"2,382.57",73373-RESIDENTIAL & NURSING CARE PLACEMENTS,MH COMMISSIONING,Third Party Payments,,Revenue, 
Walsall Council,http://opendatacommunities.org/id/metropolitan-district-council/walsall,WC67-,WC67-3,30/04/2016,Social Care & Inclusion,5 CARE SERVICES LTD,11/04/2016,269.72,73372-DOMICILIARY CARE,OP COMMISSIONING,Third Party Payments,,Revenue, 
Walsall Council,http://opendatacommunities.org/id/metropolitan-district-council/walsall,WC67-,WC67-4,30/04/2016,Social Care & Inclusion,5 CARE SERVICES LTD,13/04/2016,310.20,73372-DOMICILIARY CARE,OP COMMISSIONING,Third Party Payments,,Revenue, 
Walsall Council,http://opendatacommunities.org/id/metropolitan-district-council/walsall,WC67-,WC67-5,30/04/2016,Social Care & Inclusion,5 CARE SERVICES LTD,25/04/2016,"31,249.00",73372-DOMICILIARY CARE,OP COMMISSIONING,Third Party Payments,,Revenue, 
Walsall Council,http://opendatacommunities.org/id/metropolitan-district-council/walsall,WC67-,WC67-6,30/04/2016,Social Care & Inclusion,A F BLAKEMORE & SON LTD,06/04/2016,324.27,61016-FOOD AND BEVERAGES-PROVISIONS,FALLINGS HEATH,Supplies & Services,,Revenue, 
Walsall Council,http://opendatacommunities.org/id/metropolitan-district-council/walsall,WC67-,WC67-7,30/04/2016,Social Care & Inclusion,A F BLAKEMORE & SON LTD,04/04/2016,365.17,61016-FOOD AND BEVERAGES-PROVISIONS,REABLEMENT TEAM - HOLLY BANK,Supplies & Services,,Revenue, 
Walsall Council,http://opendatacommunities.org/id/metropolitan-district-council/walsall,WC67-,WC67-8,30/04/2016,Social Care & Inclusion,A F BLAKEMORE & SON LTD,14/04/2016,646.54,61016-FOOD AND BEVERAGES-PROVISIONS,REABLEMENT TEAM - HOLLY BANK,Supplies & Services,,Revenue, 
Walsall Council,http://opendatacommunities.org/id/metropolitan-district-council/walsall,WC67-,WC67-9,30/04/2016,Social Care & Inclusion,A F BLAKEMORE & SON LTD,05/04/2016,716.51,61016-FOOD AND BEVERAGES-PROVISIONS,REABLEMENT TEAM - HOLLY BANK,Supplies & Services,,Revenue, 
Walsall Council,http://opendatacommunities.org/id/metropolitan-district-council/walsall,WC67-,WC67-10,30/04/2016,Social Care & Inclusion,A F BLAKEMORE & SON LTD,14/04/2016,929.68,60500-GENERAL MATERIALS,GOSCOTE,Supplies & Services,,Revenue, 
Walsall Council,http://opendatacommunities.org/id/metropolitan-district-council/walsall,WC67-,WC67-11,30/04/2016,Social Care & Inclusion,ABBEY COURT NURSING & RESIDEN,19/04/2016,"1,600.71",73373-RESIDENTIAL & NURSING CARE PLACEMENTS,OP COMMISSIONING,Third Party Payments,,Revenue, 
Walsall Council,http://opendatacommunities.org/id/metropolitan-district-council/walsall,WC67-,WC67-12,30/04/2016,Social Care & Inclusion,ABBEY COURT NURSING & RESIDEN,19/04/2016,"1,600.72",73373-RESIDENTIAL & NURSING CARE PLACEMENTS,OP COMMISSIONING,Third Party Payments,,Revenue, 
Walsall Council,http://opendatacommunities.org/id/metropolitan-district-council/walsall,WC67-,WC67-13,30/04/2016,Social Care & Inclusion,ABBEY COURT NURSING & RESIDEN,19/04/2016,"2,014.29",73373-RESIDENTIAL & NURSING CARE PLACEMENTS,MH COMMISSIONING,Third Party Payments,,Revenue, 
Walsall Council,http://opendatacommunities.org/id/metropolitan-district-council/walsall,WC67-,WC67-14,30/04/2016,Social Care & Inclusion,ABBEY HEALTHCARE HOMES LTD,19/04/2016,606.76,73373-RESIDENTIAL & NURSING CARE PLACEMENTS,YADS COMMISSIONING,Third Party Payments,,Revenue, 
Walsall Council,http://opendatacommunities.org/id/metropolitan-district-council/walsall,WC67-,WC67-15,30/04/2016,Social Care & Inclusion,ABBEY HEALTHCARE HOMES LTD,19/04/2016,819.31,73373-RESIDENTIAL & NURSING CARE PLACEMENTS,YADS COMMISSIONING,Third Party Payments,,Revenue, 
Walsall Council,http://opendatacommunities.org/id/metropolitan-district-council/walsall,WC67-,WC67-16,30/04/2016,Social Care & Inclusion,ABBEY HEALTHCARE HOMES LTD,19/04/2016,"1,092.40",73373-RESIDENTIAL & NURSING CARE PLACEMENTS,YADS COMMISSIONING,Third Party Payments,,Revenue, 
Walsall Council,http://opendatacommunities.org/id/metropolitan-district-council/walsall,WC67-,WC67-17,30/04/2016,Social Care & Inclusion,ABBEY HEALTHCARE HOMES LTD,19/04/2016,"1,474.77",73373-RESIDENTIAL & NURSING CARE PLACEMENTS,YADS COMMISSIONING,Third Party Payments,,Revenue, 
Walsall Council,http://opendatacommunities.org/id/metropolitan-district-council/walsall,WC67-,WC67-18,30/04/2016,Social Care & Inclusion,REDACTED,11/04/2016,"2,358.00",76422-DIRECT PAYMENTS TO SOCIAL SERVICES CLIENTS,LD COMMISSIONING,Transfer Payments,,Revenue,Y
Walsall Council,http://opendatacommunities.org/id/metropolitan-district-council/walsall,WC67-,WC67-19,30/04/2016,Social Care & Inclusion,ACCORD HOUSING ASSOCIATION LTD#135,15/04/2016,361.25,73374-SUPPORTED & OTHER ACCOMMODATION,OP COMMISSIONING,Third Party Payments,,Revenue, 
Walsall Council,http://opendatacommunities.org/id/metropolitan-district-council/walsall,WC67-,WC67-20,30/04/2016,Social Care & Inclusion,ACCORD HOUSING ASSOCIATION LTD#135,25/04/2016,391.63,73372-DOMICILIARY CARE,OP COMMISSIONING,Third Party Payments,,Revenue, 
Walsall Council,http://opendatacommunities.org/id/metropolitan-district-council/walsall,WC67-,WC67-21,30/04/2016,Social Care & Inclusion,ACCORD HOUSING ASSOCIATION LTD#135,15/04/2016,396.59,73374-SUPPORTED & OTHER ACCOMMODATION,OP COMMISSIONING,Third Party Payments,,Revenue, 
Walsall Council,http://opendatacommunities.org/id/metropolitan-district-council/walsall,WC67-,WC67-22,30/04/2016,Social Care & Inclusion,ACCORD HOUSING ASSOCIATION LTD#135,15/04/2016,440.77,73374-SUPPORTED & OTHER ACCOMMODATION,OP COMMISSIONING,Third Party Payments,,Revenue, 
Walsall Council,http://opendatacommunities.org/id/metropolitan-district-council/walsall,WC67-,WC67-23,30/04/2016,Social Care & Inclusion,ACCORD HOUSING ASSOCIATION LTD#135,15/04/2016,459.42,73374-SUPPORTED & OTHER ACCOMMODATION,OP COMMISSIONING,Third Party Payments,,Revenue, 
Walsall Council,http://opendatacommunities.org/id/metropolitan-district-council/walsall,WC67-,WC67-24,30/04/2016,Social Care & Inclusion,ACCORD HOUSING ASSOCIATION LTD#135,15/04/2016,464.33,73374-SUPPORTED & OTHER ACCOMMODATION,OP COMMISSIONING,Third Party Payments,,Revenue, 
Walsall Council,http://opendatacommunities.org/id/metropolitan-district-council/walsall,WC67-,WC67-25,30/04/2016,Social Care & Inclusion,ACCORD HOUSING ASSOCIATION LTD#135,14/04/2016,541.88,73374-SUPPORTED & OTHER ACCOMMODATION,OP COMMISSIONING,Third Party Payments,,Revenue, 
Walsall Council,http://opendatacommunities.org/id/metropolitan-district-council/walsall,WC67-,WC67-26,30/04/2016,Social Care & Inclusion,ACCORD HOUSING ASSOCIATION LTD#135,25/04/2016,685.36,73372-DOMICILIARY CARE,OP COMMISSIONING,Third Party Payments,,Revenue, 
Walsall Council,http://opendatacommunities.org/id/metropolitan-district-council/walsall,WC67-,WC67-27,30/04/2016,Social Care & Inclusion,ACCORD HOUSING ASSOCIATION LTD#135,25/04/2016,685.36,73372-DOMICILIARY CARE,OP COMMISSIONING,Third Party Payments,,Revenue, 
Walsall Council,http://opendatacommunities.org/id/metropolitan-district-council/walsall,WC67-,WC67-28,30/04/2016,Social Care & Inclusion,ACCORD HOUSING ASSOCIATION LTD#135,13/04/2016,"4,744.90",73373-RESIDENTIAL & NURSING CARE PLACEMENTS,LD COMMISSIONING,Third Party Payments,,Revenue, 
Walsall Council,http://opendatacommunities.org/id/metropolitan-district-council/walsall,WC67-,WC67-29,30/04/2016,Social Care & Inclusion,ACCORD HOUSING ASSOCIATION LTD#135,13/04/2016,"4,744.90",73373-RESIDENTIAL & NURSING CARE PLACEMENTS,LD COMMISSIONING,Third Party Payments,,Revenue, 
Walsall Council,http://opendatacommunities.org/id/metropolitan-district-council/walsall,WC67-,WC67-30,30/04/2016,Social Care & Inclusion,ACCORD HOUSING ASSOCIATION LTD#135,13/04/2016,"4,744.90",73373-RESIDENTIAL & NURSING CARE PLACEMENTS,LD COMMISSIONING,Third Party Payments,,Revenue, 
Walsall Council,http://opendatacommunities.org/id/metropolitan-district-council/walsall,WC67-,WC67-31,30/04/2016,Social Care & Inclusion,ACCORD HOUSING ASSOCIATION LTD#135,13/04/2016,"4,744.90",73373-RESIDENTIAL & NURSING CARE PLACEMENTS,LD COMMISSIONING,Third Party Payments,,Revenue, 
Walsall Council,http://opendatacommunities.org/id/metropolitan-district-council/walsall,WC67-,WC67-32,30/04/2016,Social Care & Inclusion,ACCORD HOUSING ASSOCIATION LTD#135,13/04/2016,"6,622.35",73373-RESIDENTIAL & NURSING CARE PLACEMENTS,LD COMMISSIONING,Third Party Payments,,Revenue, 
Walsall Council,http://opendatacommunities.org/id/metropolitan-district-council/walsall,WC67-,WC67-33,30/04/2016,Social Care & Inclusion,ACCORD HOUSING ASSOCIATION LTD#135,13/04/2016,"6,622.35",73373-RESIDENTIAL & NURSING CARE PLACEMENTS,LD COMMISSIONING,Third Party Payments,,Revenue, 
Walsall Council,http://opendatacommunities.org/id/metropolitan-district-council/walsall,WC67-,WC67-34,30/04/2016,Social Care & Inclusion,ACCORD HOUSING ASSOCIATION LTD#135,13/04/2016,"6,622.35",73373-RESIDENTIAL & NURSING CARE PLACEMENTS,LD COMMISSIONING,Third Party Payments,,Revenue, 
Walsall Council,http://opendatacommunities.org/id/metropolitan-district-council/walsall,WC67-,WC67-35,30/04/2016,Social Care & Inclusion,ACCORD HOUSING ASSOCIATION LTD#135,25/04/2016,"9,607.00",73372-DOMICILIARY CARE,OP COMMISSIONING,Third Party Payments,,Revenue, 
Walsall Council,http://opendatacommunities.org/id/metropolitan-district-council/walsall,WC67-,WC67-36,30/04/2016,Social Care & Inclusion,ACCORD HOUSING ASSOCIATION LTD#135,25/04/2016,"23,956.80",73372-DOMICILIARY CARE,OP COMMISSIONING,Third Party Payments,,Revenue, 
Walsall Council,http://opendatacommunities.org/id/metropolitan-district-council/walsall,WC67-,WC67-37,30/04/2016,Social Care & Inclusion,ACE CARE AGENCY,08/04/2016,607.05,73372-DOMICILIARY CARE,MH COMMISSIONING,Third Party Payments,,Revenue, 
Walsall Council,http://opendatacommunities.org/id/metropolitan-district-council/walsall,WC67-,WC67-38,30/04/2016,Social Care & Inclusion,ACE CARE AGENCY,08/04/2016,"1,019.76",73372-DOMICILIARY CARE,OP COMMISSIONING,Third Party Payments,,Revenue, 
Walsall Council,http://opendatacommunities.org/id/metropolitan-district-council/walsall,WC67-,WC67-39,30/04/2016,Social Care & Inclusion,ACEPAY LTD (COTTAGE NUR HOME),05/04/2016,705.57,73373-RESIDENTIAL & NURSING CARE PLACEMENTS,OP COMMISSIONING,Third Party Payments,,Revenue, 
Walsall Council,http://opendatacommunities.org/id/metropolitan-district-council/walsall,WC67-,WC67-40,30/04/2016,Social Care & Inclusion,ACEPAY LTD (COTTAGE NUR HOME),05/04/2016,705.57,73373-RESIDENTIAL & NURSING CARE PLACEMENTS,OP COMMISSIONING,Third Party Payments,,Revenue, 
Walsall Council,http://opendatacommunities.org/id/metropolitan-district-council/walsall,WC67-,WC67-41,30/04/2016,Social Care & Inclusion,ACEPAY LTD (COTTAGE NUR HOME),05/04/2016,705.57,73373-RESIDENTIAL & NURSING CARE PLACEMENTS,OP COMMISSIONING,Third Party Payments,,Revenue, 
Walsall Council,http://opendatacommunities.org/id/metropolitan-district-council/walsall,WC67-,WC67-42,30/04/2016,Social Care & Inclusion,ACEPAY LTD (COTTAGE NUR HOME),05/04/2016,720.78,73373-RESIDENTIAL & NURSING CARE PLACEMENTS,OP COMMISSIONING,Third Party Payments,,Revenue, 
Walsall Council,http://opendatacommunities.org/id/metropolitan-district-council/walsall,WC67-,WC67-43,30/04/2016,Social Care & Inclusion,ACEPAY LTD (COTTAGE NUR HOME),05/04/2016,720.79,73373-RESIDENTIAL & NURSING CARE PLACEMENTS,OP COMMISSIONING,Third Party Payments,,Revenue, 
Walsall Council,http://opendatacommunities.org/id/metropolitan-district-council/walsall,WC67-,WC67-44,30/04/2016,Social Care & Inclusion,ACEPAY LTD (COTTAGE NUR HOME),05/04/2016,720.79,73373-RESIDENTIAL & NURSING CARE PLACEMENTS,OP COMMISSIONING,Third Party Payments,,Revenue, 
Walsall Council,http://opendatacommunities.org/id/metropolitan-district-council/walsall,WC67-,WC67-45,30/04/2016,Social Care & Inclusion,ACEPAY LTD (COTTAGE NUR HOME),05/04/2016,"1,270.03",73373-RESIDENTIAL & NURSING CARE PLACEMENTS,OP COMMISSIONING,Third Party Payments,,Revenue, 
Walsall Council,http://opendatacommunities.org/id/metropolitan-district-council/walsall,WC67-,WC67-46,30/04/2016,Social Care & Inclusion,ACEPAY LTD (COTTAGE NUR HOME),05/04/2016,"1,270.03",73373-RESIDENTIAL & NURSING CARE PLACEMENTS,OP COMMISSIONING,Third Party Payments,,Revenue, 
Walsall Council,http://opendatacommunities.org/id/metropolitan-district-council/walsall,WC67-,WC67-47,30/04/2016,Social Care & Inclusion,ACEPAY LTD (COTTAGE NUR HOME),05/04/2016,"1,270.03",73373-RESIDENTIAL & NURSING CARE PLACEMENTS,OP COMMISSIONING,Third Party Payments,,Revenue, 
Walsall Council,http://opendatacommunities.org/id/metropolitan-district-council/walsall,WC67-,WC67-48,30/04/2016,Social Care & Inclusion,ACEPAY LTD (COTTAGE NUR HOME),05/04/2016,"1,297.41",73373-RESIDENTIAL & NURSING CARE PLACEMENTS,OP COMMISSIONING,Third Party Payments,,Revenue, 
Walsall Council,http://opendatacommunities.org/id/metropolitan-district-council/walsall,WC67-,WC67-49,30/04/2016,Social Care & Inclusion,ACEPAY LTD (COTTAGE NUR HOME),05/04/2016,"1,297.41",73373-RESIDENTIAL & NURSING CARE PLACEMENTS,OP COMMISSIONING,Third Party Payments,,Revenue, 
Walsall Council,http://opendatacommunities.org/id/metropolitan-district-council/walsall,WC67-,WC67-50,30/04/2016,Social Care & Inclusion,ACEPAY LTD (COTTAGE NUR HOME),05/04/2016,"1,297.42",73373-RESIDENTIAL & NURSING CARE PLACEMENTS,OP COMMISSIONING,Third Party Payments,,Revenue, 
Walsall Council,http://opendatacommunities.org/id/metropolitan-district-council/walsall,WC67-,WC67-51,30/04/2016,Social Care & Inclusion,ACORN REST HOME,19/04/2016,"1,386.58",73373-RESIDENTIAL & NURSING CARE PLACEMENTS,OP COMMISSIONING,Third Party Payments,,Revenue, 
Walsall Council,http://opendatacommunities.org/id/metropolitan-district-council/walsall,WC67-,WC67-52,30/04/2016,Social Care & Inclusion,ACORN REST HOME,19/04/2016,"1,439.91",73373-RESIDENTIAL & NURSING CARE PLACEMENTS,OP COMMISSIONING,Third Party Payments,,Revenue, 
Walsall Council,http://opendatacommunities.org/id/metropolitan-district-council/walsall,WC67-,WC67-53,30/04/2016,Social Care & Inclusion,REDACTED,11/04/2016,417.48,76422-DIRECT PAYMENTS TO SOCIAL SERVICES CLIENTS,LD COMMISSIONING,Transfer Payments,,Revenue,Y
Walsall Council,http://opendatacommunities.org/id/metropolitan-district-council/walsall,WC67-,WC67-54,30/04/2016,Social Care & Inclusion,REDACTED,11/04/2016,860.00,76422-DIRECT PAYMENTS TO SOCIAL SERVICES CLIENTS,OP COMMISSIONING,Transfer Payments,,Revenue,Y
Walsall Council,http://opendatacommunities.org/id/metropolitan-district-council/walsall,WC67-,WC67-55,30/04/2016,Social Care & Inclusion,ADVANCE HEALTH CARE (UK) LTD,12/04/2016,"1,693.18",73025-PROFESSIONAL SERVICES-PRIV CONTRACTOR & OTHER AGENCIES,COMMUNITY INTERMEDIATE CARE,Third Party Payments,,Revenue, 
Walsall Council,http://opendatacommunities.org/id/metropolitan-district-council/walsall,WC67-,WC67-56,30/04/2016,Social Care & Inclusion,ADVANCE HEALTH CARE (UK) LTD,04/04/2016,"1,709.50",73025-PROFESSIONAL SERVICES-PRIV CONTRACTOR & OTHER AGENCIES,COMMUNITY INTERMEDIATE CARE,Third Party Payments,,Revenue, 
Walsall Council,http://opendatacommunities.org/id/metropolitan-district-council/walsall,WC67-,WC67-57,30/04/2016,Social Care & Inclusion,ADVANCE HEALTH CARE (UK) LTD,01/04/2016,"1,781.00",73025-PROFESSIONAL SERVICES-PRIV CONTRACTOR & OTHER AGENCIES,COMMUNITY INTERMEDIATE CARE,Third Party Payments,,Revenue, 
Walsall Council,http://opendatacommunities.org/id/metropolitan-district-council/walsall,WC67-,WC67-58,30/04/2016,Social Care & Inclusion,ADVANCE HEALTH CARE (UK) LTD,12/04/2016,"1,846.00",73025-PROFESSIONAL SERVICES-PRIV CONTRACTOR & OTHER AGENCIES,COMMUNITY INTERMEDIATE CARE,Third Party Payments,,Revenue, 
Walsall Council,http://opendatacommunities.org/id/metropolitan-district-council/walsall,WC67-,WC67-59,30/04/2016,Social Care & Inclusion,ADVANCE HEALTH CARE (UK) LTD,12/04/2016,"1,883.13",73025-PROFESSIONAL SERVICES-PRIV CONTRACTOR & OTHER AGENCIES,COMMUNITY INTERMEDIATE CARE,Third Party Payments,,Revenue, 
Walsall Council,http://opendatacommunities.org/id/metropolitan-district-council/walsall,WC67-,WC67-60,30/04/2016,Social Care & Inclusion,ADVANCE HEALTH CARE (UK) LTD,04/04/2016,"1,943.50",73025-PROFESSIONAL SERVICES-PRIV CONTRACTOR & OTHER AGENCIES,COMMUNITY INTERMEDIATE CARE,Third Party Payments,,Revenue, 
Walsall Council,http://opendatacommunities.org/id/metropolitan-district-council/walsall,WC67-,WC67-61,30/04/2016,Social Care & Inclusion,ADVANCE HEALTH CARE (UK) LTD,04/04/2016,"2,138.61",73025-PROFESSIONAL SERVICES-PRIV CONTRACTOR & OTHER AGENCIES,COMMUNITY INTERMEDIATE CARE,Third Party Payments,,Revenue, 
Walsall Council,http://opendatacommunities.org/id/metropolitan-district-council/walsall,WC67-,WC67-62,30/04/2016,Social Care & Inclusion,ADVANCE HEALTH CARE (UK) LTD,04/04/2016,"3,930.00",73025-PROFESSIONAL SERVICES-PRIV CONTRACTOR & OTHER AGENCIES,COMMUNITY INTERMEDIATE CARE,Third Party Payments,,Revenue, 
Walsall Council,http://opendatacommunities.org/id/metropolitan-district-council/walsall,WC67-,WC67-63,30/04/2016,Social Care & Inclusion,ADVANCE HEALTH CARE (UK) LTD,12/04/2016,"3,930.00",73025-PROFESSIONAL SERVICES-PRIV CONTRACTOR & OTHER AGENCIES,COMMUNITY INTERMEDIATE CARE,Third Party Payments,,Revenue, 
Walsall Council,http://opendatacommunities.org/id/metropolitan-district-council/walsall,WC67-,WC67-64,30/04/2016,Social Care & Inclusion,ADVANCE HEALTH CARE (UK) LTD,26/04/2016,"3,930.00",73025-PROFESSIONAL SERVICES-PRIV CONTRACTOR & OTHER AGENCIES,COMMUNITY INTERMEDIATE CARE,Third Party Payments,,Revenue, 
Walsall Council,http://opendatacommunities.org/id/metropolitan-district-council/walsall,WC67-,WC67-65,30/04/2016,Social Care & Inclusion,ADVANCE HEALTH CARE (UK) LTD,26/04/2016,"3,930.00",73025-PROFESSIONAL SERVICES-PRIV CONTRACTOR & OTHER AGENCIES,COMMUNITY INTERMEDIATE CARE,Third Party Payments,,Revenue, 
Walsall Council,http://opendatacommunities.org/id/metropolitan-district-council/walsall,WC67-,WC67-66,30/04/2016,Social Care & Inclusion,ADVANCE HEALTH CARE (UK) LTD,25/04/2016,"27,320.75",73372-DOMICILIARY CARE,OP COMMISSIONING,Third Party Payments,,Revenue, 
Walsall Council,http://opendatacommunities.org/id/metropolitan-district-council/walsall,WC67-,WC67-67,30/04/2016,Social Care & Inclusion,ADVOCACY MATTERS LIMITED,19/04/2016,"22,560.75",70000-SOCIAL SERVICES-FEES TO VOLUNTARY BODIES,OP SLA,Third Party Payments,,Revenue, 
Walsall Council,http://opendatacommunities.org/id/metropolitan-district-council/walsall,WC67-,WC67-68,30/04/2016,Social Care & Inclusion,AGE UK WALSALL,06/04/2016,"7,220.00",76423-DIRECT PAYMENTS SUPPORT,INDIVIDUAL BUDGET - SUPPORT,Transfer Payments,,Revenue, 
Walsall Council,http://opendatacommunities.org/id/metropolitan-district-council/walsall,WC67-,WC67-69,30/04/2016,Social Care & Inclusion,REDACTED,11/04/2016,"1,882.00",76422-DIRECT PAYMENTS TO SOCIAL SERVICES CLIENTS,LD COMMISSIONING,Transfer Payments,,Revenue,Y
Walsall Council,http://opendatacommunities.org/id/metropolitan-district-council/walsall,WC67-,WC67-70,30/04/2016,Social Care & Inclusion,REDACTED,11/04/2016,914.20,76422-DIRECT PAYMENTS TO SOCIAL SERVICES CLIENTS,OP COMMISSIONING,Transfer Payments,,Revenue,Y
Walsall Council,http://opendatacommunities.org/id/metropolitan-district-council/walsall,WC67-,WC67-71,30/04/2016,Social Care & Inclusion,ALDERGROVE MANOR CARE HOME,13/04/2016,591.33,73373-RESIDENTIAL & NURSING CARE PLACEMENTS,MH COMMISSIONING,Third Party Payments,,Revenue, 
Walsall Council,http://opendatacommunities.org/id/metropolitan-district-council/walsall,WC67-,WC67-72,30/04/2016,Social Care & Inclusion,ALDERGROVE MANOR CARE HOME,13/04/2016,"1,248.35",73373-RESIDENTIAL & NURSING CARE PLACEMENTS,MH COMMISSIONING,Third Party Payments,,Revenue, 
Walsall Council,http://opendatacommunities.org/id/metropolitan-district-council/walsall,WC67-,WC67-73,30/04/2016,Social Care & Inclusion,REDACTED,11/04/2016,"1,204.00",76422-DIRECT PAYMENTS TO SOCIAL SERVICES CLIENTS,YADS COMMISSIONING,Transfer Payments,,Revenue,Y
Walsall Council,http://opendatacommunities.org/id/metropolitan-district-council/walsall,WC67-,WC67-74,30/04/2016,Social Care & Inclusion,ALEXANDRA HOUSE CARE SERVICES LTD T/A STONEBRIDGE NURSING HOME,13/04/2016,"7,117.44",73373-RESIDENTIAL & NURSING CARE PLACEMENTS,OP COMMISSIONING,Third Party Payments,,Revenue, 
Walsall Council,http://opendatacommunities.org/id/metropolitan-district-council/walsall,WC67-,WC67-75,30/04/2016,Social Care & Inclusion,REDACTED,11/04/2016,854.00,76422-DIRECT PAYMENTS TO SOCIAL SERVICES CLIENTS,YADS COMMISSIONING,Transfer Payments,,Revenue,Y
Walsall Council,http://opendatacommunities.org/id/metropolitan-district-council/walsall,WC67-,WC67-76,30/04/2016,Social Care & Inclusion,REDACTED,11/04/2016,578.00,76422-DIRECT PAYMENTS TO SOCIAL SERVICES CLIENTS,OP COMMISSIONING,Transfer Payments,,Revenue,Y
Walsall Council,http://opendatacommunities.org/id/metropolitan-district-council/walsall,WC67-,WC67-77,30/04/2016,Social Care & Inclusion,ALMA COURT,13/04/2016,"6,113.10",73373-RESIDENTIAL & NURSING CARE PLACEMENTS,MH COMMISSIONING,Third Party Payments,,Revenue, 
Walsall Council,http://opendatacommunities.org/id/metropolitan-district-council/walsall,WC67-,WC67-78,30/04/2016,Social Care & Inclusion,ALMA COURT,13/04/2016,"6,113.10",73373-RESIDENTIAL & NURSING CARE PLACEMENTS,OP COMMISSIONING,Third Party Payments,,Revenue, 
Walsall Council,http://opendatacommunities.org/id/metropolitan-district-council/walsall,WC67-,WC67-79,30/04/2016,Social Care & Inclusion,ALPHA HEALTH CARE LTD,19/04/2016,"13,475.62",73373-RESIDENTIAL & NURSING CARE PLACEMENTS,OP COMMISSIONING,Third Party Payments,,Revenue, 
Walsall Council,http://opendatacommunities.org/id/metropolitan-district-council/walsall,WC67-,WC67-80,30/04/2016,Social Care & Inclusion,ALTODIGITAL NETWORKS LTD,14/04/2016,513.43,60009-LEASING/HIRE/RENTAL-EQUIPMENT,REABLEMENT TEAM - HOLLY BANK,Supplies & Services,,Revenue, 
Walsall Council,http://opendatacommunities.org/id/metropolitan-district-council/walsall,WC67-,WC67-81,30/04/2016,Social Care & Inclusion,REDACTED,11/04/2016,"1,133.44",76422-DIRECT PAYMENTS TO SOCIAL SERVICES CLIENTS,OP COMMISSIONING,Transfer Payments,,Revenue,Y
Walsall Council,http://opendatacommunities.org/id/metropolitan-district-council/walsall,WC67-,WC67-82,30/04/2016,Social Care & Inclusion,REDACTED,11/04/2016,544.00,76422-DIRECT PAYMENTS TO SOCIAL SERVICES CLIENTS,OP COMMISSIONING,Transfer Payments,,Revenue,Y
Walsall Council,http://opendatacommunities.org/id/metropolitan-district-council/walsall,WC67-,WC67-83,30/04/2016,Social Care & Inclusion,REDACTED,11/04/2016,714.00,76422-DIRECT PAYMENTS TO SOCIAL SERVICES CLIENTS,OP COMMISSIONING,Transfer Payments,,Revenue,Y
Walsall Council,http://opendatacommunities.org/id/metropolitan-district-council/walsall,WC67-,WC67-84,30/04/2016,Social Care & Inclusion,ANCHOR,13/04/2016,840.34,73373-RESIDENTIAL & NURSING CARE PLACEMENTS,OP COMMISSIONING,Third Party Payments,,Revenue, 
Walsall Council,http://opendatacommunities.org/id/metropolitan-district-council/walsall,WC67-,WC67-85,30/04/2016,Social Care & Inclusion,ANCHOR,13/04/2016,"1,288.53",73373-RESIDENTIAL & NURSING CARE PLACEMENTS,OP COMMISSIONING,Third Party Payments,,Revenue, 
Walsall Council,http://opendatacommunities.org/id/metropolitan-district-council/walsall,WC67-,WC67-86,30/04/2016,Social Care & Inclusion,ANCHOR,13/04/2016,"1,333.25",73373-RESIDENTIAL & NURSING CARE PLACEMENTS,OP COMMISSIONING,Third Party Payments,,Revenue, 
Walsall Council,http://opendatacommunities.org/id/metropolitan-district-council/walsall,WC67-,WC67-87,30/04/2016,Social Care & Inclusion,ANCHOR,13/04/2016,"1,333.25",73373-RESIDENTIAL & NURSING CARE PLACEMENTS,OP COMMISSIONING,Third Party Payments,,Revenue, 
Walsall Council,http://opendatacommunities.org/id/metropolitan-district-council/walsall,WC67-,WC67-88,30/04/2016,Social Care & Inclusion,ANCHOR,13/04/2016,"1,344.58",73373-RESIDENTIAL & NURSING CARE PLACEMENTS,OP COMMISSIONING,Third Party Payments,,Revenue, 
Walsall Council,http://opendatacommunities.org/id/metropolitan-district-council/walsall,WC67-,WC67-89,30/04/2016,Social Care & Inclusion,ANCHOR,13/04/2016,"1,400.57",73373-RESIDENTIAL & NURSING CARE PLACEMENTS,OP COMMISSIONING,Third Party Payments,,Revenue, 
Walsall Council,http://opendatacommunities.org/id/metropolitan-district-council/walsall,WC67-,WC67-90,30/04/2016,Social Care & Inclusion,ANCHOR,13/04/2016,"1,400.57",73373-RESIDENTIAL & NURSING CARE PLACEMENTS,MH COMMISSIONING,Third Party Payments,,Revenue, 
Walsall Council,http://opendatacommunities.org/id/metropolitan-district-council/walsall,WC67-,WC67-91,30/04/2016,Social Care & Inclusion,ANCHOR,13/04/2016,"1,400.57",73373-RESIDENTIAL & NURSING CARE PLACEMENTS,OP COMMISSIONING,Third Party Payments,,Revenue, 
Walsall Council,http://opendatacommunities.org/id/metropolitan-district-council/walsall,WC67-,WC67-92,30/04/2016,Social Care & Inclusion,ANCHOR,13/04/2016,"1,400.57",73373-RESIDENTIAL & NURSING CARE PLACEMENTS,OP COMMISSIONING,Third Party Payments,,Revenue, 
Walsall Council,http://opendatacommunities.org/id/metropolitan-district-council/walsall,WC67-,WC67-93,30/04/2016,Social Care & Inclusion,ANCHOR,13/04/2016,"1,400.57",73373-RESIDENTIAL & NURSING CARE PLACEMENTS,OP COMMISSIONING,Third Party Payments,,Revenue, 
Walsall Council,http://opendatacommunities.org/id/metropolitan-district-council/walsall,WC67-,WC67-94,30/04/2016,Social Care & Inclusion,ANCHOR,13/04/2016,"1,400.57",73373-RESIDENTIAL & NURSING CARE PLACEMENTS,OP COMMISSIONING,Third Party Payments,,Revenue, 
Walsall Council,http://opendatacommunities.org/id/metropolitan-district-council/walsall,WC67-,WC67-95,30/04/2016,Social Care & Inclusion,ANCHOR,13/04/2016,"1,400.57",73373-RESIDENTIAL & NURSING CARE PLACEMENTS,OP COMMISSIONING,Third Party Payments,,Revenue, 
Walsall Council,http://opendatacommunities.org/id/metropolitan-district-council/walsall,WC67-,WC67-96,30/04/2016,Social Care & Inclusion,ANCHOR,13/04/2016,"1,400.57",73373-RESIDENTIAL & NURSING CARE PLACEMENTS,OP COMMISSIONING,Third Party Payments,,Revenue, 
Walsall Council,http://opendatacommunities.org/id/metropolitan-district-council/walsall,WC67-,WC67-97,30/04/2016,Social Care & Inclusion,ANCHOR,13/04/2016,"1,400.57",73373-RESIDENTIAL & NURSING CARE PLACEMENTS,OP COMMISSIONING,Third Party Payments,,Revenue, 
Walsall Council,http://opendatacommunities.org/id/metropolitan-district-council/walsall,WC67-,WC67-98,30/04/2016,Social Care & Inclusion,ANCHOR,13/04/2016,"1,400.57",73373-RESIDENTIAL & NURSING CARE PLACEMENTS,OP COMMISSIONING,Third Party Payments,,Revenue, 
Walsall Council,http://opendatacommunities.org/id/metropolitan-district-council/walsall,WC67-,WC67-99,30/04/2016,Social Care & Inclusion,ANCHOR,13/04/2016,"1,400.57",73373-RESIDENTIAL & NURSING CARE PLACEMENTS,OP COMMISSIONING,Third Party Payments,,Revenue, 
Walsall Council,http://opendatacommunities.org/id/metropolitan-district-council/walsall,WC67-,WC67-100,30/04/2016,Social Care & Inclusion,ANCHOR,13/04/2016,"1,400.61",73373-RESIDENTIAL & NURSING CARE PLACEMENTS,OP COMMISSIONING,Third Party Payments,,Revenue, 
Walsall Council,http://opendatacommunities.org/id/metropolitan-district-council/walsall,WC67-,WC67-101,30/04/2016,Social Care & Inclusion,ANCHOR,13/04/2016,"1,568.64",73373-RESIDENTIAL & NURSING CARE PLACEMENTS,OP COMMISSIONING,Third Party Payments,,Revenue, 
Walsall Council,http://opendatacommunities.org/id/metropolitan-district-council/walsall,WC67-,WC67-102,30/04/2016,Social Care & Inclusion,ANCHOR,13/04/2016,"1,568.64",73373-RESIDENTIAL & NURSING CARE PLACEMENTS,OP COMMISSIONING,Third Party Payments,,Revenue, 
Walsall Council,http://opendatacommunities.org/id/metropolitan-district-council/walsall,WC67-,WC67-103,30/04/2016,Social Care & Inclusion,REDACTED,11/04/2016,378.00,76422-DIRECT PAYMENTS TO SOCIAL SERVICES CLIENTS,YADS COMMISSIONING,Transfer Payments,,Revenue,Y
Walsall Council,http://opendatacommunities.org/id/metropolitan-district-council/walsall,WC67-,WC67-104,30/04/2016,Social Care & Inclusion,ANGEL COURT RESIDENTIAL CARE HOME,19/04/2016,"1,680.69",73373-RESIDENTIAL & NURSING CARE PLACEMENTS,OP COMMISSIONING,Third Party Payments,,Revenue, 
Walsall Council,http://opendatacommunities.org/id/metropolitan-district-council/walsall,WC67-,WC67-105,30/04/2016,Social Care & Inclusion,ANGEL COURT RESIDENTIAL CARE HOME,19/04/2016,"1,759.07",73373-RESIDENTIAL & NURSING CARE PLACEMENTS,OP COMMISSIONING,Third Party Payments,,Revenue, 
Walsall Council,http://opendatacommunities.org/id/metropolitan-district-council/walsall,WC67-,WC67-106,30/04/2016,Social Care & Inclusion,ANGEL COURT RESIDENTIAL CARE HOME,19/04/2016,"1,837.84",73373-RESIDENTIAL & NURSING CARE PLACEMENTS,OP COMMISSIONING,Third Party Payments,,Revenue, 
Walsall Council,http://opendatacommunities.org/id/metropolitan-district-council/walsall,WC67-,WC67-107,30/04/2016,Social Care & Inclusion,ANGEL COURT RESIDENTIAL CARE HOME,19/04/2016,"3,626.44",73373-RESIDENTIAL & NURSING CARE PLACEMENTS,OP COMMISSIONING,Third Party Payments,,Revenue, 
Walsall Council,http://opendatacommunities.org/id/metropolitan-district-council/walsall,WC67-,WC67-108,30/04/2016,Social Care & Inclusion,REDACTED,11/04/2016,344.00,76422-DIRECT PAYMENTS TO SOCIAL SERVICES CLIENTS,LD COMMISSIONING,Transfer Payments,,Revenue,Y
Walsall Council,http://opendatacommunities.org/id/metropolitan-district-council/walsall,WC67-,WC67-109,30/04/2016,Social Care & Inclusion,ANSON COURT RESIDENTIAL HOME,19/04/2016,"-1,008.41",73373-RESIDENTIAL & NURSING CARE PLACEMENTS,OP COMMISSIONING,Third Party Payments,,Revenue, 
Walsall Council,http://opendatacommunities.org/id/metropolitan-district-council/walsall,WC67-,WC67-110,30/04/2016,Social Care & Inclusion,ANSON COURT RESIDENTIAL HOME,19/04/2016,336.14,73373-RESIDENTIAL & NURSING CARE PLACEMENTS,MH COMMISSIONING,Third Party Payments,,Revenue, 
Walsall Council,http://opendatacommunities.org/id/metropolitan-district-council/walsall,WC67-,WC67-111,30/04/2016,Social Care & Inclusion,ANSON COURT RESIDENTIAL HOME,19/04/2016,392.16,73373-RESIDENTIAL & NURSING CARE PLACEMENTS,MH COMMISSIONING,Third Party Payments,,Revenue, 
Walsall Council,http://opendatacommunities.org/id/metropolitan-district-council/walsall,WC67-,WC67-112,30/04/2016,Social Care & Inclusion,ANSON COURT RESIDENTIAL HOME,13/04/2016,616.25,73373-RESIDENTIAL & NURSING CARE PLACEMENTS,OP COMMISSIONING,Third Party Payments,,Revenue, 
Walsall Council,http://opendatacommunities.org/id/metropolitan-district-council/walsall,WC67-,WC67-113,30/04/2016,Social Care & Inclusion,ANSON COURT RESIDENTIAL HOME,19/04/2016,"1,176.48",73373-RESIDENTIAL & NURSING CARE PLACEMENTS,MH COMMISSIONING,Third Party Payments,,Revenue, 
Walsall Council,http://opendatacommunities.org/id/metropolitan-district-council/walsall,WC67-,WC67-114,30/04/2016,Social Care & Inclusion,ANSON COURT RESIDENTIAL HOME,19/04/2016,"1,232.50",73373-RESIDENTIAL & NURSING CARE PLACEMENTS,OP COMMISSIONING,Third Party Payments,,Revenue, 
Walsall Council,http://opendatacommunities.org/id/metropolitan-district-council/walsall,WC67-,WC67-115,30/04/2016,Social Care & Inclusion,ANSON COURT RESIDENTIAL HOME,13/04/2016,"1,567.00",73373-RESIDENTIAL & NURSING CARE PLACEMENTS,OP COMMISSIONING,Third Party Payments,,Revenue, 
Walsall Council,http://opendatacommunities.org/id/metropolitan-district-council/walsall,WC67-,WC67-116,30/04/2016,Social Care & Inclusion,ANSON COURT RESIDENTIAL HOME,13/04/2016,"1,568.64",73373-RESIDENTIAL & NURSING CARE PLACEMENTS,OP COMMISSIONING,Third Party Payments,,Revenue, 
Walsall Council,http://opendatacommunities.org/id/metropolitan-district-council/walsall,WC67-,WC67-117,30/04/2016,Social Care & Inclusion,ANSON COURT RESIDENTIAL HOME,13/04/2016,"1,568.64",73373-RESIDENTIAL & NURSING CARE PLACEMENTS,OP COMMISSIONING,Third Party Payments,,Revenue, 
Walsall Council,http://opendatacommunities.org/id/metropolitan-district-council/walsall,WC67-,WC67-118,30/04/2016,Social Care & Inclusion,ANSON COURT RESIDENTIAL HOME,13/04/2016,"1,568.64",73373-RESIDENTIAL & NURSING CARE PLACEMENTS,OP COMMISSIONING,Third Party Payments,,Revenue, 
Walsall Council,http://opendatacommunities.org/id/metropolitan-district-council/walsall,WC67-,WC67-119,30/04/2016,Social Care & Inclusion,ANSON COURT RESIDENTIAL HOME,13/04/2016,"1,568.64",73373-RESIDENTIAL & NURSING CARE PLACEMENTS,OP COMMISSIONING,Third Party Payments,,Revenue, 
Walsall Council,http://opendatacommunities.org/id/metropolitan-district-council/walsall,WC67-,WC67-120,30/04/2016,Social Care & Inclusion,ANSON COURT RESIDENTIAL HOME,13/04/2016,"1,568.64",73373-RESIDENTIAL & NURSING CARE PLACEMENTS,OP COMMISSIONING,Third Party Payments,,Revenue, 
Walsall Council,http://opendatacommunities.org/id/metropolitan-district-council/walsall,WC67-,WC67-121,30/04/2016,Social Care & Inclusion,ANSON COURT RESIDENTIAL HOME,13/04/2016,"1,568.64",73373-RESIDENTIAL & NURSING CARE PLACEMENTS,MH COMMISSIONING,Third Party Payments,,Revenue, 
Walsall Council,http://opendatacommunities.org/id/metropolitan-district-council/walsall,WC67-,WC67-122,30/04/2016,Social Care & Inclusion,ANSON COURT RESIDENTIAL HOME,13/04/2016,"1,568.64",73373-RESIDENTIAL & NURSING CARE PLACEMENTS,MH COMMISSIONING,Third Party Payments,,Revenue, 
Walsall Council,http://opendatacommunities.org/id/metropolitan-district-council/walsall,WC67-,WC67-123,30/04/2016,Social Care & Inclusion,ANSON COURT RESIDENTIAL HOME,13/04/2016,"1,568.64",73373-RESIDENTIAL & NURSING CARE PLACEMENTS,MH COMMISSIONING,Third Party Payments,,Revenue, 
Walsall Council,http://opendatacommunities.org/id/metropolitan-district-council/walsall,WC67-,WC67-124,30/04/2016,Social Care & Inclusion,ANSON COURT RESIDENTIAL HOME,13/04/2016,"1,568.64",73373-RESIDENTIAL & NURSING CARE PLACEMENTS,OP COMMISSIONING,Third Party Payments,,Revenue, 
Walsall Council,http://opendatacommunities.org/id/metropolitan-district-council/walsall,WC67-,WC67-125,30/04/2016,Social Care & Inclusion,ANSON COURT RESIDENTIAL HOME,13/04/2016,"1,568.64",73373-RESIDENTIAL & NURSING CARE PLACEMENTS,MH COMMISSIONING,Third Party Payments,,Revenue, 
Walsall Council,http://opendatacommunities.org/id/metropolitan-district-council/walsall,WC67-,WC67-126,30/04/2016,Social Care & Inclusion,ANSON COURT RESIDENTIAL HOME,13/04/2016,"1,568.64",73373-RESIDENTIAL & NURSING CARE PLACEMENTS,MH COMMISSIONING,Third Party Payments,,Revenue, 
Walsall Council,http://opendatacommunities.org/id/metropolitan-district-council/walsall,WC67-,WC67-127,30/04/2016,Social Care & Inclusion,ANSON COURT RESIDENTIAL HOME,13/04/2016,"1,568.64",73373-RESIDENTIAL & NURSING CARE PLACEMENTS,OP COMMISSIONING,Third Party Payments,,Revenue, 
Walsall Council,http://opendatacommunities.org/id/metropolitan-district-council/walsall,WC67-,WC67-128,30/04/2016,Social Care & Inclusion,ANSON COURT RESIDENTIAL HOME,13/04/2016,"1,568.64",73373-RESIDENTIAL & NURSING CARE PLACEMENTS,OP COMMISSIONING,Third Party Payments,,Revenue, 
Walsall Council,http://opendatacommunities.org/id/metropolitan-district-council/walsall,WC67-,WC67-129,30/04/2016,Social Care & Inclusion,ANSON COURT RESIDENTIAL HOME,13/04/2016,"1,568.64",73373-RESIDENTIAL & NURSING CARE PLACEMENTS,OP COMMISSIONING,Third Party Payments,,Revenue, 
Walsall Council,http://opendatacommunities.org/id/metropolitan-district-council/walsall,WC67-,WC67-130,30/04/2016,Social Care & Inclusion,ANSON COURT RESIDENTIAL HOME,13/04/2016,"1,568.64",73373-RESIDENTIAL & NURSING CARE PLACEMENTS,OP COMMISSIONING,Third Party Payments,,Revenue, 
Walsall Council,http://opendatacommunities.org/id/metropolitan-district-council/walsall,WC67-,WC67-131,30/04/2016,Social Care & Inclusion,ANSON COURT RESIDENTIAL HOME,19/04/2016,"1,568.64",73373-RESIDENTIAL & NURSING CARE PLACEMENTS,OP COMMISSIONING,Third Party Payments,,Revenue, 
Walsall Council,http://opendatacommunities.org/id/metropolitan-district-council/walsall,WC67-,WC67-132,30/04/2016,Social Care & Inclusion,ANSON COURT RESIDENTIAL HOME,19/04/2016,"1,568.64",73373-RESIDENTIAL & NURSING CARE PLACEMENTS,OP COMMISSIONING,Third Party Payments,,Revenue, 
Walsall Council,http://opendatacommunities.org/id/metropolitan-district-council/walsall,WC67-,WC67-133,30/04/2016,Social Care & Inclusion,ANSON COURT RESIDENTIAL HOME,19/04/2016,"1,568.64",73373-RESIDENTIAL & NURSING CARE PLACEMENTS,OP COMMISSIONING,Third Party Payments,,Revenue, 
Walsall Council,http://opendatacommunities.org/id/metropolitan-district-council/walsall,WC67-,WC67-134,30/04/2016,Social Care & Inclusion,ANSON COURT RESIDENTIAL HOME,19/04/2016,"1,568.64",73373-RESIDENTIAL & NURSING CARE PLACEMENTS,OP COMMISSIONING,Third Party Payments,,Revenue, 
Walsall Council,http://opendatacommunities.org/id/metropolitan-district-council/walsall,WC67-,WC67-135,30/04/2016,Social Care & Inclusion,ANSON COURT RESIDENTIAL HOME,19/04/2016,"1,568.64",73373-RESIDENTIAL & NURSING CARE PLACEMENTS,OP COMMISSIONING,Third Party Payments,,Revenue, 
Walsall Council,http://opendatacommunities.org/id/metropolitan-district-council/walsall,WC67-,WC67-136,30/04/2016,Social Care & Inclusion,ANSON COURT RESIDENTIAL HOME,19/04/2016,"1,568.64",73373-RESIDENTIAL & NURSING CARE PLACEMENTS,OP COMMISSIONING,Third Party Payments,,Revenue, 
Walsall Council,http://opendatacommunities.org/id/metropolitan-district-council/walsall,WC67-,WC67-137,30/04/2016,Social Care & Inclusion,ANSON COURT RESIDENTIAL HOME,19/04/2016,"1,568.64",73373-RESIDENTIAL & NURSING CARE PLACEMENTS,OP COMMISSIONING,Third Party Payments,,Revenue, 
Walsall Council,http://opendatacommunities.org/id/metropolitan-district-council/walsall,WC67-,WC67-138,30/04/2016,Social Care & Inclusion,ANSON COURT RESIDENTIAL HOME,13/04/2016,"1,649.20",73373-RESIDENTIAL & NURSING CARE PLACEMENTS,MH COMMISSIONING,Third Party Payments,,Revenue, 
Walsall Council,http://opendatacommunities.org/id/metropolitan-district-council/walsall,WC67-,WC67-139,30/04/2016,Social Care & Inclusion,ANSON COURT RESIDENTIAL HOME,13/04/2016,"1,650.44",73373-RESIDENTIAL & NURSING CARE PLACEMENTS,OP COMMISSIONING,Third Party Payments,,Revenue, 
Walsall Council,http://opendatacommunities.org/id/metropolitan-district-council/walsall,WC67-,WC67-140,30/04/2016,Social Care & Inclusion,ANSON COURT RESIDENTIAL HOME,13/04/2016,"1,651.04",73373-RESIDENTIAL & NURSING CARE PLACEMENTS,OP COMMISSIONING,Third Party Payments,,Revenue, 
Walsall Council,http://opendatacommunities.org/id/metropolitan-district-council/walsall,WC67-,WC67-141,30/04/2016,Social Care & Inclusion,ANSON COURT RESIDENTIAL HOME,13/04/2016,"1,651.04",73373-RESIDENTIAL & NURSING CARE PLACEMENTS,OP COMMISSIONING,Third Party Payments,,Revenue, 
Walsall Council,http://opendatacommunities.org/id/metropolitan-district-council/walsall,WC67-,WC67-142,30/04/2016,Social Care & Inclusion,ANSON COURT RESIDENTIAL HOME,26/04/2016,"1,680.69",73373-RESIDENTIAL & NURSING CARE PLACEMENTS,MH COMMISSIONING,Third Party Payments,,Revenue, 
Walsall Council,http://opendatacommunities.org/id/metropolitan-district-council/walsall,WC67-,WC67-143,30/04/2016,Social Care & Inclusion,ANSON COURT RESIDENTIAL HOME,26/04/2016,"2,801.14",73373-RESIDENTIAL & NURSING CARE PLACEMENTS,MH COMMISSIONING,Third Party Payments,,Revenue, 
Walsall Council,http://opendatacommunities.org/id/metropolitan-district-council/walsall,WC67-,WC67-144,30/04/2016,Social Care & Inclusion,ANSON COURT RESIDENTIAL HOME,19/04/2016,"3,529.44",73373-RESIDENTIAL & NURSING CARE PLACEMENTS,OP COMMISSIONING,Third Party Payments,,Revenue, 
Walsall Council,http://opendatacommunities.org/id/metropolitan-district-council/walsall,WC67-,WC67-145,30/04/2016,Social Care & Inclusion,ARBORETUM NURSING HOME.,05/04/2016,564.45,73373-RESIDENTIAL & NURSING CARE PLACEMENTS,OP COMMISSIONING,Third Party Payments,,Revenue, 
Walsall Council,http://opendatacommunities.org/id/metropolitan-district-council/walsall,WC67-,WC67-146,30/04/2016,Social Care & Inclusion,ARBORETUM NURSING HOME.,13/04/2016,"1,905.04",73373-RESIDENTIAL & NURSING CARE PLACEMENTS,OP COMMISSIONING,Third Party Payments,,Revenue, 
Walsall Council,http://opendatacommunities.org/id/metropolitan-district-council/walsall,WC67-,WC67-147,30/04/2016,Social Care & Inclusion,ARBORETUM NURSING HOME.,13/04/2016,"1,957.50",73373-RESIDENTIAL & NURSING CARE PLACEMENTS,OP COMMISSIONING,Third Party Payments,,Revenue, 
Walsall Council,http://opendatacommunities.org/id/metropolitan-district-council/walsall,WC67-,WC67-148,30/04/2016,Social Care & Inclusion,ARBORETUM NURSING HOME.,13/04/2016,"1,975.60",73373-RESIDENTIAL & NURSING CARE PLACEMENTS,OP COMMISSIONING,Third Party Payments,,Revenue, 
Walsall Council,http://opendatacommunities.org/id/metropolitan-district-council/walsall,WC67-,WC67-149,30/04/2016,Social Care & Inclusion,ARBORETUM NURSING HOME.,13/04/2016,"1,975.60",73373-RESIDENTIAL & NURSING CARE PLACEMENTS,OP COMMISSIONING,Third Party Payments,,Revenue, 
Walsall Council,http://opendatacommunities.org/id/metropolitan-district-council/walsall,WC67-,WC67-150,30/04/2016,Social Care & Inclusion,ARBORETUM NURSING HOME.,13/04/2016,"1,975.60",73373-RESIDENTIAL & NURSING CARE PLACEMENTS,OP COMMISSIONING,Third Party Payments,,Revenue, 
Walsall Council,http://opendatacommunities.org/id/metropolitan-district-council/walsall,WC67-,WC67-151,30/04/2016,Social Care & Inclusion,ARBORETUM NURSING HOME.,13/04/2016,"1,975.60",73373-RESIDENTIAL & NURSING CARE PLACEMENTS,OP COMMISSIONING,Third Party Payments,,Revenue, 
Walsall Council,http://opendatacommunities.org/id/metropolitan-district-council/walsall,WC67-,WC67-152,30/04/2016,Social Care & Inclusion,ARBORETUM NURSING HOME.,13/04/2016,"2,017.16",73373-RESIDENTIAL & NURSING CARE PLACEMENTS,OP COMMISSIONING,Third Party Payments,,Revenue, 
Walsall Council,http://opendatacommunities.org/id/metropolitan-district-council/walsall,WC67-,WC67-153,30/04/2016,Social Care & Inclusion,ARBORETUM NURSING HOME.,13/04/2016,"2,187.27",73373-RESIDENTIAL & NURSING CARE PLACEMENTS,OP COMMISSIONING,Third Party Payments,,Revenue, 
Walsall Council,http://opendatacommunities.org/id/metropolitan-district-council/walsall,WC67-,WC67-154,30/04/2016,Social Care & Inclusion,ARBORETUM NURSING HOME.,05/04/2016,"15,000.00",73019-PSE'S-PRIV CONTRACTOR FEES,TRANSITIONAL CARE SUPPORT TEAM,Third Party Payments,,Revenue, 
Walsall Council,http://opendatacommunities.org/id/metropolitan-district-council/walsall,WC67-,WC67-155,30/04/2016,Social Care & Inclusion,ASH GRANGE CARE HOME,26/04/2016,"-1,207.12",73373-RESIDENTIAL & NURSING CARE PLACEMENTS,OP COMMISSIONING,Third Party Payments,,Revenue, 
Walsall Council,http://opendatacommunities.org/id/metropolitan-district-council/walsall,WC67-,WC67-156,30/04/2016,Social Care & Inclusion,ASH GRANGE CARE HOME,05/04/2016,355.04,73373-RESIDENTIAL & NURSING CARE PLACEMENTS,OP COMMISSIONING,Third Party Payments,,Revenue, 
Walsall Council,http://opendatacommunities.org/id/metropolitan-district-council/walsall,WC67-,WC67-157,30/04/2016,Social Care & Inclusion,ASH GRANGE CARE HOME,05/04/2016,781.08,73373-RESIDENTIAL & NURSING CARE PLACEMENTS,OP COMMISSIONING,Third Party Payments,,Revenue, 
Walsall Council,http://opendatacommunities.org/id/metropolitan-district-council/walsall,WC67-,WC67-158,30/04/2016,Social Care & Inclusion,ASH GRANGE CARE HOME,26/04/2016,"1,505.56",73373-RESIDENTIAL & NURSING CARE PLACEMENTS,OP COMMISSIONING,Third Party Payments,,Revenue, 
Walsall Council,http://opendatacommunities.org/id/metropolitan-district-council/walsall,WC67-,WC67-159,30/04/2016,Social Care & Inclusion,ASH GRANGE CARE HOME,26/04/2016,"1,988.20",73373-RESIDENTIAL & NURSING CARE PLACEMENTS,OP COMMISSIONING,Third Party Payments,,Revenue, 
Walsall Council,http://opendatacommunities.org/id/metropolitan-district-council/walsall,WC67-,WC67-160,30/04/2016,Social Care & Inclusion,ASH GRANGE CARE HOME,26/04/2016,"1,988.20",73373-RESIDENTIAL & NURSING CARE PLACEMENTS,OP COMMISSIONING,Third Party Payments,,Revenue, 
Walsall Council,http://opendatacommunities.org/id/metropolitan-district-council/walsall,WC67-,WC67-161,30/04/2016,Social Care & Inclusion,ASH GRANGE CARE HOME,26/04/2016,"1,988.20",73373-RESIDENTIAL & NURSING CARE PLACEMENTS,MH COMMISSIONING,Third Party Payments,,Revenue, 
Walsall Council,http://opendatacommunities.org/id/metropolitan-district-council/walsall,WC67-,WC67-162,30/04/2016,Social Care & Inclusion,ASH GRANGE CARE HOME,26/04/2016,"1,988.20",73373-RESIDENTIAL & NURSING CARE PLACEMENTS,OP COMMISSIONING,Third Party Payments,,Revenue, 
Walsall Council,http://opendatacommunities.org/id/metropolitan-district-council/walsall,WC67-,WC67-163,30/04/2016,Social Care & Inclusion,ASH GRANGE CARE HOME,26/04/2016,"1,988.20",73373-RESIDENTIAL & NURSING CARE PLACEMENTS,OP COMMISSIONING,Third Party Payments,,Revenue, 
Walsall Council,http://opendatacommunities.org/id/metropolitan-district-council/walsall,WC67-,WC67-164,30/04/2016,Social Care & Inclusion,ASH GRANGE CARE HOME,26/04/2016,"1,988.20",73373-RESIDENTIAL & NURSING CARE PLACEMENTS,OP COMMISSIONING,Third Party Payments,,Revenue, 
Walsall Council,http://opendatacommunities.org/id/metropolitan-district-council/walsall,WC67-,WC67-165,30/04/2016,Social Care & Inclusion,ASH GRANGE CARE HOME,26/04/2016,"1,988.20",73373-RESIDENTIAL & NURSING CARE PLACEMENTS,OP COMMISSIONING,Third Party Payments,,Revenue, 
Walsall Council,http://opendatacommunities.org/id/metropolitan-district-council/walsall,WC67-,WC67-166,30/04/2016,Social Care & Inclusion,ASH GRANGE CARE HOME,26/04/2016,"1,988.20",73373-RESIDENTIAL & NURSING CARE PLACEMENTS,OP COMMISSIONING,Third Party Payments,,Revenue, 
Walsall Council,http://opendatacommunities.org/id/metropolitan-district-council/walsall,WC67-,WC67-167,30/04/2016,Social Care & Inclusion,ASH GRANGE CARE HOME,26/04/2016,"1,988.20",73373-RESIDENTIAL & NURSING CARE PLACEMENTS,OP COMMISSIONING,Third Party Payments,,Revenue, 
Walsall Council,http://opendatacommunities.org/id/metropolitan-district-council/walsall,WC67-,WC67-168,30/04/2016,Social Care & Inclusion,ASH GRANGE CARE HOME,26/04/2016,"1,988.20",73373-RESIDENTIAL & NURSING CARE PLACEMENTS,OP COMMISSIONING,Third Party Payments,,Revenue, 
Walsall Council,http://opendatacommunities.org/id/metropolitan-district-council/walsall,WC67-,WC67-169,30/04/2016,Social Care & Inclusion,ASH GRANGE CARE HOME,26/04/2016,"1,988.20",73373-RESIDENTIAL & NURSING CARE PLACEMENTS,OP COMMISSIONING,Third Party Payments,,Revenue, 
Walsall Council,http://opendatacommunities.org/id/metropolitan-district-council/walsall,WC67-,WC67-170,30/04/2016,Social Care & Inclusion,ASH GRANGE CARE HOME,26/04/2016,"2,065.64",73373-RESIDENTIAL & NURSING CARE PLACEMENTS,OP COMMISSIONING,Third Party Payments,,Revenue, 
Walsall Council,http://opendatacommunities.org/id/metropolitan-district-council/walsall,WC67-,WC67-171,30/04/2016,Social Care & Inclusion,ASH GRANGE CARE HOME,05/04/2016,"2,201.22",73373-RESIDENTIAL & NURSING CARE PLACEMENTS,OP COMMISSIONING,Third Party Payments,,Revenue, 
Walsall Council,http://opendatacommunities.org/id/metropolitan-district-council/walsall,WC67-,WC67-172,30/04/2016,Social Care & Inclusion,ASH GRANGE CARE HOME,26/04/2016,"2,943.72",73373-RESIDENTIAL & NURSING CARE PLACEMENTS,OP COMMISSIONING,Third Party Payments,,Revenue, 
Walsall Council,http://opendatacommunities.org/id/metropolitan-district-council/walsall,WC67-,WC67-173,30/04/2016,Social Care & Inclusion,ASH GRANGE CARE HOME,20/04/2016,"14,700.00",73019-PSE'S-PRIV CONTRACTOR FEES,TRANSITIONAL CARE SUPPORT TEAM,Third Party Payments,,Revenue, 
Walsall Council,http://opendatacommunities.org/id/metropolitan-district-council/walsall,WC67-,WC67-174,30/04/2016,Social Care & Inclusion,ASHBOURNE LODGE,13/04/2016,"2,103.86",73373-RESIDENTIAL & NURSING CARE PLACEMENTS,OP COMMISSIONING,Third Party Payments,,Revenue, 
Walsall Council,http://opendatacommunities.org/id/metropolitan-district-council/walsall,WC67-,WC67-175,30/04/2016,Social Care & Inclusion,ASHBOURNE LODGE,26/04/2016,"2,173.99",73373-RESIDENTIAL & NURSING CARE PLACEMENTS,OP COMMISSIONING,Third Party Payments,,Revenue, 
Walsall Council,http://opendatacommunities.org/id/metropolitan-district-council/walsall,WC67-,WC67-176,30/04/2016,Social Care & Inclusion,REDACTED,11/04/2016,493.00,76422-DIRECT PAYMENTS TO SOCIAL SERVICES CLIENTS,YADS COMMISSIONING,Transfer Payments,,Revenue,Y
Walsall Council,http://opendatacommunities.org/id/metropolitan-district-council/walsall,WC67-,WC67-177,30/04/2016,Social Care & Inclusion,AUTISM WEST MIDLANDS,05/04/2016,"7,479.01",73373-RESIDENTIAL & NURSING CARE PLACEMENTS,LD COMMISSIONING,Third Party Payments,,Revenue, 
Walsall Council,http://opendatacommunities.org/id/metropolitan-district-council/walsall,WC67-,WC67-178,30/04/2016,Social Care & Inclusion,AUTISM WEST MIDLANDS 001,05/04/2016,"4,999.33",73373-RESIDENTIAL & NURSING CARE PLACEMENTS,LD COMMISSIONING,Third Party Payments,,Revenue, 
Walsall Council,http://opendatacommunities.org/id/metropolitan-district-council/walsall,WC67-,WC67-179,30/04/2016,Social Care & Inclusion,AUTOMATIC RENTALS LIMITED,11/04/2016,403.00,61009-BEVERAGES-PROVISIONS,EMPLOYMENT LINKS TO WORK,Supplies & Services,,Revenue, 
Walsall Council,http://opendatacommunities.org/id/metropolitan-district-council/walsall,WC67-,WC67-180,30/04/2016,Social Care & Inclusion,REDACTED,11/04/2016,777.00,76422-DIRECT PAYMENTS TO SOCIAL SERVICES CLIENTS,OP COMMISSIONING,Transfer Payments,,Revenue,Y
Walsall Council,http://opendatacommunities.org/id/metropolitan-district-council/walsall,WC67-,WC67-181,30/04/2016,Social Care & Inclusion,REDACTED,11/04/2016,"2,652.00",76422-DIRECT PAYMENTS TO SOCIAL SERVICES CLIENTS,LD COMMISSIONING,Transfer Payments,,Revenue,Y
Walsall Council,http://opendatacommunities.org/id/metropolitan-district-council/walsall,WC67-,WC67-182,30/04/2016,Social Care & Inclusion,REDACTED,11/04/2016,680.00,76422-DIRECT PAYMENTS TO SOCIAL SERVICES CLIENTS,MH COMMISSIONING,Transfer Payments,,Revenue,Y
Walsall Council,http://opendatacommunities.org/id/metropolitan-district-council/walsall,WC67-,WC67-183,30/04/2016,Social Care & Inclusion,REDACTED,11/04/2016,"2,849.92",76422-DIRECT PAYMENTS TO SOCIAL SERVICES CLIENTS,LD COMMISSIONING,Transfer Payments,,Revenue,Y
Walsall Council,http://opendatacommunities.org/id/metropolitan-district-council/walsall,WC67-,WC67-184,30/04/2016,Social Care & Inclusion,REDACTED,11/04/2016,850.00,76422-DIRECT PAYMENTS TO SOCIAL SERVICES CLIENTS,OP COMMISSIONING,Transfer Payments,,Revenue,Y
Walsall Council,http://opendatacommunities.org/id/metropolitan-district-council/walsall,WC67-,WC67-185,30/04/2016,Social Care & Inclusion,REDACTED,11/04/2016,"1,046.51",76422-DIRECT PAYMENTS TO SOCIAL SERVICES CLIENTS,OP COMMISSIONING,Transfer Payments,,Revenue,Y
Walsall Council,http://opendatacommunities.org/id/metropolitan-district-council/walsall,WC67-,WC67-186,30/04/2016,Social Care & Inclusion,REDACTED,11/04/2016,"1,582.87",76422-DIRECT PAYMENTS TO SOCIAL SERVICES CLIENTS,YADS COMMISSIONING,Transfer Payments,,Revenue,Y
Walsall Council,http://opendatacommunities.org/id/metropolitan-district-council/walsall,WC67-,WC67-187,30/04/2016,Social Care & Inclusion,REDACTED,11/04/2016,"1,536.08",76422-DIRECT PAYMENTS TO SOCIAL SERVICES CLIENTS,YADS COMMISSIONING,Transfer Payments,,Revenue,Y
Walsall Council,http://opendatacommunities.org/id/metropolitan-district-council/walsall,WC67-,WC67-188,30/04/2016,Social Care & Inclusion,REDACTED,11/04/2016,632.52,76422-DIRECT PAYMENTS TO SOCIAL SERVICES CLIENTS,OP COMMISSIONING,Transfer Payments,,Revenue,Y
Walsall Council,http://opendatacommunities.org/id/metropolitan-district-council/walsall,WC67-,WC67-189,30/04/2016,Social Care & Inclusion,BEARWOOD NURSING HOME LTD,05/04/2016,436.45,73373-RESIDENTIAL & NURSING CARE PLACEMENTS,OP COMMISSIONING,Third Party Payments,,Revenue, 
Walsall Council,http://opendatacommunities.org/id/metropolitan-district-council/walsall,WC67-,WC67-190,30/04/2016,Social Care & Inclusion,BEARWOOD NURSING HOME LTD,05/04/2016,"1,091.15",73373-RESIDENTIAL & NURSING CARE PLACEMENTS,OP COMMISSIONING,Third Party Payments,,Revenue, 
Walsall Council,http://opendatacommunities.org/id/metropolitan-district-council/walsall,WC67-,WC67-191,30/04/2016,Social Care & Inclusion,REDACTED,11/04/2016,641.76,76422-DIRECT PAYMENTS TO SOCIAL SERVICES CLIENTS,OP COMMISSIONING,Transfer Payments,,Revenue,Y
Walsall Council,http://opendatacommunities.org/id/metropolitan-district-council/walsall,WC67-,WC67-192,30/04/2016,Social Care & Inclusion,REDACTED,11/04/2016,"2,205.00",76422-DIRECT PAYMENTS TO SOCIAL SERVICES CLIENTS,LD COMMISSIONING,Transfer Payments,,Revenue,Y
Walsall Council,http://opendatacommunities.org/id/metropolitan-district-council/walsall,WC67-,WC67-193,30/04/2016,Social Care & Inclusion,BENTLEY COURT PRIORY,05/04/2016,"1,853.36",73373-RESIDENTIAL & NURSING CARE PLACEMENTS,OP COMMISSIONING,Third Party Payments,,Revenue, 
Walsall Council,http://opendatacommunities.org/id/metropolitan-district-council/walsall,WC67-,WC67-194,30/04/2016,Social Care & Inclusion,BENTLEY COURT PRIORY,19/04/2016,"1,917.57",73373-RESIDENTIAL & NURSING CARE PLACEMENTS,OP COMMISSIONING,Third Party Payments,,Revenue, 
Walsall Council,http://opendatacommunities.org/id/metropolitan-district-council/walsall,WC67-,WC67-195,30/04/2016,Social Care & Inclusion,BENTLEY COURT PRIORY,19/04/2016,"2,015.00",73373-RESIDENTIAL & NURSING CARE PLACEMENTS,OP COMMISSIONING,Third Party Payments,,Revenue, 
Walsall Council,http://opendatacommunities.org/id/metropolitan-district-council/walsall,WC67-,WC67-196,30/04/2016,Social Care & Inclusion,REDACTED,11/04/2016,912.00,76422-DIRECT PAYMENTS TO SOCIAL SERVICES CLIENTS,OP COMMISSIONING,Transfer Payments,,Revenue,Y
Walsall Council,http://opendatacommunities.org/id/metropolitan-district-council/walsall,WC67-,WC67-197,30/04/2016,Social Care & Inclusion,REDACTED,11/04/2016,968.00,76422-DIRECT PAYMENTS TO SOCIAL SERVICES CLIENTS,OP COMMISSIONING,Transfer Payments,,Revenue,Y
Walsall Council,http://opendatacommunities.org/id/metropolitan-district-council/walsall,WC67-,WC67-198,30/04/2016,Social Care & Inclusion,BESCOT LODGE RESIDENTIAL CARE HOME,19/04/2016,959.94,73373-RESIDENTIAL & NURSING CARE PLACEMENTS,MH COMMISSIONING,Third Party Payments,,Revenue, 
Walsall Council,http://opendatacommunities.org/id/metropolitan-district-council/walsall,WC67-,WC67-199,30/04/2016,Social Care & Inclusion,BESCOT LODGE RESIDENTIAL CARE HOME,19/04/2016,"1,599.90",73373-RESIDENTIAL & NURSING CARE PLACEMENTS,OP COMMISSIONING,Third Party Payments,,Revenue, 
Walsall Council,http://opendatacommunities.org/id/metropolitan-district-council/walsall,WC67-,WC67-200,30/04/2016,Social Care & Inclusion,BESCOT LODGE RESIDENTIAL CARE HOME,19/04/2016,"1,599.90",73373-RESIDENTIAL & NURSING CARE PLACEMENTS,OP COMMISSIONING,Third Party Payments,,Revenue, 
Walsall Council,http://opendatacommunities.org/id/metropolitan-district-council/walsall,WC67-,WC67-201,30/04/2016,Social Care & Inclusion,BESCOT LODGE RESIDENTIAL CARE HOME,19/04/2016,"1,599.90",73373-RESIDENTIAL & NURSING CARE PLACEMENTS,OP COMMISSIONING,Third Party Payments,,Revenue, 
Walsall Council,http://opendatacommunities.org/id/metropolitan-district-council/walsall,WC67-,WC67-202,30/04/2016,Social Care & Inclusion,BESCOT LODGE RESIDENTIAL CARE HOME,19/04/2016,"1,653.23",73373-RESIDENTIAL & NURSING CARE PLACEMENTS,OP COMMISSIONING,Third Party Payments,,Revenue, 
Walsall Council,http://opendatacommunities.org/id/metropolitan-district-council/walsall,WC67-,WC67-203,30/04/2016,Social Care & Inclusion,BESCOT LODGE RESIDENTIAL CARE HOME,19/04/2016,"1,680.68",73373-RESIDENTIAL & NURSING CARE PLACEMENTS,OP COMMISSIONING,Third Party Payments,,Revenue, 
Walsall Council,http://opendatacommunities.org/id/metropolitan-district-council/walsall,WC67-,WC67-204,30/04/2016,Social Care & Inclusion,BESCOT LODGE RESIDENTIAL CARE HOME,19/04/2016,"1,680.69",73373-RESIDENTIAL & NURSING CARE PLACEMENTS,MH COMMISSIONING,Third Party Payments,,Revenue, 
Walsall Council,http://opendatacommunities.org/id/metropolitan-district-council/walsall,WC67-,WC67-205,30/04/2016,Social Care & Inclusion,BESCOT LODGE RESIDENTIAL CARE HOME,19/04/2016,"1,680.69",73373-RESIDENTIAL & NURSING CARE PLACEMENTS,OP COMMISSIONING,Third Party Payments,,Revenue, 
Walsall Council,http://opendatacommunities.org/id/metropolitan-district-council/walsall,WC67-,WC67-206,30/04/2016,Social Care & Inclusion,BESCOT LODGE RESIDENTIAL CARE HOME,19/04/2016,"1,698.73",73373-RESIDENTIAL & NURSING CARE PLACEMENTS,OP COMMISSIONING,Third Party Payments,,Revenue, 
Walsall Council,http://opendatacommunities.org/id/metropolitan-district-council/walsall,WC67-,WC67-207,30/04/2016,Social Care & Inclusion,BESWICK HOUSE SUPPORTED ACCOMMODATION LTD,22/04/2016,"15,045.79",73365-BLOCK GROSS-SUPPORTING PEOPLE,EXTERNAL SP,Third Party Payments,,Revenue, 
Walsall Council,http://opendatacommunities.org/id/metropolitan-district-council/walsall,WC67-,WC67-208,30/04/2016,Social Care & Inclusion,BETHPHAGE.,04/04/2016,650.00,73374-SUPPORTED & OTHER ACCOMMODATION,LD COMMISSIONING,Third Party Payments,,Revenue, 
Walsall Council,http://opendatacommunities.org/id/metropolitan-district-council/walsall,WC67-,WC67-209,30/04/2016,Social Care & Inclusion,BETHPHAGE.,27/04/2016,650.00,73374-SUPPORTED & OTHER ACCOMMODATION,LD COMMISSIONING,Third Party Payments,,Revenue, 
Walsall Council,http://opendatacommunities.org/id/metropolitan-district-council/walsall,WC67-,WC67-210,30/04/2016,Social Care & Inclusion,BETHPHAGE.,04/04/2016,"1,389.85",73374-SUPPORTED & OTHER ACCOMMODATION,LD COMMISSIONING,Third Party Payments,,Revenue, 
Walsall Council,http://opendatacommunities.org/id/metropolitan-district-council/walsall,WC67-,WC67-211,30/04/2016,Social Care & Inclusion,BETHPHAGE.,04/04/2016,"1,439.24",73374-SUPPORTED & OTHER ACCOMMODATION,LD COMMISSIONING,Third Party Payments,,Revenue, 
Walsall Council,http://opendatacommunities.org/id/metropolitan-district-council/walsall,WC67-,WC67-212,30/04/2016,Social Care & Inclusion,BETHPHAGE.,27/04/2016,"1,439.24",73374-SUPPORTED & OTHER ACCOMMODATION,LD COMMISSIONING,Third Party Payments,,Revenue, 
Walsall Council,http://opendatacommunities.org/id/metropolitan-district-council/walsall,WC67-,WC67-213,30/04/2016,Social Care & Inclusion,BETHPHAGE.,27/04/2016,"1,629.72",73374-SUPPORTED & OTHER ACCOMMODATION,LD COMMISSIONING,Third Party Payments,,Revenue, 
Walsall Council,http://opendatacommunities.org/id/metropolitan-district-council/walsall,WC67-,WC67-214,30/04/2016,Social Care & Inclusion,BETHPHAGE.,04/04/2016,"1,768.00",73374-SUPPORTED & OTHER ACCOMMODATION,LD COMMISSIONING,Third Party Payments,,Revenue, 
Walsall Council,http://opendatacommunities.org/id/metropolitan-district-council/walsall,WC67-,WC67-215,30/04/2016,Social Care & Inclusion,BETHPHAGE.,27/04/2016,"1,768.00",73374-SUPPORTED & OTHER ACCOMMODATION,LD COMMISSIONING,Third Party Payments,,Revenue, 
Walsall Council,http://opendatacommunities.org/id/metropolitan-district-council/walsall,WC67-,WC67-216,30/04/2016,Social Care & Inclusion,BETHPHAGE.,04/04/2016,"3,831.92",73374-SUPPORTED & OTHER ACCOMMODATION,LD COMMISSIONING,Third Party Payments,,Revenue, 
Walsall Council,http://opendatacommunities.org/id/metropolitan-district-council/walsall,WC67-,WC67-217,30/04/2016,Social Care & Inclusion,BETHPHAGE.,27/04/2016,"3,831.92",73374-SUPPORTED & OTHER ACCOMMODATION,LD COMMISSIONING,Third Party Payments,,Revenue, 
Walsall Council,http://opendatacommunities.org/id/metropolitan-district-council/walsall,WC67-,WC67-218,30/04/2016,Social Care & Inclusion,REDACTED,11/04/2016,949.52,76422-DIRECT PAYMENTS TO SOCIAL SERVICES CLIENTS,MH COMMISSIONING,Transfer Payments,,Revenue,Y
Walsall Council,http://opendatacommunities.org/id/metropolitan-district-council/walsall,WC67-,WC67-219,30/04/2016,Social Care & Inclusion,REDACTED,11/04/2016,"2,537.00",76422-DIRECT PAYMENTS TO SOCIAL SERVICES CLIENTS,OP COMMISSIONING,Transfer Payments,,Revenue,Y
Walsall Council,http://opendatacommunities.org/id/metropolitan-district-council/walsall,WC67-,WC67-220,30/04/2016,Social Care & Inclusion,REDACTED,11/04/2016,250.00,76422-DIRECT PAYMENTS TO SOCIAL SERVICES CLIENTS,CARERS SERVICES,Transfer Payments,,Revenue,Y
Walsall Council,http://opendatacommunities.org/id/metropolitan-district-council/walsall,WC67-,WC67-221,30/04/2016,Social Care & Inclusion,BLOXWICH COMMUNITY PARTNERSHIP.,01/04/2016,320.00,73374-SUPPORTED & OTHER ACCOMMODATION,MH COMMISSIONING,Third Party Payments,,Revenue, 
Walsall Council,http://opendatacommunities.org/id/metropolitan-district-council/walsall,WC67-,WC67-222,30/04/2016,Social Care & Inclusion,BLOXWICH COMMUNITY PARTNERSHIP.,08/04/2016,"4,400.00",43000-RENTS,EMPLOYMENT & OPPORTUNITY - DAY OPPORTUNITIES,Premises,,Revenue, 
Walsall Council,http://opendatacommunities.org/id/metropolitan-district-council/walsall,WC67-,WC67-223,30/04/2016,Social Care & Inclusion,BLUEBIRD CARE (MID STAFFS),06/04/2016,468.00,73372-DOMICILIARY CARE,OP COMMISSIONING,Third Party Payments,,Revenue, 
Walsall Council,http://opendatacommunities.org/id/metropolitan-district-council/walsall,WC67-,WC67-224,30/04/2016,Social Care & Inclusion,BLUEBIRD CARE (MID STAFFS),15/04/2016,468.00,73372-DOMICILIARY CARE,OP COMMISSIONING,Third Party Payments,,Revenue, 
Walsall Council,http://opendatacommunities.org/id/metropolitan-district-council/walsall,WC67-,WC67-225,30/04/2016,Social Care & Inclusion,BLUEBIRD CARE (MID STAFFS),01/04/2016,900.00,73372-DOMICILIARY CARE,OP COMMISSIONING,Third Party Payments,,Revenue, 
Walsall Council,http://opendatacommunities.org/id/metropolitan-district-council/walsall,WC67-,WC67-226,30/04/2016,Social Care & Inclusion,BOWDEN DERRA PARK,05/04/2016,750.19,73373-RESIDENTIAL & NURSING CARE PLACEMENTS,LD COMMISSIONING,Third Party Payments,,Revenue, 
Walsall Council,http://opendatacommunities.org/id/metropolitan-district-council/walsall,WC67-,WC67-227,30/04/2016,Social Care & Inclusion,BOWDEN DERRA PARK,05/04/2016,"9,752.57",73373-RESIDENTIAL & NURSING CARE PLACEMENTS,LD COMMISSIONING,Third Party Payments,,Revenue, 
Walsall Council,http://opendatacommunities.org/id/metropolitan-district-council/walsall,WC67-,WC67-228,30/04/2016,Social Care & Inclusion,REDACTED,11/04/2016,440.00,76422-DIRECT PAYMENTS TO SOCIAL SERVICES CLIENTS,LD COMMISSIONING,Transfer Payments,,Revenue,Y
Walsall Council,http://opendatacommunities.org/id/metropolitan-district-council/walsall,WC67-,WC67-229,30/04/2016,Social Care & Inclusion,REDACTED,08/04/2016,"1,337.64",73374-SUPPORTED & OTHER ACCOMMODATION,LD COMMISSIONING,Third Party Payments,,Revenue,Y
Walsall Council,http://opendatacommunities.org/id/metropolitan-district-council/walsall,WC67-,WC67-230,30/04/2016,Social Care & Inclusion,REDACTED,08/04/2016,"1,597.60",73374-SUPPORTED & OTHER ACCOMMODATION,LD COMMISSIONING,Third Party Payments,,Revenue,Y
Walsall Council,http://opendatacommunities.org/id/metropolitan-district-council/walsall,WC67-,WC67-231,30/04/2016,Social Care & Inclusion,REDACTED,11/04/2016,"1,294.80",76422-DIRECT PAYMENTS TO SOCIAL SERVICES CLIENTS,OP COMMISSIONING,Transfer Payments,,Revenue,Y
Walsall Council,http://opendatacommunities.org/id/metropolitan-district-council/walsall,WC67-,WC67-232,30/04/2016,Social Care & Inclusion,REDACTED,11/04/2016,697.00,76422-DIRECT PAYMENTS TO SOCIAL SERVICES CLIENTS,OP COMMISSIONING,Transfer Payments,,Revenue,Y
Walsall Council,http://opendatacommunities.org/id/metropolitan-district-council/walsall,WC67-,WC67-233,30/04/2016,Social Care & Inclusion,BRIDGEWOOD HEALTH CARE LTD,19/04/2016,"2,166.11",73373-RESIDENTIAL & NURSING CARE PLACEMENTS,YADS COMMISSIONING,Third Party Payments,,Revenue, 
Walsall Council,http://opendatacommunities.org/id/metropolitan-district-council/walsall,WC67-,WC67-234,30/04/2016,Social Care & Inclusion,BRIDGEWOOD HEALTH CARE LTD,19/04/2016,"3,347.61",73373-RESIDENTIAL & NURSING CARE PLACEMENTS,YADS COMMISSIONING,Third Party Payments,,Revenue, 
Walsall Council,http://opendatacommunities.org/id/metropolitan-district-council/walsall,WC67-,WC67-235,30/04/2016,Social Care & Inclusion,REDACTED,11/04/2016,"1,445.00",76422-DIRECT PAYMENTS TO SOCIAL SERVICES CLIENTS,LD COMMISSIONING,Transfer Payments,,Revenue,Y
Walsall Council,http://opendatacommunities.org/id/metropolitan-district-council/walsall,WC67-,WC67-236,30/04/2016,Social Care & Inclusion,BT REDCARE,25/04/2016,"26,968.60",63601-COSTS (NOT INTERNAL RECHARGES)-TELEPHONES,CCTV SD,Supplies & Services,,Revenue, 
Walsall Council,http://opendatacommunities.org/id/metropolitan-district-council/walsall,WC67-,WC67-237,30/04/2016,Social Care & Inclusion,BT REDCARE,25/04/2016,"62,177.00",63601-COSTS (NOT INTERNAL RECHARGES)-TELEPHONES,CCTV SD,Supplies & Services,,Revenue, 
Walsall Council,http://opendatacommunities.org/id/metropolitan-district-council/walsall,WC67-,WC67-238,30/04/2016,Social Care & Inclusion,BUPA CARE HOMES (CFHCARE) LTD,05/04/2016,763.80,73373-RESIDENTIAL & NURSING CARE PLACEMENTS,OP COMMISSIONING,Third Party Payments,,Revenue, 
Walsall Council,http://opendatacommunities.org/id/metropolitan-district-council/walsall,WC67-,WC67-239,30/04/2016,Social Care & Inclusion,BUPA CARE HOMES (CFHCARE) LTD,05/04/2016,763.80,73373-RESIDENTIAL & NURSING CARE PLACEMENTS,OP COMMISSIONING,Third Party Payments,,Revenue, 
Walsall Council,http://opendatacommunities.org/id/metropolitan-district-council/walsall,WC67-,WC67-240,30/04/2016,Social Care & Inclusion,BUPA CARE HOMES (CFHCARE) LTD,05/04/2016,877.84,73373-RESIDENTIAL & NURSING CARE PLACEMENTS,MH COMMISSIONING,Third Party Payments,,Revenue, 
Walsall Council,http://opendatacommunities.org/id/metropolitan-district-council/walsall,WC67-,WC67-241,30/04/2016,Social Care & Inclusion,BUPA CARE HOMES (CFHCARE) LTD,05/04/2016,877.84,73373-RESIDENTIAL & NURSING CARE PLACEMENTS,MH COMMISSIONING,Third Party Payments,,Revenue, 
Walsall Council,http://opendatacommunities.org/id/metropolitan-district-council/walsall,WC67-,WC67-242,30/04/2016,Social Care & Inclusion,BUPA CARE HOMES (CFHCARE) LTD,05/04/2016,"1,564.90",73373-RESIDENTIAL & NURSING CARE PLACEMENTS,OP COMMISSIONING,Third Party Payments,,Revenue, 
Walsall Council,http://opendatacommunities.org/id/metropolitan-district-council/walsall,WC67-,WC67-243,30/04/2016,Social Care & Inclusion,BUPA CARE HOMES (CFHCARE) LTD,05/04/2016,"1,564.90",73373-RESIDENTIAL & NURSING CARE PLACEMENTS,OP COMMISSIONING,Third Party Payments,,Revenue, 
Walsall Council,http://opendatacommunities.org/id/metropolitan-district-council/walsall,WC67-,WC67-244,30/04/2016,Social Care & Inclusion,BUSH HOME LTD,26/04/2016,392.16,73373-RESIDENTIAL & NURSING CARE PLACEMENTS,OP COMMISSIONING,Third Party Payments,,Revenue, 
Walsall Council,http://opendatacommunities.org/id/metropolitan-district-council/walsall,WC67-,WC67-245,30/04/2016,Social Care & Inclusion,BUSH HOME LTD,26/04/2016,730.20,73373-RESIDENTIAL & NURSING CARE PLACEMENTS,OP COMMISSIONING,Third Party Payments,,Revenue, 
Walsall Council,http://opendatacommunities.org/id/metropolitan-district-council/walsall,WC67-,WC67-246,30/04/2016,Social Care & Inclusion,BUSH HOME LTD,26/04/2016,767.06,73373-RESIDENTIAL & NURSING CARE PLACEMENTS,OP COMMISSIONING,Third Party Payments,,Revenue, 
Walsall Council,http://opendatacommunities.org/id/metropolitan-district-council/walsall,WC67-,WC67-247,30/04/2016,Social Care & Inclusion,BUSH HOME LTD,26/04/2016,767.06,73373-RESIDENTIAL & NURSING CARE PLACEMENTS,OP COMMISSIONING,Third Party Payments,,Revenue, 
Walsall Council,http://opendatacommunities.org/id/metropolitan-district-council/walsall,WC67-,WC67-248,30/04/2016,Social Care & Inclusion,BUSH HOME LTD,26/04/2016,821.85,73373-RESIDENTIAL & NURSING CARE PLACEMENTS,OP COMMISSIONING,Third Party Payments,,Revenue, 
Walsall Council,http://opendatacommunities.org/id/metropolitan-district-council/walsall,WC67-,WC67-249,30/04/2016,Social Care & Inclusion,BUSH HOME LTD,05/04/2016,"1,277.97",73373-RESIDENTIAL & NURSING CARE PLACEMENTS,OP COMMISSIONING,Third Party Payments,,Revenue, 
Walsall Council,http://opendatacommunities.org/id/metropolitan-district-council/walsall,WC67-,WC67-250,30/04/2016,Social Care & Inclusion,BUSH HOME LTD,05/04/2016,"1,279.92",73373-RESIDENTIAL & NURSING CARE PLACEMENTS,OP COMMISSIONING,Third Party Payments,,Revenue, 
Walsall Council,http://opendatacommunities.org/id/metropolitan-district-council/walsall,WC67-,WC67-251,30/04/2016,Social Care & Inclusion,BUSH HOME LTD,05/04/2016,"1,279.92",73373-RESIDENTIAL & NURSING CARE PLACEMENTS,OP COMMISSIONING,Third Party Payments,,Revenue, 
Walsall Council,http://opendatacommunities.org/id/metropolitan-district-council/walsall,WC67-,WC67-252,30/04/2016,Social Care & Inclusion,BUSH HOME LTD,05/04/2016,"1,279.92",73373-RESIDENTIAL & NURSING CARE PLACEMENTS,OP COMMISSIONING,Third Party Payments,,Revenue, 
Walsall Council,http://opendatacommunities.org/id/metropolitan-district-council/walsall,WC67-,WC67-253,30/04/2016,Social Care & Inclusion,BUSH HOME LTD,05/04/2016,"1,279.92",73373-RESIDENTIAL & NURSING CARE PLACEMENTS,OP COMMISSIONING,Third Party Payments,,Revenue, 
Walsall Council,http://opendatacommunities.org/id/metropolitan-district-council/walsall,WC67-,WC67-254,30/04/2016,Social Care & Inclusion,BUSH HOME LTD,13/04/2016,"1,279.92",73373-RESIDENTIAL & NURSING CARE PLACEMENTS,OP COMMISSIONING,Third Party Payments,,Revenue, 
Walsall Council,http://opendatacommunities.org/id/metropolitan-district-council/walsall,WC67-,WC67-255,30/04/2016,Social Care & Inclusion,BUSH HOME LTD,05/04/2016,"1,344.55",73373-RESIDENTIAL & NURSING CARE PLACEMENTS,OP COMMISSIONING,Third Party Payments,,Revenue, 
Walsall Council,http://opendatacommunities.org/id/metropolitan-district-council/walsall,WC67-,WC67-256,30/04/2016,Social Care & Inclusion,BUSH HOME LTD,05/04/2016,"1,344.55",73373-RESIDENTIAL & NURSING CARE PLACEMENTS,OP COMMISSIONING,Third Party Payments,,Revenue, 
Walsall Council,http://opendatacommunities.org/id/metropolitan-district-council/walsall,WC67-,WC67-257,30/04/2016,Social Care & Inclusion,BUSH HOME LTD,05/04/2016,"1,344.55",73373-RESIDENTIAL & NURSING CARE PLACEMENTS,OP COMMISSIONING,Third Party Payments,,Revenue, 
Walsall Council,http://opendatacommunities.org/id/metropolitan-district-council/walsall,WC67-,WC67-258,30/04/2016,Social Care & Inclusion,BUSH HOME LTD,05/04/2016,"1,344.55",73373-RESIDENTIAL & NURSING CARE PLACEMENTS,MH COMMISSIONING,Third Party Payments,,Revenue, 
Walsall Council,http://opendatacommunities.org/id/metropolitan-district-council/walsall,WC67-,WC67-259,30/04/2016,Social Care & Inclusion,BUSH HOME LTD,05/04/2016,"1,344.55",73373-RESIDENTIAL & NURSING CARE PLACEMENTS,MH COMMISSIONING,Third Party Payments,,Revenue, 
Walsall Council,http://opendatacommunities.org/id/metropolitan-district-council/walsall,WC67-,WC67-260,30/04/2016,Social Care & Inclusion,BUSH HOME LTD,05/04/2016,"1,344.55",73373-RESIDENTIAL & NURSING CARE PLACEMENTS,OP COMMISSIONING,Third Party Payments,,Revenue, 
Walsall Council,http://opendatacommunities.org/id/metropolitan-district-council/walsall,WC67-,WC67-261,30/04/2016,Social Care & Inclusion,BUSH HOME LTD,05/04/2016,"1,344.55",73373-RESIDENTIAL & NURSING CARE PLACEMENTS,MH COMMISSIONING,Third Party Payments,,Revenue, 
Walsall Council,http://opendatacommunities.org/id/metropolitan-district-council/walsall,WC67-,WC67-262,30/04/2016,Social Care & Inclusion,BUSH HOME LTD,05/04/2016,"1,344.55",73373-RESIDENTIAL & NURSING CARE PLACEMENTS,OP COMMISSIONING,Third Party Payments,,Revenue, 
Walsall Council,http://opendatacommunities.org/id/metropolitan-district-council/walsall,WC67-,WC67-263,30/04/2016,Social Care & Inclusion,BUSH HOME LTD,05/04/2016,"1,344.55",73373-RESIDENTIAL & NURSING CARE PLACEMENTS,OP COMMISSIONING,Third Party Payments,,Revenue, 
Walsall Council,http://opendatacommunities.org/id/metropolitan-district-council/walsall,WC67-,WC67-264,30/04/2016,Social Care & Inclusion,BUSH HOME LTD,05/04/2016,"1,344.55",73373-RESIDENTIAL & NURSING CARE PLACEMENTS,OP COMMISSIONING,Third Party Payments,,Revenue, 
Walsall Council,http://opendatacommunities.org/id/metropolitan-district-council/walsall,WC67-,WC67-265,30/04/2016,Social Care & Inclusion,BUSH HOME LTD,05/04/2016,"1,344.57",73373-RESIDENTIAL & NURSING CARE PLACEMENTS,MH COMMISSIONING,Third Party Payments,,Revenue, 
Walsall Council,http://opendatacommunities.org/id/metropolitan-district-council/walsall,WC67-,WC67-266,30/04/2016,Social Care & Inclusion,BUSH HOME LTD,05/04/2016,"1,365.12",73373-RESIDENTIAL & NURSING CARE PLACEMENTS,OP COMMISSIONING,Third Party Payments,,Revenue, 
Walsall Council,http://opendatacommunities.org/id/metropolitan-district-council/walsall,WC67-,WC67-267,30/04/2016,Social Care & Inclusion,BUSH HOME LTD,26/04/2016,"1,493.24",73373-RESIDENTIAL & NURSING CARE PLACEMENTS,OP COMMISSIONING,Third Party Payments,,Revenue, 
Walsall Council,http://opendatacommunities.org/id/metropolitan-district-council/walsall,WC67-,WC67-268,30/04/2016,Social Care & Inclusion,BUSH HOME LTD,26/04/2016,"1,568.64",73373-RESIDENTIAL & NURSING CARE PLACEMENTS,OP COMMISSIONING,Third Party Payments,,Revenue, 
Walsall Council,http://opendatacommunities.org/id/metropolitan-district-council/walsall,WC67-,WC67-269,30/04/2016,Social Care & Inclusion,BUSH HOME LTD,26/04/2016,"1,568.64",73373-RESIDENTIAL & NURSING CARE PLACEMENTS,OP COMMISSIONING,Third Party Payments,,Revenue, 
Walsall Council,http://opendatacommunities.org/id/metropolitan-district-council/walsall,WC67-,WC67-270,30/04/2016,Social Care & Inclusion,BUSH HOME LTD,26/04/2016,"1,568.64",73373-RESIDENTIAL & NURSING CARE PLACEMENTS,OP COMMISSIONING,Third Party Payments,,Revenue, 
Walsall Council,http://opendatacommunities.org/id/metropolitan-district-council/walsall,WC67-,WC67-271,30/04/2016,Social Care & Inclusion,BUSH HOME LTD,26/04/2016,"1,568.64",73373-RESIDENTIAL & NURSING CARE PLACEMENTS,OP COMMISSIONING,Third Party Payments,,Revenue, 
Walsall Council,http://opendatacommunities.org/id/metropolitan-district-council/walsall,WC67-,WC67-272,30/04/2016,Social Care & Inclusion,BUSH HOME LTD,26/04/2016,"1,593.89",73373-RESIDENTIAL & NURSING CARE PLACEMENTS,OP COMMISSIONING,Third Party Payments,,Revenue, 
Walsall Council,http://opendatacommunities.org/id/metropolitan-district-council/walsall,WC67-,WC67-273,30/04/2016,Social Care & Inclusion,C & V ORCHARD MANOR LTD,13/04/2016,479.97,73373-RESIDENTIAL & NURSING CARE PLACEMENTS,OP COMMISSIONING,Third Party Payments,,Revenue, 
Walsall Council,http://opendatacommunities.org/id/metropolitan-district-council/walsall,WC67-,WC67-274,30/04/2016,Social Care & Inclusion,C & V ORCHARD MANOR LTD,13/04/2016,"1,472.16",73373-RESIDENTIAL & NURSING CARE PLACEMENTS,LD COMMISSIONING,Third Party Payments,,Revenue, 
Walsall Council,http://opendatacommunities.org/id/metropolitan-district-council/walsall,WC67-,WC67-275,30/04/2016,Social Care & Inclusion,C & V ORCHARD MANOR LTD,13/04/2016,"1,472.16",73373-RESIDENTIAL & NURSING CARE PLACEMENTS,OP COMMISSIONING,Third Party Payments,,Revenue, 
Walsall Council,http://opendatacommunities.org/id/metropolitan-district-council/walsall,WC67-,WC67-276,30/04/2016,Social Care & Inclusion,C & V ORCHARD MANOR LTD,13/04/2016,"1,493.24",73373-RESIDENTIAL & NURSING CARE PLACEMENTS,OP COMMISSIONING,Third Party Payments,,Revenue, 
Walsall Council,http://opendatacommunities.org/id/metropolitan-district-council/walsall,WC67-,WC67-277,30/04/2016,Social Care & Inclusion,C & V ORCHARD MANOR LTD,26/04/2016,"1,493.24",73373-RESIDENTIAL & NURSING CARE PLACEMENTS,OP COMMISSIONING,Third Party Payments,,Revenue, 
Walsall Council,http://opendatacommunities.org/id/metropolitan-district-council/walsall,WC67-,WC67-278,30/04/2016,Social Care & Inclusion,C & V ORCHARD MANOR LTD,13/04/2016,"1,493.32",73373-RESIDENTIAL & NURSING CARE PLACEMENTS,LD COMMISSIONING,Third Party Payments,,Revenue, 
Walsall Council,http://opendatacommunities.org/id/metropolitan-district-council/walsall,WC67-,WC67-279,30/04/2016,Social Care & Inclusion,C & V ORCHARD MANOR LTD,13/04/2016,"1,493.32",73373-RESIDENTIAL & NURSING CARE PLACEMENTS,OP COMMISSIONING,Third Party Payments,,Revenue, 
Walsall Council,http://opendatacommunities.org/id/metropolitan-district-council/walsall,WC67-,WC67-280,30/04/2016,Social Care & Inclusion,C & V ORCHARD MANOR LTD,13/04/2016,"1,566.20",73373-RESIDENTIAL & NURSING CARE PLACEMENTS,OP COMMISSIONING,Third Party Payments,,Revenue, 
Walsall Council,http://opendatacommunities.org/id/metropolitan-district-council/walsall,WC67-,WC67-281,30/04/2016,Social Care & Inclusion,C & V ORCHARD MANOR LTD,13/04/2016,"1,568.60",73373-RESIDENTIAL & NURSING CARE PLACEMENTS,OP COMMISSIONING,Third Party Payments,,Revenue, 
Walsall Council,http://opendatacommunities.org/id/metropolitan-district-council/walsall,WC67-,WC67-282,30/04/2016,Social Care & Inclusion,C & V ORCHARD MANOR LTD,13/04/2016,"1,568.64",73373-RESIDENTIAL & NURSING CARE PLACEMENTS,OP COMMISSIONING,Third Party Payments,,Revenue, 
Walsall Council,http://opendatacommunities.org/id/metropolitan-district-council/walsall,WC67-,WC67-283,30/04/2016,Social Care & Inclusion,C & V ORCHARD MANOR LTD,13/04/2016,"1,568.64",73373-RESIDENTIAL & NURSING CARE PLACEMENTS,MH COMMISSIONING,Third Party Payments,,Revenue, 
Walsall Council,http://opendatacommunities.org/id/metropolitan-district-council/walsall,WC67-,WC67-284,30/04/2016,Social Care & Inclusion,C & V ORCHARD MANOR LTD,13/04/2016,"1,568.64",73373-RESIDENTIAL & NURSING CARE PLACEMENTS,OP COMMISSIONING,Third Party Payments,,Revenue, 
Walsall Council,http://opendatacommunities.org/id/metropolitan-district-council/walsall,WC67-,WC67-285,30/04/2016,Social Care & Inclusion,C & V ORCHARD MANOR LTD,26/04/2016,"4,537.85",73373-RESIDENTIAL & NURSING CARE PLACEMENTS,MH COMMISSIONING,Third Party Payments,,Revenue, 
Walsall Council,http://opendatacommunities.org/id/metropolitan-district-council/walsall,WC67-,WC67-286,30/04/2016,Social Care & Inclusion,C & V ORCHARD RESIDENTIAL LTD,26/04/2016,"1,464.60",73373-RESIDENTIAL & NURSING CARE PLACEMENTS,OP COMMISSIONING,Third Party Payments,,Revenue, 
Walsall Council,http://opendatacommunities.org/id/metropolitan-district-council/walsall,WC67-,WC67-287,30/04/2016,Social Care & Inclusion,C & V ORCHARD RESIDENTIAL LTD,13/04/2016,"1,493.24",73373-RESIDENTIAL & NURSING CARE PLACEMENTS,OP COMMISSIONING,Third Party Payments,,Revenue, 
Walsall Council,http://opendatacommunities.org/id/metropolitan-district-council/walsall,WC67-,WC67-288,30/04/2016,Social Care & Inclusion,C & V ORCHARD RESIDENTIAL LTD,13/04/2016,"1,493.24",73373-RESIDENTIAL & NURSING CARE PLACEMENTS,OP COMMISSIONING,Third Party Payments,,Revenue, 
Walsall Council,http://opendatacommunities.org/id/metropolitan-district-council/walsall,WC67-,WC67-289,30/04/2016,Social Care & Inclusion,C & V ORCHARD RESIDENTIAL LTD,13/04/2016,"1,493.24",73373-RESIDENTIAL & NURSING CARE PLACEMENTS,OP COMMISSIONING,Third Party Payments,,Revenue, 
Walsall Council,http://opendatacommunities.org/id/metropolitan-district-council/walsall,WC67-,WC67-290,30/04/2016,Social Care & Inclusion,C & V ORCHARD RESIDENTIAL LTD,26/04/2016,"1,512.62",73373-RESIDENTIAL & NURSING CARE PLACEMENTS,OP COMMISSIONING,Third Party Payments,,Revenue, 
Walsall Council,http://opendatacommunities.org/id/metropolitan-district-council/walsall,WC67-,WC67-291,30/04/2016,Social Care & Inclusion,C & V ORCHARD RESIDENTIAL LTD,26/04/2016,"1,560.77",73373-RESIDENTIAL & NURSING CARE PLACEMENTS,OP COMMISSIONING,Third Party Payments,,Revenue, 
Walsall Council,http://opendatacommunities.org/id/metropolitan-district-council/walsall,WC67-,WC67-292,30/04/2016,Social Care & Inclusion,C & V ORCHARD RESIDENTIAL LTD,05/04/2016,"1,566.16",73373-RESIDENTIAL & NURSING CARE PLACEMENTS,OP COMMISSIONING,Third Party Payments,,Revenue, 
Walsall Council,http://opendatacommunities.org/id/metropolitan-district-council/walsall,WC67-,WC67-293,30/04/2016,Social Care & Inclusion,C & V ORCHARD RESIDENTIAL LTD,13/04/2016,"1,566.16",73373-RESIDENTIAL & NURSING CARE PLACEMENTS,OP COMMISSIONING,Third Party Payments,,Revenue, 
Walsall Council,http://opendatacommunities.org/id/metropolitan-district-council/walsall,WC67-,WC67-294,30/04/2016,Social Care & Inclusion,C & V ORCHARD RESIDENTIAL LTD,13/04/2016,"1,566.20",73373-RESIDENTIAL & NURSING CARE PLACEMENTS,OP COMMISSIONING,Third Party Payments,,Revenue, 
Walsall Council,http://opendatacommunities.org/id/metropolitan-district-council/walsall,WC67-,WC67-295,30/04/2016,Social Care & Inclusion,C & V ORCHARD RESIDENTIAL LTD,13/04/2016,"1,566.20",73373-RESIDENTIAL & NURSING CARE PLACEMENTS,OP COMMISSIONING,Third Party Payments,,Revenue, 
Walsall Council,http://opendatacommunities.org/id/metropolitan-district-council/walsall,WC67-,WC67-296,30/04/2016,Social Care & Inclusion,C & V ORCHARD RESIDENTIAL LTD,13/04/2016,"1,566.20",73373-RESIDENTIAL & NURSING CARE PLACEMENTS,OP COMMISSIONING,Third Party Payments,,Revenue, 
Walsall Council,http://opendatacommunities.org/id/metropolitan-district-council/walsall,WC67-,WC67-297,30/04/2016,Social Care & Inclusion,C & V ORCHARD RESIDENTIAL LTD,13/04/2016,"1,566.20",73373-RESIDENTIAL & NURSING CARE PLACEMENTS,OP COMMISSIONING,Third Party Payments,,Revenue, 
Walsall Council,http://opendatacommunities.org/id/metropolitan-district-council/walsall,WC67-,WC67-298,30/04/2016,Social Care & Inclusion,C & V ORCHARD RESIDENTIAL LTD,13/04/2016,"1,568.60",73373-RESIDENTIAL & NURSING CARE PLACEMENTS,OP COMMISSIONING,Third Party Payments,,Revenue, 
Walsall Council,http://opendatacommunities.org/id/metropolitan-district-council/walsall,WC67-,WC67-299,30/04/2016,Social Care & Inclusion,C & V ORCHARD RESIDENTIAL LTD,13/04/2016,"1,568.60",73373-RESIDENTIAL & NURSING CARE PLACEMENTS,OP COMMISSIONING,Third Party Payments,,Revenue, 
Walsall Council,http://opendatacommunities.org/id/metropolitan-district-council/walsall,WC67-,WC67-300,30/04/2016,Social Care & Inclusion,C & V ORCHARD RESIDENTIAL LTD,13/04/2016,"1,568.60",73373-RESIDENTIAL & NURSING CARE PLACEMENTS,OP COMMISSIONING,Third Party Payments,,Revenue, 
Walsall Council,http://opendatacommunities.org/id/metropolitan-district-council/walsall,WC67-,WC67-301,30/04/2016,Social Care & Inclusion,C & V ORCHARD RESIDENTIAL LTD,13/04/2016,"1,568.60",73373-RESIDENTIAL & NURSING CARE PLACEMENTS,OP COMMISSIONING,Third Party Payments,,Revenue, 
Walsall Council,http://opendatacommunities.org/id/metropolitan-district-council/walsall,WC67-,WC67-302,30/04/2016,Social Care & Inclusion,C & V ORCHARD RESIDENTIAL LTD,13/04/2016,"1,568.64",73373-RESIDENTIAL & NURSING CARE PLACEMENTS,OP COMMISSIONING,Third Party Payments,,Revenue, 
Walsall Council,http://opendatacommunities.org/id/metropolitan-district-council/walsall,WC67-,WC67-303,30/04/2016,Social Care & Inclusion,C & V ORCHARD RESIDENTIAL LTD,13/04/2016,"1,568.64",73373-RESIDENTIAL & NURSING CARE PLACEMENTS,OP COMMISSIONING,Third Party Payments,,Revenue, 
Walsall Council,http://opendatacommunities.org/id/metropolitan-district-council/walsall,WC67-,WC67-304,30/04/2016,Social Care & Inclusion,C & V ORCHARD RESIDENTIAL LTD,26/04/2016,"1,568.64",73373-RESIDENTIAL & NURSING CARE PLACEMENTS,OP COMMISSIONING,Third Party Payments,,Revenue, 
Walsall Council,http://opendatacommunities.org/id/metropolitan-district-council/walsall,WC67-,WC67-305,30/04/2016,Social Care & Inclusion,C & V ORCHARD RESIDENTIAL LTD,26/04/2016,"1,568.64",73373-RESIDENTIAL & NURSING CARE PLACEMENTS,OP COMMISSIONING,Third Party Payments,,Revenue, 
Walsall Council,http://opendatacommunities.org/id/metropolitan-district-council/walsall,WC67-,WC67-306,30/04/2016,Social Care & Inclusion,C & V ORCHARD RESIDENTIAL LTD,26/04/2016,"2,719.83",73373-RESIDENTIAL & NURSING CARE PLACEMENTS,OP COMMISSIONING,Third Party Payments,,Revenue, 
Walsall Council,http://opendatacommunities.org/id/metropolitan-district-council/walsall,WC67-,WC67-307,30/04/2016,Social Care & Inclusion,C & V ORCHARD RESIDENTIAL LTD,13/04/2016,"3,473.41",73373-RESIDENTIAL & NURSING CARE PLACEMENTS,OP COMMISSIONING,Third Party Payments,,Revenue, 
Walsall Council,http://opendatacommunities.org/id/metropolitan-district-council/walsall,WC67-,WC67-308,30/04/2016,Social Care & Inclusion,CALDMORE AREA HOUSING ASS LTD,19/04/2016,271.40,73373-RESIDENTIAL & NURSING CARE PLACEMENTS,MH COMMISSIONING,Third Party Payments,,Revenue, 
Walsall Council,http://opendatacommunities.org/id/metropolitan-district-council/walsall,WC67-,WC67-309,30/04/2016,Social Care & Inclusion,CALDMORE AREA HOUSING ASS LTD,20/04/2016,376.96,73372-DOMICILIARY CARE,MH COMMISSIONING,Third Party Payments,,Revenue, 
Walsall Council,http://opendatacommunities.org/id/metropolitan-district-council/walsall,WC67-,WC67-310,30/04/2016,Social Care & Inclusion,CALDMORE AREA HOUSING ASS LTD,20/04/2016,515.00,73374-SUPPORTED & OTHER ACCOMMODATION,MH COMMISSIONING,Third Party Payments,,Revenue, 
Walsall Council,http://opendatacommunities.org/id/metropolitan-district-council/walsall,WC67-,WC67-311,30/04/2016,Social Care & Inclusion,CALDMORE AREA HOUSING ASS LTD,20/04/2016,515.00,73374-SUPPORTED & OTHER ACCOMMODATION,MH COMMISSIONING,Third Party Payments,,Revenue, 
Walsall Council,http://opendatacommunities.org/id/metropolitan-district-council/walsall,WC67-,WC67-312,30/04/2016,Social Care & Inclusion,CALDMORE AREA HOUSING ASS LTD,20/04/2016,515.00,73374-SUPPORTED & OTHER ACCOMMODATION,MH COMMISSIONING,Third Party Payments,,Revenue, 
Walsall Council,http://opendatacommunities.org/id/metropolitan-district-council/walsall,WC67-,WC67-313,30/04/2016,Social Care & Inclusion,CALDMORE AREA HOUSING ASS LTD,20/04/2016,519.48,73374-SUPPORTED & OTHER ACCOMMODATION,MH COMMISSIONING,Third Party Payments,,Revenue, 
Walsall Council,http://opendatacommunities.org/id/metropolitan-district-council/walsall,WC67-,WC67-314,30/04/2016,Social Care & Inclusion,CALDMORE AREA HOUSING ASS LTD,20/04/2016,525.14,73374-SUPPORTED & OTHER ACCOMMODATION,MH COMMISSIONING,Third Party Payments,,Revenue, 
Walsall Council,http://opendatacommunities.org/id/metropolitan-district-council/walsall,WC67-,WC67-315,30/04/2016,Social Care & Inclusion,CALDMORE AREA HOUSING ASS LTD,20/04/2016,533.64,73374-SUPPORTED & OTHER ACCOMMODATION,MH COMMISSIONING,Third Party Payments,,Revenue, 
Walsall Council,http://opendatacommunities.org/id/metropolitan-district-council/walsall,WC67-,WC67-316,30/04/2016,Social Care & Inclusion,CALDMORE AREA HOUSING ASS LTD,20/04/2016,534.24,73374-SUPPORTED & OTHER ACCOMMODATION,MH COMMISSIONING,Third Party Payments,,Revenue, 
Walsall Council,http://opendatacommunities.org/id/metropolitan-district-council/walsall,WC67-,WC67-317,30/04/2016,Social Care & Inclusion,CALDMORE AREA HOUSING ASS LTD,05/04/2016,633.26,73373-RESIDENTIAL & NURSING CARE PLACEMENTS,MH COMMISSIONING,Third Party Payments,,Revenue, 
Walsall Council,http://opendatacommunities.org/id/metropolitan-district-council/walsall,WC67-,WC67-318,30/04/2016,Social Care & Inclusion,CALDMORE AREA HOUSING ASS LTD,20/04/2016,636.12,73374-SUPPORTED & OTHER ACCOMMODATION,OP COMMISSIONING,Third Party Payments,,Revenue, 
Walsall Council,http://opendatacommunities.org/id/metropolitan-district-council/walsall,WC67-,WC67-319,30/04/2016,Social Care & Inclusion,CALDMORE AREA HOUSING ASS LTD,20/04/2016,963.39,73374-SUPPORTED & OTHER ACCOMMODATION,MH COMMISSIONING,Third Party Payments,,Revenue, 
Walsall Council,http://opendatacommunities.org/id/metropolitan-district-council/walsall,WC67-,WC67-320,30/04/2016,Social Care & Inclusion,CALDMORE AREA HOUSING ASS LTD,20/04/2016,982.28,73374-SUPPORTED & OTHER ACCOMMODATION,MH COMMISSIONING,Third Party Payments,,Revenue, 
Walsall Council,http://opendatacommunities.org/id/metropolitan-district-council/walsall,WC67-,WC67-321,30/04/2016,Social Care & Inclusion,CALDMORE AREA HOUSING ASS LTD,04/04/2016,"1,095.62",73374-SUPPORTED & OTHER ACCOMMODATION,MH COMMISSIONING,Third Party Payments,,Revenue, 
Walsall Council,http://opendatacommunities.org/id/metropolitan-district-council/walsall,WC67-,WC67-322,30/04/2016,Social Care & Inclusion,CALDMORE AREA HOUSING ASS LTD,20/04/2016,"1,142.85",73374-SUPPORTED & OTHER ACCOMMODATION,MH COMMISSIONING,Third Party Payments,,Revenue, 
Walsall Council,http://opendatacommunities.org/id/metropolitan-district-council/walsall,WC67-,WC67-323,30/04/2016,Social Care & Inclusion,CALDMORE AREA HOUSING ASS LTD,20/04/2016,"1,416.75",73374-SUPPORTED & OTHER ACCOMMODATION,MH COMMISSIONING,Third Party Payments,,Revenue, 
Walsall Council,http://opendatacommunities.org/id/metropolitan-district-council/walsall,WC67-,WC67-324,30/04/2016,Social Care & Inclusion,CALDMORE AREA HOUSING ASS LTD,19/04/2016,"2,261.64",73373-RESIDENTIAL & NURSING CARE PLACEMENTS,MH COMMISSIONING,Third Party Payments,,Revenue, 
Walsall Council,http://opendatacommunities.org/id/metropolitan-district-council/walsall,WC67-,WC67-325,30/04/2016,Social Care & Inclusion,CALDMORE AREA HOUSING ASS LTD,19/04/2016,"2,261.64",73373-RESIDENTIAL & NURSING CARE PLACEMENTS,MH COMMISSIONING,Third Party Payments,,Revenue, 
Walsall Council,http://opendatacommunities.org/id/metropolitan-district-council/walsall,WC67-,WC67-326,30/04/2016,Social Care & Inclusion,CALDMORE AREA HOUSING ASS LTD,19/04/2016,"2,261.64",73373-RESIDENTIAL & NURSING CARE PLACEMENTS,MH COMMISSIONING,Third Party Payments,,Revenue, 
Walsall Council,http://opendatacommunities.org/id/metropolitan-district-council/walsall,WC67-,WC67-327,30/04/2016,Social Care & Inclusion,CALDMORE AREA HOUSING ASS LTD,19/04/2016,"2,261.64",73373-RESIDENTIAL & NURSING CARE PLACEMENTS,MH COMMISSIONING,Third Party Payments,,Revenue, 
Walsall Council,http://opendatacommunities.org/id/metropolitan-district-council/walsall,WC67-,WC67-328,30/04/2016,Social Care & Inclusion,CALDMORE AREA HOUSING ASS LTD,19/04/2016,"2,261.64",73373-RESIDENTIAL & NURSING CARE PLACEMENTS,MH COMMISSIONING,Third Party Payments,,Revenue, 
Walsall Council,http://opendatacommunities.org/id/metropolitan-district-council/walsall,WC67-,WC67-329,30/04/2016,Social Care & Inclusion,CALDMORE AREA HOUSING ASS LTD,19/04/2016,"2,261.64",73373-RESIDENTIAL & NURSING CARE PLACEMENTS,MH COMMISSIONING,Third Party Payments,,Revenue, 
Walsall Council,http://opendatacommunities.org/id/metropolitan-district-council/walsall,WC67-,WC67-330,30/04/2016,Social Care & Inclusion,CALDMORE AREA HOUSING ASS LTD,19/04/2016,"2,261.64",73373-RESIDENTIAL & NURSING CARE PLACEMENTS,MH COMMISSIONING,Third Party Payments,,Revenue, 
Walsall Council,http://opendatacommunities.org/id/metropolitan-district-council/walsall,WC67-,WC67-331,30/04/2016,Social Care & Inclusion,CALDMORE AREA HOUSING ASS LTD,19/04/2016,"2,261.64",73373-RESIDENTIAL & NURSING CARE PLACEMENTS,MH COMMISSIONING,Third Party Payments,,Revenue, 
Walsall Council,http://opendatacommunities.org/id/metropolitan-district-council/walsall,WC67-,WC67-332,30/04/2016,Social Care & Inclusion,CALDMORE AREA HOUSING ASS LTD,19/04/2016,"2,261.64",73373-RESIDENTIAL & NURSING CARE PLACEMENTS,MH COMMISSIONING,Third Party Payments,,Revenue, 
Walsall Council,http://opendatacommunities.org/id/metropolitan-district-council/walsall,WC67-,WC67-333,30/04/2016,Social Care & Inclusion,CALDMORE AREA HOUSING ASS LTD,19/04/2016,"2,261.64",73373-RESIDENTIAL & NURSING CARE PLACEMENTS,MH COMMISSIONING,Third Party Payments,,Revenue, 
Walsall Council,http://opendatacommunities.org/id/metropolitan-district-council/walsall,WC67-,WC67-334,30/04/2016,Social Care & Inclusion,CAMBIAN HEALTHCARE LTD,01/04/2016,336.90,73375-IN PATIENT BEDS,LD COMMISSIONING,Third Party Payments,,Revenue, 
Walsall Council,http://opendatacommunities.org/id/metropolitan-district-council/walsall,WC67-,WC67-335,30/04/2016,Social Care & Inclusion,CAMBIAN HEALTHCARE LTD,01/04/2016,"12,522.20",73375-IN PATIENT BEDS,LD COMMISSIONING,Third Party Payments,,Revenue, 
Walsall Council,http://opendatacommunities.org/id/metropolitan-district-council/walsall,WC67-,WC67-336,30/04/2016,Social Care & Inclusion,CAMBIAN HEALTHCARE LTD,01/04/2016,"12,954.00",73375-IN PATIENT BEDS,LD COMMISSIONING,Third Party Payments,,Revenue, 
Walsall Council,http://opendatacommunities.org/id/metropolitan-district-council/walsall,WC67-,WC67-337,30/04/2016,Social Care & Inclusion,CAMBIAN HEALTHCARE LTD,01/04/2016,"13,385.80",73375-IN PATIENT BEDS,LD COMMISSIONING,Third Party Payments,,Revenue, 
Walsall Council,http://opendatacommunities.org/id/metropolitan-district-council/walsall,WC67-,WC67-338,30/04/2016,Social Care & Inclusion,CAMBIAN HEALTHCARE LTD,01/04/2016,"31,521.40",73375-IN PATIENT BEDS,LD COMMISSIONING,Third Party Payments,,Revenue, 
Walsall Council,http://opendatacommunities.org/id/metropolitan-district-council/walsall,WC67-,WC67-339,30/04/2016,Social Care & Inclusion,REDACTED,11/04/2016,"3,600.00",76422-DIRECT PAYMENTS TO SOCIAL SERVICES CLIENTS,OP COMMISSIONING,Transfer Payments,,Revenue,Y
Walsall Council,http://opendatacommunities.org/id/metropolitan-district-council/walsall,WC67-,WC67-340,30/04/2016,Social Care & Inclusion,CARE & MANAGEMENT SERVICES LTD,19/04/2016,"5,934.26",73373-RESIDENTIAL & NURSING CARE PLACEMENTS,MH COMMISSIONING,Third Party Payments,,Revenue, 
Walsall Council,http://opendatacommunities.org/id/metropolitan-district-council/walsall,WC67-,WC67-341,30/04/2016,Social Care & Inclusion,CARE 2 U LIMITED,01/04/2016,859.02,73372-DOMICILIARY CARE,OP COMMISSIONING,Third Party Payments,,Revenue, 
Walsall Council,http://opendatacommunities.org/id/metropolitan-district-council/walsall,WC67-,WC67-342,30/04/2016,Social Care & Inclusion,CARE 2 U LIMITED,01/04/2016,"1,260.72",73372-DOMICILIARY CARE,OP COMMISSIONING,Third Party Payments,,Revenue, 
Walsall Council,http://opendatacommunities.org/id/metropolitan-district-council/walsall,WC67-,WC67-343,30/04/2016,Social Care & Inclusion,CARE 2 U LIMITED,01/04/2016,"1,260.72",73372-DOMICILIARY CARE,OP COMMISSIONING,Third Party Payments,,Revenue, 
Walsall Council,http://opendatacommunities.org/id/metropolitan-district-council/walsall,WC67-,WC67-344,30/04/2016,Social Care & Inclusion,CARE 2 U LIMITED,25/04/2016,"35,929.57",73372-DOMICILIARY CARE,OP COMMISSIONING,Third Party Payments,,Revenue, 
Walsall Council,http://opendatacommunities.org/id/metropolitan-district-council/walsall,WC67-,WC67-345,30/04/2016,Social Care & Inclusion,CARE AVENUES LTD,26/04/2016,"16,467.00",73372-DOMICILIARY CARE,OP COMMISSIONING,Third Party Payments,,Revenue, 
Walsall Council,http://opendatacommunities.org/id/metropolitan-district-council/walsall,WC67-,WC67-346,30/04/2016,Social Care & Inclusion,CARE FIRST MANAGEMENT SERVICES LTD,08/04/2016,780.00,73372-DOMICILIARY CARE,YADS COMMISSIONING,Third Party Payments,,Revenue, 
Walsall Council,http://opendatacommunities.org/id/metropolitan-district-council/walsall,WC67-,WC67-347,30/04/2016,Social Care & Inclusion,CARE SHOP,25/04/2016,364.00,60000-FURNITURE & EQUIPMENT,REABLEMENT TEAM - HOLLY BANK,Supplies & Services,,Revenue, 
Walsall Council,http://opendatacommunities.org/id/metropolitan-district-council/walsall,WC67-,WC67-348,30/04/2016,Social Care & Inclusion,CARE SHOP,14/04/2016,722.48,60539-CLEANING MATERIALS,REABLEMENT TEAM - HOLLY BANK,Supplies & Services,,Revenue, 
Walsall Council,http://opendatacommunities.org/id/metropolitan-district-council/walsall,WC67-,WC67-349,30/04/2016,Social Care & Inclusion,CARE SHOP,25/04/2016,854.80,60539-CLEANING MATERIALS,REABLEMENT TEAM - HOLLY BANK,Supplies & Services,,Revenue, 
Walsall Council,http://opendatacommunities.org/id/metropolitan-district-council/walsall,WC67-,WC67-350,30/04/2016,Social Care & Inclusion,CARETECH COMMUNITY SERVICE,25/04/2016,"1,171.37",73374-SUPPORTED & OTHER ACCOMMODATION,LD COMMISSIONING,Third Party Payments,,Revenue, 
Walsall Council,http://opendatacommunities.org/id/metropolitan-district-council/walsall,WC67-,WC67-351,30/04/2016,Social Care & Inclusion,CARETECH COMMUNITY SERVICE,25/04/2016,"4,885.71",73374-SUPPORTED & OTHER ACCOMMODATION,OP COMMISSIONING,Third Party Payments,,Revenue, 
Walsall Council,http://opendatacommunities.org/id/metropolitan-district-council/walsall,WC67-,WC67-352,30/04/2016,Social Care & Inclusion,CARETECH COMMUNITY SERVICE,05/04/2016,"51,148.88",73374-SUPPORTED & OTHER ACCOMMODATION,LD COMMISSIONING,Third Party Payments,,Revenue, 
Walsall Council,http://opendatacommunities.org/id/metropolitan-district-council/walsall,WC67-,WC67-353,30/04/2016,Social Care & Inclusion,CAREVIEW SERVICES LTD,13/04/2016,"6,583.36",73373-RESIDENTIAL & NURSING CARE PLACEMENTS,LD COMMISSIONING,Third Party Payments,,Revenue, 
Walsall Council,http://opendatacommunities.org/id/metropolitan-district-council/walsall,WC67-,WC67-354,30/04/2016,Social Care & Inclusion,CARING CARE LIMITED,25/04/2016,"59,202.00",73372-DOMICILIARY CARE,OP COMMISSIONING,Third Party Payments,,Revenue, 
Walsall Council,http://opendatacommunities.org/id/metropolitan-district-council/walsall,WC67-,WC67-355,30/04/2016,Social Care & Inclusion,CARING HANDS LIMITED,25/04/2016,"52,618.56",73372-DOMICILIARY CARE,OP COMMISSIONING,Third Party Payments,,Revenue, 
Walsall Council,http://opendatacommunities.org/id/metropolitan-district-council/walsall,WC67-,WC67-356,30/04/2016,Social Care & Inclusion,REDACTED,08/04/2016,980.65,73374-SUPPORTED & OTHER ACCOMMODATION,LD COMMISSIONING,Third Party Payments,,Revenue,Y
Walsall Council,http://opendatacommunities.org/id/metropolitan-district-council/walsall,WC67-,WC67-357,30/04/2016,Social Care & Inclusion,REDACTED,11/04/2016,"1,637.40",73372-DOMICILIARY CARE,LD COMMISSIONING,Third Party Payments,,Revenue,Y
Walsall Council,http://opendatacommunities.org/id/metropolitan-district-council/walsall,WC67-,WC67-358,30/04/2016,Social Care & Inclusion,REDACTED,11/04/2016,"1,637.40",73372-DOMICILIARY CARE,LD COMMISSIONING,Third Party Payments,,Revenue,Y
Walsall Council,http://opendatacommunities.org/id/metropolitan-district-council/walsall,WC67-,WC67-359,30/04/2016,Social Care & Inclusion,REDACTED,14/04/2016,"1,637.40",73374-SUPPORTED & OTHER ACCOMMODATION,YADS COMMISSIONING,Third Party Payments,,Revenue,Y
Walsall Council,http://opendatacommunities.org/id/metropolitan-district-council/walsall,WC67-,WC67-360,30/04/2016,Social Care & Inclusion,REDACTED,11/04/2016,450.00,76422-DIRECT PAYMENTS TO SOCIAL SERVICES CLIENTS,YADS COMMISSIONING,Transfer Payments,,Revenue,Y
Walsall Council,http://opendatacommunities.org/id/metropolitan-district-council/walsall,WC67-,WC67-361,30/04/2016,Social Care & Inclusion,REDACTED,11/04/2016,622.68,76422-DIRECT PAYMENTS TO SOCIAL SERVICES CLIENTS,LD COMMISSIONING,Transfer Payments,,Revenue,Y
Walsall Council,http://opendatacommunities.org/id/metropolitan-district-council/walsall,WC67-,WC67-362,30/04/2016,Social Care & Inclusion,REDACTED,11/04/2016,690.48,76422-DIRECT PAYMENTS TO SOCIAL SERVICES CLIENTS,MH COMMISSIONING,Transfer Payments,,Revenue,Y
Walsall Council,http://opendatacommunities.org/id/metropolitan-district-council/walsall,WC67-,WC67-363,30/04/2016,Social Care & Inclusion,REDACTED,11/04/2016,388.40,76422-DIRECT PAYMENTS TO SOCIAL SERVICES CLIENTS,LD COMMISSIONING,Transfer Payments,,Revenue,Y
Walsall Council,http://opendatacommunities.org/id/metropolitan-district-council/walsall,WC67-,WC67-364,30/04/2016,Social Care & Inclusion,CENTRO WMPTA,01/04/2016,"1,120.00",70000-SOCIAL SERVICES-FEES TO VOLUNTARY BODIES,YADS SLA,Third Party Payments,,Revenue, 
Walsall Council,http://opendatacommunities.org/id/metropolitan-district-council/walsall,WC67-,WC67-365,30/04/2016,Social Care & Inclusion,CHANDOS LODGE CARE HOME,19/04/2016,"1,668.72",73373-RESIDENTIAL & NURSING CARE PLACEMENTS,OP COMMISSIONING,Third Party Payments,,Revenue, 
Walsall Council,http://opendatacommunities.org/id/metropolitan-district-council/walsall,WC67-,WC67-366,30/04/2016,Social Care & Inclusion,REDACTED,11/04/2016,748.00,76422-DIRECT PAYMENTS TO SOCIAL SERVICES CLIENTS,YADS COMMISSIONING,Transfer Payments,,Revenue,Y
Walsall Council,http://opendatacommunities.org/id/metropolitan-district-council/walsall,WC67-,WC67-367,30/04/2016,Social Care & Inclusion,CHARMEND LTD,26/04/2016,"2,116.72",73373-RESIDENTIAL & NURSING CARE PLACEMENTS,OP COMMISSIONING,Third Party Payments,,Revenue, 
Walsall Council,http://opendatacommunities.org/id/metropolitan-district-council/walsall,WC67-,WC67-368,30/04/2016,Social Care & Inclusion,CHARMEND LTD,01/04/2016,"2,685.00",73373-RESIDENTIAL & NURSING CARE PLACEMENTS,OP COMMISSIONING,Third Party Payments,,Revenue, 
Walsall Council,http://opendatacommunities.org/id/metropolitan-district-council/walsall,WC67-,WC67-369,30/04/2016,Social Care & Inclusion,CHARMEND LTD,11/04/2016,"25,714.29",73019-PSE'S-PRIV CONTRACTOR FEES,TRANSITIONAL CARE SUPPORT TEAM,Third Party Payments,,Revenue, 
Walsall Council,http://opendatacommunities.org/id/metropolitan-district-council/walsall,WC67-,WC67-370,30/04/2016,Social Care & Inclusion,CHARTER CARE,25/04/2016,"38,298.78",73372-DOMICILIARY CARE,OP COMMISSIONING,Third Party Payments,,Revenue, 
Walsall Council,http://opendatacommunities.org/id/metropolitan-district-council/walsall,WC67-,WC67-371,30/04/2016,Social Care & Inclusion,CHASE HOUSE AND PARTNER,05/04/2016,324.69,73373-RESIDENTIAL & NURSING CARE PLACEMENTS,LD COMMISSIONING,Third Party Payments,,Revenue, 
Walsall Council,http://opendatacommunities.org/id/metropolitan-district-council/walsall,WC67-,WC67-372,30/04/2016,Social Care & Inclusion,CHASE HOUSE AND PARTNER,05/04/2016,325.40,73373-RESIDENTIAL & NURSING CARE PLACEMENTS,LD COMMISSIONING,Third Party Payments,,Revenue, 
Walsall Council,http://opendatacommunities.org/id/metropolitan-district-council/walsall,WC67-,WC67-373,30/04/2016,Social Care & Inclusion,CHASE HOUSE AND PARTNER,05/04/2016,333.22,73373-RESIDENTIAL & NURSING CARE PLACEMENTS,LD COMMISSIONING,Third Party Payments,,Revenue, 
Walsall Council,http://opendatacommunities.org/id/metropolitan-district-council/walsall,WC67-,WC67-374,30/04/2016,Social Care & Inclusion,CHASE HOUSE AND PARTNER,05/04/2016,347.19,73373-RESIDENTIAL & NURSING CARE PLACEMENTS,LD COMMISSIONING,Third Party Payments,,Revenue, 
Walsall Council,http://opendatacommunities.org/id/metropolitan-district-council/walsall,WC67-,WC67-375,30/04/2016,Social Care & Inclusion,CHASE HOUSE AND PARTNER,05/04/2016,"4,545.68",73373-RESIDENTIAL & NURSING CARE PLACEMENTS,LD COMMISSIONING,Third Party Payments,,Revenue, 
Walsall Council,http://opendatacommunities.org/id/metropolitan-district-council/walsall,WC67-,WC67-376,30/04/2016,Social Care & Inclusion,CHASE HOUSE AND PARTNER,19/04/2016,"4,545.68",73373-RESIDENTIAL & NURSING CARE PLACEMENTS,LD COMMISSIONING,Third Party Payments,,Revenue, 
Walsall Council,http://opendatacommunities.org/id/metropolitan-district-council/walsall,WC67-,WC67-377,30/04/2016,Social Care & Inclusion,CHASE HOUSE AND PARTNER,05/04/2016,"4,555.68",73373-RESIDENTIAL & NURSING CARE PLACEMENTS,LD COMMISSIONING,Third Party Payments,,Revenue, 
Walsall Council,http://opendatacommunities.org/id/metropolitan-district-council/walsall,WC67-,WC67-378,30/04/2016,Social Care & Inclusion,CHASE HOUSE AND PARTNER,26/04/2016,"4,555.68",73373-RESIDENTIAL & NURSING CARE PLACEMENTS,LD COMMISSIONING,Third Party Payments,,Revenue, 
Walsall Council,http://opendatacommunities.org/id/metropolitan-district-council/walsall,WC67-,WC67-379,30/04/2016,Social Care & Inclusion,CHASE HOUSE AND PARTNER,05/04/2016,"4,665.12",73373-RESIDENTIAL & NURSING CARE PLACEMENTS,LD COMMISSIONING,Third Party Payments,,Revenue, 
Walsall Council,http://opendatacommunities.org/id/metropolitan-district-council/walsall,WC67-,WC67-380,30/04/2016,Social Care & Inclusion,CHASE HOUSE AND PARTNER,19/04/2016,"4,665.12",73373-RESIDENTIAL & NURSING CARE PLACEMENTS,LD COMMISSIONING,Third Party Payments,,Revenue, 
Walsall Council,http://opendatacommunities.org/id/metropolitan-district-council/walsall,WC67-,WC67-381,30/04/2016,Social Care & Inclusion,CHASE HOUSE AND PARTNER,05/04/2016,"4,860.72",73373-RESIDENTIAL & NURSING CARE PLACEMENTS,LD COMMISSIONING,Third Party Payments,,Revenue, 
Walsall Council,http://opendatacommunities.org/id/metropolitan-district-council/walsall,WC67-,WC67-382,30/04/2016,Social Care & Inclusion,CHASE HOUSE AND PARTNER,26/04/2016,"4,860.72",73373-RESIDENTIAL & NURSING CARE PLACEMENTS,LD COMMISSIONING,Third Party Payments,,Revenue, 
Walsall Council,http://opendatacommunities.org/id/metropolitan-district-council/walsall,WC67-,WC67-383,30/04/2016,Social Care & Inclusion,CHERISH HOME CARE,14/04/2016,301.95,73372-DOMICILIARY CARE,OP COMMISSIONING,Third Party Payments,,Revenue, 
Walsall Council,http://opendatacommunities.org/id/metropolitan-district-council/walsall,WC67-,WC67-384,30/04/2016,Social Care & Inclusion,CHERISH HOME CARE,06/04/2016,336.00,73372-DOMICILIARY CARE,OP COMMISSIONING,Third Party Payments,,Revenue, 
Walsall Council,http://opendatacommunities.org/id/metropolitan-district-council/walsall,WC67-,WC67-385,30/04/2016,Social Care & Inclusion,CHERISH HOME CARE,06/04/2016,336.00,73372-DOMICILIARY CARE,OP COMMISSIONING,Third Party Payments,,Revenue, 
Walsall Council,http://opendatacommunities.org/id/metropolitan-district-council/walsall,WC67-,WC67-386,30/04/2016,Social Care & Inclusion,CHERISH HOME CARE,14/04/2016,336.00,73372-DOMICILIARY CARE,OP COMMISSIONING,Third Party Payments,,Revenue, 
Walsall Council,http://opendatacommunities.org/id/metropolitan-district-council/walsall,WC67-,WC67-387,30/04/2016,Social Care & Inclusion,CHERISH HOME CARE,14/04/2016,342.00,73372-DOMICILIARY CARE,OP COMMISSIONING,Third Party Payments,,Revenue, 
Walsall Council,http://opendatacommunities.org/id/metropolitan-district-council/walsall,WC67-,WC67-388,30/04/2016,Social Care & Inclusion,CHERISH HOME CARE,06/04/2016,424.68,73372-DOMICILIARY CARE,OP COMMISSIONING,Third Party Payments,,Revenue, 
Walsall Council,http://opendatacommunities.org/id/metropolitan-district-council/walsall,WC67-,WC67-389,30/04/2016,Social Care & Inclusion,CHERISH HOME CARE,14/04/2016,424.68,73372-DOMICILIARY CARE,OP COMMISSIONING,Third Party Payments,,Revenue, 
Walsall Council,http://opendatacommunities.org/id/metropolitan-district-council/walsall,WC67-,WC67-390,30/04/2016,Social Care & Inclusion,CHERISH HOME CARE,06/04/2016,563.64,73372-DOMICILIARY CARE,OP COMMISSIONING,Third Party Payments,,Revenue, 
Walsall Council,http://opendatacommunities.org/id/metropolitan-district-council/walsall,WC67-,WC67-391,30/04/2016,Social Care & Inclusion,CHERISH HOME CARE,06/04/2016,594.72,73372-DOMICILIARY CARE,YADS COMMISSIONING,Third Party Payments,,Revenue, 
Walsall Council,http://opendatacommunities.org/id/metropolitan-district-council/walsall,WC67-,WC67-392,30/04/2016,Social Care & Inclusion,CHERISH HOME CARE,14/04/2016,594.72,73372-DOMICILIARY CARE,YADS COMMISSIONING,Third Party Payments,,Revenue, 
Walsall Council,http://opendatacommunities.org/id/metropolitan-district-council/walsall,WC67-,WC67-393,30/04/2016,Social Care & Inclusion,CHERISH HOME CARE,14/04/2016,732.50,73372-DOMICILIARY CARE,OP COMMISSIONING,Third Party Payments,,Revenue, 
Walsall Council,http://opendatacommunities.org/id/metropolitan-district-council/walsall,WC67-,WC67-394,30/04/2016,Social Care & Inclusion,CHERISH HOME CARE,06/04/2016,737.81,73372-DOMICILIARY CARE,OP COMMISSIONING,Third Party Payments,,Revenue, 
Walsall Council,http://opendatacommunities.org/id/metropolitan-district-council/walsall,WC67-,WC67-395,30/04/2016,Social Care & Inclusion,CHERISH HOME CARE,06/04/2016,743.12,73372-DOMICILIARY CARE,OP COMMISSIONING,Third Party Payments,,Revenue, 
Walsall Council,http://opendatacommunities.org/id/metropolitan-district-council/walsall,WC67-,WC67-396,30/04/2016,Social Care & Inclusion,CHERISH HOME CARE,14/04/2016,743.12,73372-DOMICILIARY CARE,OP COMMISSIONING,Third Party Payments,,Revenue, 
Walsall Council,http://opendatacommunities.org/id/metropolitan-district-council/walsall,WC67-,WC67-397,30/04/2016,Social Care & Inclusion,CHERISH HOME CARE,14/04/2016,"1,050.00",73372-DOMICILIARY CARE,OP COMMISSIONING,Third Party Payments,,Revenue, 
Walsall Council,http://opendatacommunities.org/id/metropolitan-district-council/walsall,WC67-,WC67-398,30/04/2016,Social Care & Inclusion,CHERISH HOME CARE,06/04/2016,"1,512.00",73372-DOMICILIARY CARE,OP COMMISSIONING,Third Party Payments,,Revenue, 
Walsall Council,http://opendatacommunities.org/id/metropolitan-district-council/walsall,WC67-,WC67-399,30/04/2016,Social Care & Inclusion,CHERISH HOME CARE,14/04/2016,"1,512.00",73372-DOMICILIARY CARE,OP COMMISSIONING,Third Party Payments,,Revenue, 
Walsall Council,http://opendatacommunities.org/id/metropolitan-district-council/walsall,WC67-,WC67-400,30/04/2016,Social Care & Inclusion,REDACTED,11/04/2016,"1,601.60",76422-DIRECT PAYMENTS TO SOCIAL SERVICES CLIENTS,LD COMMISSIONING,Transfer Payments,,Revenue,Y
Walsall Council,http://opendatacommunities.org/id/metropolitan-district-council/walsall,WC67-,WC67-401,30/04/2016,Social Care & Inclusion,CHOICECARE 2000 LIMITED,26/04/2016,"1,870.12",73373-RESIDENTIAL & NURSING CARE PLACEMENTS,MH COMMISSIONING,Third Party Payments,,Revenue, 
Walsall Council,http://opendatacommunities.org/id/metropolitan-district-council/walsall,WC67-,WC67-402,30/04/2016,Social Care & Inclusion,CHOICECARE 2000 LIMITED,26/04/2016,"3,108.64",73373-RESIDENTIAL & NURSING CARE PLACEMENTS,MH COMMISSIONING,Third Party Payments,,Revenue, 
Walsall Council,http://opendatacommunities.org/id/metropolitan-district-council/walsall,WC67-,WC67-403,30/04/2016,Social Care & Inclusion,CHOICECARE 2000 LIMITED,26/04/2016,"3,272.72",73373-RESIDENTIAL & NURSING CARE PLACEMENTS,MH COMMISSIONING,Third Party Payments,,Revenue, 
Walsall Council,http://opendatacommunities.org/id/metropolitan-district-council/walsall,WC67-,WC67-404,30/04/2016,Social Care & Inclusion,CHOICECARE 2000 LIMITED,26/04/2016,"7,714.26",73373-RESIDENTIAL & NURSING CARE PLACEMENTS,MH COMMISSIONING,Third Party Payments,,Revenue, 
Walsall Council,http://opendatacommunities.org/id/metropolitan-district-council/walsall,WC67-,WC67-405,30/04/2016,Social Care & Inclusion,REDACTED,11/04/2016,"1,489.63",76422-DIRECT PAYMENTS TO SOCIAL SERVICES CLIENTS,MH COMMISSIONING,Transfer Payments,,Revenue,Y
Walsall Council,http://opendatacommunities.org/id/metropolitan-district-council/walsall,WC67-,WC67-406,30/04/2016,Social Care & Inclusion,REDACTED,11/04/2016,489.60,76422-DIRECT PAYMENTS TO SOCIAL SERVICES CLIENTS,YADS COMMISSIONING,Transfer Payments,,Revenue,Y
Walsall Council,http://opendatacommunities.org/id/metropolitan-district-council/walsall,WC67-,WC67-407,30/04/2016,Social Care & Inclusion,REDACTED,11/04/2016,"2,108.00",76422-DIRECT PAYMENTS TO SOCIAL SERVICES CLIENTS,OP COMMISSIONING,Transfer Payments,,Revenue,Y
Walsall Council,http://opendatacommunities.org/id/metropolitan-district-council/walsall,WC67-,WC67-408,30/04/2016,Social Care & Inclusion,REDACTED,11/04/2016,822.16,76422-DIRECT PAYMENTS TO SOCIAL SERVICES CLIENTS,YADS COMMISSIONING,Transfer Payments,,Revenue,Y
Walsall Council,http://opendatacommunities.org/id/metropolitan-district-council/walsall,WC67-,WC67-409,30/04/2016,Social Care & Inclusion,REDACTED,11/04/2016,588.00,76422-DIRECT PAYMENTS TO SOCIAL SERVICES CLIENTS,OP COMMISSIONING,Transfer Payments,,Revenue,Y
Walsall Council,http://opendatacommunities.org/id/metropolitan-district-council/walsall,WC67-,WC67-410,30/04/2016,Social Care & Inclusion,REDACTED,08/04/2016,"1,452.12",73374-SUPPORTED & OTHER ACCOMMODATION,MH COMMISSIONING,Third Party Payments,,Revenue,Y
Walsall Council,http://opendatacommunities.org/id/metropolitan-district-council/walsall,WC67-,WC67-411,30/04/2016,Social Care & Inclusion,CIVICARE MIDLANDS LTD,14/04/2016,276.00,73025-PROFESSIONAL SERVICES-PRIV CONTRACTOR & OTHER AGENCIES,COMMUNITY INTERMEDIATE CARE,Third Party Payments,,Revenue, 
Walsall Council,http://opendatacommunities.org/id/metropolitan-district-council/walsall,WC67-,WC67-412,30/04/2016,Social Care & Inclusion,CIVICARE MIDLANDS LTD,14/04/2016,276.00,73025-PROFESSIONAL SERVICES-PRIV CONTRACTOR & OTHER AGENCIES,COMMUNITY INTERMEDIATE CARE,Third Party Payments,,Revenue, 
Walsall Council,http://opendatacommunities.org/id/metropolitan-district-council/walsall,WC67-,WC67-413,30/04/2016,Social Care & Inclusion,CIVICARE MIDLANDS LTD,14/04/2016,276.00,73025-PROFESSIONAL SERVICES-PRIV CONTRACTOR & OTHER AGENCIES,COMMUNITY INTERMEDIATE CARE,Third Party Payments,,Revenue, 
Walsall Council,http://opendatacommunities.org/id/metropolitan-district-council/walsall,WC67-,WC67-414,30/04/2016,Social Care & Inclusion,CIVICARE MIDLANDS LTD,14/04/2016,299.00,73025-PROFESSIONAL SERVICES-PRIV CONTRACTOR & OTHER AGENCIES,COMMUNITY INTERMEDIATE CARE,Third Party Payments,,Revenue, 
Walsall Council,http://opendatacommunities.org/id/metropolitan-district-council/walsall,WC67-,WC67-415,30/04/2016,Social Care & Inclusion,CIVICARE MIDLANDS LTD,13/04/2016,322.00,73025-PROFESSIONAL SERVICES-PRIV CONTRACTOR & OTHER AGENCIES,COMMUNITY INTERMEDIATE CARE,Third Party Payments,,Revenue, 
Walsall Council,http://opendatacommunities.org/id/metropolitan-district-council/walsall,WC67-,WC67-416,30/04/2016,Social Care & Inclusion,CIVICARE MIDLANDS LTD,14/04/2016,368.00,73025-PROFESSIONAL SERVICES-PRIV CONTRACTOR & OTHER AGENCIES,COMMUNITY INTERMEDIATE CARE,Third Party Payments,,Revenue, 
Walsall Council,http://opendatacommunities.org/id/metropolitan-district-council/walsall,WC67-,WC67-417,30/04/2016,Social Care & Inclusion,CIVICARE MIDLANDS LTD,13/04/2016,414.00,73025-PROFESSIONAL SERVICES-PRIV CONTRACTOR & OTHER AGENCIES,COMMUNITY INTERMEDIATE CARE,Third Party Payments,,Revenue, 
Walsall Council,http://opendatacommunities.org/id/metropolitan-district-council/walsall,WC67-,WC67-418,30/04/2016,Social Care & Inclusion,CIVICARE MIDLANDS LTD,13/04/2016,460.00,73025-PROFESSIONAL SERVICES-PRIV CONTRACTOR & OTHER AGENCIES,COMMUNITY INTERMEDIATE CARE,Third Party Payments,,Revenue, 
Walsall Council,http://opendatacommunities.org/id/metropolitan-district-council/walsall,WC67-,WC67-419,30/04/2016,Social Care & Inclusion,CIVICARE MIDLANDS LTD,13/04/2016,552.00,73025-PROFESSIONAL SERVICES-PRIV CONTRACTOR & OTHER AGENCIES,COMMUNITY INTERMEDIATE CARE,Third Party Payments,,Revenue, 
Walsall Council,http://opendatacommunities.org/id/metropolitan-district-council/walsall,WC67-,WC67-420,30/04/2016,Social Care & Inclusion,CIVICARE MIDLANDS LTD,14/04/2016,822.25,73025-PROFESSIONAL SERVICES-PRIV CONTRACTOR & OTHER AGENCIES,COMMUNITY INTERMEDIATE CARE,Third Party Payments,,Revenue, 
Walsall Council,http://opendatacommunities.org/id/metropolitan-district-council/walsall,WC67-,WC67-421,30/04/2016,Social Care & Inclusion,CIVICARE MIDLANDS LTD,13/04/2016,"1,104.00",73025-PROFESSIONAL SERVICES-PRIV CONTRACTOR & OTHER AGENCIES,COMMUNITY INTERMEDIATE CARE,Third Party Payments,,Revenue, 
Walsall Council,http://opendatacommunities.org/id/metropolitan-district-council/walsall,WC67-,WC67-422,30/04/2016,Social Care & Inclusion,CIVICARE MIDLANDS LTD,18/04/2016,"2,498.75",73025-PROFESSIONAL SERVICES-PRIV CONTRACTOR & OTHER AGENCIES,COMMUNITY INTERMEDIATE CARE,Third Party Payments,,Revenue, 
Walsall Council,http://opendatacommunities.org/id/metropolitan-district-council/walsall,WC67-,WC67-423,30/04/2016,Social Care & Inclusion,CIVICARE MIDLANDS LTD,25/04/2016,"36,238.81",73372-DOMICILIARY CARE,OP COMMISSIONING,Third Party Payments,,Revenue, 
Walsall Council,http://opendatacommunities.org/id/metropolitan-district-council/walsall,WC67-,WC67-424,30/04/2016,Social Care & Inclusion,REDACTED,11/04/2016,"1,088.00",76422-DIRECT PAYMENTS TO SOCIAL SERVICES CLIENTS,LD COMMISSIONING,Transfer Payments,,Revenue,Y
Walsall Council,http://opendatacommunities.org/id/metropolitan-district-council/walsall,WC67-,WC67-425,30/04/2016,Social Care & Inclusion,REDACTED,11/04/2016,"1,535.08",76422-DIRECT PAYMENTS TO SOCIAL SERVICES CLIENTS,YADS COMMISSIONING,Transfer Payments,,Revenue,Y
Walsall Council,http://opendatacommunities.org/id/metropolitan-district-council/walsall,WC67-,WC67-426,30/04/2016,Social Care & Inclusion,REDACTED,11/04/2016,504.91,76422-DIRECT PAYMENTS TO SOCIAL SERVICES CLIENTS,YADS COMMISSIONING,Transfer Payments,,Revenue,Y
Walsall Council,http://opendatacommunities.org/id/metropolitan-district-council/walsall,WC67-,WC67-427,30/04/2016,Social Care & Inclusion,COBOLT SYSTEMS LTD,14/04/2016,539.70,60006-NEW-FURNITURE & EQUIPMENT,SENSORY/DEAF SERVICES,Supplies & Services,,Revenue, 
Walsall Council,http://opendatacommunities.org/id/metropolitan-district-council/walsall,WC67-,WC67-428,30/04/2016,Social Care & Inclusion,REDACTED,11/04/2016,"7,622.80",76422-DIRECT PAYMENTS TO SOCIAL SERVICES CLIENTS,LD COMMISSIONING,Transfer Payments,,Revenue,Y
Walsall Council,http://opendatacommunities.org/id/metropolitan-district-council/walsall,WC67-,WC67-429,30/04/2016,Social Care & Inclusion,COMMUNITY WORLD LIMITED,13/04/2016,956.43,73373-RESIDENTIAL & NURSING CARE PLACEMENTS,OP COMMISSIONING,Third Party Payments,,Revenue, 
Walsall Council,http://opendatacommunities.org/id/metropolitan-district-council/walsall,WC67-,WC67-430,30/04/2016,Social Care & Inclusion,COMMUNITY WORLD LIMITED,13/04/2016,"1,103.57",73373-RESIDENTIAL & NURSING CARE PLACEMENTS,OP COMMISSIONING,Third Party Payments,,Revenue, 
Walsall Council,http://opendatacommunities.org/id/metropolitan-district-council/walsall,WC67-,WC67-431,30/04/2016,Social Care & Inclusion,COMPLETE CARE SERVICES,25/04/2016,"73,144.00",73372-DOMICILIARY CARE,OP COMMISSIONING,Third Party Payments,,Revenue, 
Walsall Council,http://opendatacommunities.org/id/metropolitan-district-council/walsall,WC67-,WC67-432,30/04/2016,Social Care & Inclusion,CONDOVER COLLEGE LTD,13/04/2016,"6,573.21",73373-RESIDENTIAL & NURSING CARE PLACEMENTS,OP COMMISSIONING,Third Party Payments,,Revenue, 
Walsall Council,http://opendatacommunities.org/id/metropolitan-district-council/walsall,WC67-,WC67-433,30/04/2016,Social Care & Inclusion,CONDOVER COLLEGE LTD,13/04/2016,"7,954.63",73373-RESIDENTIAL & NURSING CARE PLACEMENTS,LD COMMISSIONING,Third Party Payments,,Revenue, 
Walsall Council,http://opendatacommunities.org/id/metropolitan-district-council/walsall,WC67-,WC67-434,30/04/2016,Social Care & Inclusion,COVERGOLD,04/04/2016,349.00,60007-REPAIR OF EQUIPMENT-EQUIPMENT,INDEPENDENT LIVING CENTRE,Supplies & Services,,Revenue, 
Walsall Council,http://opendatacommunities.org/id/metropolitan-district-council/walsall,WC67-,WC67-435,30/04/2016,Social Care & Inclusion,CRAEGMOOR,13/04/2016,"7,817.06",73373-RESIDENTIAL & NURSING CARE PLACEMENTS,LD COMMISSIONING,Third Party Payments,,Revenue, 
Walsall Council,http://opendatacommunities.org/id/metropolitan-district-council/walsall,WC67-,WC67-436,30/04/2016,Social Care & Inclusion,CROSSWAYS RESIDENTIAL HOME,13/04/2016,"1,599.90",73373-RESIDENTIAL & NURSING CARE PLACEMENTS,OP COMMISSIONING,Third Party Payments,,Revenue, 
Walsall Council,http://opendatacommunities.org/id/metropolitan-district-council/walsall,WC67-,WC67-437,30/04/2016,Social Care & Inclusion,CROSSWAYS RESIDENTIAL HOME,13/04/2016,"1,638.08",73373-RESIDENTIAL & NURSING CARE PLACEMENTS,OP COMMISSIONING,Third Party Payments,,Revenue, 
Walsall Council,http://opendatacommunities.org/id/metropolitan-district-council/walsall,WC67-,WC67-438,30/04/2016,Social Care & Inclusion,CROSSWAYS RESIDENTIAL HOME,13/04/2016,"1,663.50",73373-RESIDENTIAL & NURSING CARE PLACEMENTS,OP COMMISSIONING,Third Party Payments,,Revenue, 
Walsall Council,http://opendatacommunities.org/id/metropolitan-district-council/walsall,WC67-,WC67-439,30/04/2016,Social Care & Inclusion,CROSSWAYS RESIDENTIAL HOME,13/04/2016,"1,680.69",73373-RESIDENTIAL & NURSING CARE PLACEMENTS,OP COMMISSIONING,Third Party Payments,,Revenue, 
Walsall Council,http://opendatacommunities.org/id/metropolitan-district-council/walsall,WC67-,WC67-440,30/04/2016,Social Care & Inclusion,CROSSWAYS RESIDENTIAL HOME,13/04/2016,"1,680.69",73373-RESIDENTIAL & NURSING CARE PLACEMENTS,OP COMMISSIONING,Third Party Payments,,Revenue, 
Walsall Council,http://opendatacommunities.org/id/metropolitan-district-council/walsall,WC67-,WC67-441,30/04/2016,Social Care & Inclusion,REDACTED,11/04/2016,"2,023.00",76422-DIRECT PAYMENTS TO SOCIAL SERVICES CLIENTS,LD COMMISSIONING,Transfer Payments,,Revenue,Y
Walsall Council,http://opendatacommunities.org/id/metropolitan-district-council/walsall,WC67-,WC67-442,30/04/2016,Social Care & Inclusion,DAISY COMMUNICATIONS,11/04/2016,332.73,63602-COST OF RENTAL-TELEPHONES,EMPLOYMENT LINKS TO WORK,Supplies & Services,,Revenue, 
Walsall Council,http://opendatacommunities.org/id/metropolitan-district-council/walsall,WC67-,WC67-443,30/04/2016,Social Care & Inclusion,REDACTED,11/04/2016,"1,492.80",76422-DIRECT PAYMENTS TO SOCIAL SERVICES CLIENTS,LD COMMISSIONING,Transfer Payments,,Revenue,Y
Walsall Council,http://opendatacommunities.org/id/metropolitan-district-council/walsall,WC67-,WC67-444,30/04/2016,Social Care & Inclusion,REDACTED,11/04/2016,"1,622.36",76422-DIRECT PAYMENTS TO SOCIAL SERVICES CLIENTS,LD COMMISSIONING,Transfer Payments,,Revenue,Y
Walsall Council,http://opendatacommunities.org/id/metropolitan-district-council/walsall,WC67-,WC67-445,30/04/2016,Social Care & Inclusion,REDACTED,12/04/2016,"1,886.20",76422-DIRECT PAYMENTS TO SOCIAL SERVICES CLIENTS,LD COMMISSIONING,Transfer Payments,,Revenue,Y
Walsall Council,http://opendatacommunities.org/id/metropolitan-district-council/walsall,WC67-,WC67-446,30/04/2016,Social Care & Inclusion,REDACTED,11/04/2016,755.31,76422-DIRECT PAYMENTS TO SOCIAL SERVICES CLIENTS,YADS COMMISSIONING,Transfer Payments,,Revenue,Y
Walsall Council,http://opendatacommunities.org/id/metropolitan-district-council/walsall,WC67-,WC67-447,30/04/2016,Social Care & Inclusion,REDACTED,11/04/2016,923.48,76422-DIRECT PAYMENTS TO SOCIAL SERVICES CLIENTS,LD COMMISSIONING,Transfer Payments,,Revenue,Y
Walsall Council,http://opendatacommunities.org/id/metropolitan-district-council/walsall,WC67-,WC67-448,30/04/2016,Social Care & Inclusion,DANSHELL GROUP,13/04/2016,"11,700.00",73373-RESIDENTIAL & NURSING CARE PLACEMENTS,LD COMMISSIONING,Third Party Payments,,Revenue, 
Walsall Council,http://opendatacommunities.org/id/metropolitan-district-council/walsall,WC67-,WC67-449,30/04/2016,Social Care & Inclusion,REDACTED,11/04/2016,595.00,76422-DIRECT PAYMENTS TO SOCIAL SERVICES CLIENTS,LD COMMISSIONING,Transfer Payments,,Revenue,Y
Walsall Council,http://opendatacommunities.org/id/metropolitan-district-council/walsall,WC67-,WC67-450,30/04/2016,Social Care & Inclusion,REDACTED,11/04/2016,251.84,76422-DIRECT PAYMENTS TO SOCIAL SERVICES CLIENTS,OP COMMISSIONING,Transfer Payments,,Revenue,Y
Walsall Council,http://opendatacommunities.org/id/metropolitan-district-council/walsall,WC67-,WC67-451,30/04/2016,Social Care & Inclusion,REDACTED,11/04/2016,338.39,76422-DIRECT PAYMENTS TO SOCIAL SERVICES CLIENTS,LD COMMISSIONING,Transfer Payments,,Revenue,Y
Walsall Council,http://opendatacommunities.org/id/metropolitan-district-council/walsall,WC67-,WC67-452,30/04/2016,Social Care & Inclusion,REDACTED,11/04/2016,"6,123.61",76422-DIRECT PAYMENTS TO SOCIAL SERVICES CLIENTS,LD COMMISSIONING,Transfer Payments,,Revenue,Y
Walsall Council,http://opendatacommunities.org/id/metropolitan-district-council/walsall,WC67-,WC67-453,30/04/2016,Social Care & Inclusion,DARWIN COURT CARE CENTRE,19/04/2016,"12,318.81",73373-RESIDENTIAL & NURSING CARE PLACEMENTS,MH COMMISSIONING,Third Party Payments,,Revenue, 
Walsall Council,http://opendatacommunities.org/id/metropolitan-district-council/walsall,WC67-,WC67-454,30/04/2016,Social Care & Inclusion,REDACTED,11/04/2016,"1,637.84",76422-DIRECT PAYMENTS TO SOCIAL SERVICES CLIENTS,LD COMMISSIONING,Transfer Payments,,Revenue,Y
Walsall Council,http://opendatacommunities.org/id/metropolitan-district-council/walsall,WC67-,WC67-455,30/04/2016,Social Care & Inclusion,REDACTED,11/04/2016,527.00,76422-DIRECT PAYMENTS TO SOCIAL SERVICES CLIENTS,OP COMMISSIONING,Transfer Payments,,Revenue,Y
Walsall Council,http://opendatacommunities.org/id/metropolitan-district-council/walsall,WC67-,WC67-456,30/04/2016,Social Care & Inclusion,REDACTED,11/04/2016,"1,071.00",76422-DIRECT PAYMENTS TO SOCIAL SERVICES CLIENTS,OP COMMISSIONING,Transfer Payments,,Revenue,Y
Walsall Council,http://opendatacommunities.org/id/metropolitan-district-council/walsall,WC67-,WC67-457,30/04/2016,Social Care & Inclusion,REDACTED,11/04/2016,"1,584.00",76422-DIRECT PAYMENTS TO SOCIAL SERVICES CLIENTS,YADS COMMISSIONING,Transfer Payments,,Revenue,Y
Walsall Council,http://opendatacommunities.org/id/metropolitan-district-council/walsall,WC67-,WC67-458,30/04/2016,Social Care & Inclusion,REDACTED,11/04/2016,519.24,76422-DIRECT PAYMENTS TO SOCIAL SERVICES CLIENTS,OP COMMISSIONING,Transfer Payments,,Revenue,Y
Walsall Council,http://opendatacommunities.org/id/metropolitan-district-council/walsall,WC67-,WC67-459,30/04/2016,Social Care & Inclusion,REDACTED,11/04/2016,"5,670.00",76422-DIRECT PAYMENTS TO SOCIAL SERVICES CLIENTS,YADS COMMISSIONING,Transfer Payments,,Revenue,Y
Walsall Council,http://opendatacommunities.org/id/metropolitan-district-council/walsall,WC67-,WC67-460,30/04/2016,Social Care & Inclusion,DAVID WILSON PARTNERSHIP LIMITED,19/04/2016,540.00,01006-SITE WORKS MAIN CONTRACTORS,CFR 772 SUPPORTING INDEPENDENCE,Capital,,Capital, 
Walsall Council,http://opendatacommunities.org/id/metropolitan-district-council/walsall,WC67-,WC67-461,30/04/2016,Social Care & Inclusion,REDACTED,11/04/2016,880.00,76422-DIRECT PAYMENTS TO SOCIAL SERVICES CLIENTS,LD COMMISSIONING,Transfer Payments,,Revenue,Y
Walsall Council,http://opendatacommunities.org/id/metropolitan-district-council/walsall,WC67-,WC67-462,30/04/2016,Social Care & Inclusion,REDACTED,11/04/2016,"1,564.00",76422-DIRECT PAYMENTS TO SOCIAL SERVICES CLIENTS,YADS COMMISSIONING,Transfer Payments,,Revenue,Y
Walsall Council,http://opendatacommunities.org/id/metropolitan-district-council/walsall,WC67-,WC67-463,30/04/2016,Social Care & Inclusion,REDACTED,11/04/2016,"1,906.56",76422-DIRECT PAYMENTS TO SOCIAL SERVICES CLIENTS,LD COMMISSIONING,Transfer Payments,,Revenue,Y
Walsall Council,http://opendatacommunities.org/id/metropolitan-district-council/walsall,WC67-,WC67-464,30/04/2016,Social Care & Inclusion,REDACTED,11/04/2016,575.40,76422-DIRECT PAYMENTS TO SOCIAL SERVICES CLIENTS,YADS COMMISSIONING,Transfer Payments,,Revenue,Y
Walsall Council,http://opendatacommunities.org/id/metropolitan-district-council/walsall,WC67-,WC67-465,30/04/2016,Social Care & Inclusion,REDACTED,11/04/2016,"1,642.51",76422-DIRECT PAYMENTS TO SOCIAL SERVICES CLIENTS,YADS COMMISSIONING,Transfer Payments,,Revenue,Y
Walsall Council,http://opendatacommunities.org/id/metropolitan-district-council/walsall,WC67-,WC67-466,30/04/2016,Social Care & Inclusion,REDACTED,11/04/2016,"1,530.00",76422-DIRECT PAYMENTS TO SOCIAL SERVICES CLIENTS,YADS COMMISSIONING,Transfer Payments,,Revenue,Y
Walsall Council,http://opendatacommunities.org/id/metropolitan-district-council/walsall,WC67-,WC67-467,30/04/2016,Social Care & Inclusion,REDACTED,11/04/2016,"1,154.00",76422-DIRECT PAYMENTS TO SOCIAL SERVICES CLIENTS,OP COMMISSIONING,Transfer Payments,,Revenue,Y
Walsall Council,http://opendatacommunities.org/id/metropolitan-district-council/walsall,WC67-,WC67-468,30/04/2016,Social Care & Inclusion,DIGNUS HEALTHCARE T/A EBENEZER HOUSE,13/04/2016,"4,336.89",73373-RESIDENTIAL & NURSING CARE PLACEMENTS,LD COMMISSIONING,Third Party Payments,,Revenue, 
Walsall Council,http://opendatacommunities.org/id/metropolitan-district-council/walsall,WC67-,WC67-469,30/04/2016,Social Care & Inclusion,DIGNUS HEALTHCARE T/A EBENEZER HOUSE,13/04/2016,"4,336.89",73373-RESIDENTIAL & NURSING CARE PLACEMENTS,LD COMMISSIONING,Third Party Payments,,Revenue, 
Walsall Council,http://opendatacommunities.org/id/metropolitan-district-council/walsall,WC67-,WC67-470,30/04/2016,Social Care & Inclusion,DIGNUS HEALTHCARE T/A EBENEZER HOUSE,13/04/2016,"4,336.89",73373-RESIDENTIAL & NURSING CARE PLACEMENTS,LD COMMISSIONING,Third Party Payments,,Revenue, 
Walsall Council,http://opendatacommunities.org/id/metropolitan-district-council/walsall,WC67-,WC67-471,30/04/2016,Social Care & Inclusion,DIMENSIONS (UK) LTD,19/04/2016,"5,768.61",73373-RESIDENTIAL & NURSING CARE PLACEMENTS,LD COMMISSIONING,Third Party Payments,,Revenue, 
Walsall Council,http://opendatacommunities.org/id/metropolitan-district-council/walsall,WC67-,WC67-472,30/04/2016,Social Care & Inclusion,DIWALI NIVAS,13/04/2016,"1,910.62",73373-RESIDENTIAL & NURSING CARE PLACEMENTS,OP COMMISSIONING,Third Party Payments,,Revenue, 
Walsall Council,http://opendatacommunities.org/id/metropolitan-district-council/walsall,WC67-,WC67-473,30/04/2016,Social Care & Inclusion,DOLPHIN LTD,11/04/2016,418.00,01006-SITE WORKS MAIN CONTRACTORS,CFR 772 SUPPORTING INDEPENDENCE,Capital,,Capital, 
Walsall Council,http://opendatacommunities.org/id/metropolitan-district-council/walsall,WC67-,WC67-474,30/04/2016,Social Care & Inclusion,DOLPHIN LTD,20/04/2016,"1,070.09",01006-SITE WORKS MAIN CONTRACTORS,CFR 772 SUPPORTING INDEPENDENCE,Capital,,Capital, 
Walsall Council,http://opendatacommunities.org/id/metropolitan-district-council/walsall,WC67-,WC67-475,30/04/2016,Social Care & Inclusion,REDACTED,11/04/2016,"5,854.60",76422-DIRECT PAYMENTS TO SOCIAL SERVICES CLIENTS,LD COMMISSIONING,Transfer Payments,,Revenue,Y
Walsall Council,http://opendatacommunities.org/id/metropolitan-district-council/walsall,WC67-,WC67-476,30/04/2016,Social Care & Inclusion,REDACTED,11/04/2016,"1,800.00",76422-DIRECT PAYMENTS TO SOCIAL SERVICES CLIENTS,OP COMMISSIONING,Transfer Payments,,Revenue,Y
Walsall Council,http://opendatacommunities.org/id/metropolitan-district-council/walsall,WC67-,WC67-477,30/04/2016,Social Care & Inclusion,REDACTED,11/04/2016,679.20,76422-DIRECT PAYMENTS TO SOCIAL SERVICES CLIENTS,MH COMMISSIONING,Transfer Payments,,Revenue,Y
Walsall Council,http://opendatacommunities.org/id/metropolitan-district-council/walsall,WC67-,WC67-478,30/04/2016,Social Care & Inclusion,REDACTED,11/04/2016,880.00,76422-DIRECT PAYMENTS TO SOCIAL SERVICES CLIENTS,OP COMMISSIONING,Transfer Payments,,Revenue,Y
Walsall Council,http://opendatacommunities.org/id/metropolitan-district-council/walsall,WC67-,WC67-479,30/04/2016,Social Care & Inclusion,REDACTED,11/04/2016,644.00,76422-DIRECT PAYMENTS TO SOCIAL SERVICES CLIENTS,OP COMMISSIONING,Transfer Payments,,Revenue,Y
Walsall Council,http://opendatacommunities.org/id/metropolitan-district-council/walsall,WC67-,WC67-480,30/04/2016,Social Care & Inclusion,REDACTED,11/04/2016,750.40,76422-DIRECT PAYMENTS TO SOCIAL SERVICES CLIENTS,OP COMMISSIONING,Transfer Payments,,Revenue,Y
Walsall Council,http://opendatacommunities.org/id/metropolitan-district-council/walsall,WC67-,WC67-481,30/04/2016,Social Care & Inclusion,REDACTED,11/04/2016,700.40,76422-DIRECT PAYMENTS TO SOCIAL SERVICES CLIENTS,MH COMMISSIONING,Transfer Payments,,Revenue,Y
Walsall Council,http://opendatacommunities.org/id/metropolitan-district-council/walsall,WC67-,WC67-482,30/04/2016,Social Care & Inclusion,REDACTED,11/04/2016,"1,349.88",76422-DIRECT PAYMENTS TO SOCIAL SERVICES CLIENTS,OP COMMISSIONING,Transfer Payments,,Revenue,Y
Walsall Council,http://opendatacommunities.org/id/metropolitan-district-council/walsall,WC67-,WC67-483,30/04/2016,Social Care & Inclusion,DOVEDALE COURT CARE HOME,05/04/2016,642.33,73373-RESIDENTIAL & NURSING CARE PLACEMENTS,OP COMMISSIONING,Third Party Payments,,Revenue, 
Walsall Council,http://opendatacommunities.org/id/metropolitan-district-council/walsall,WC67-,WC67-484,30/04/2016,Social Care & Inclusion,DOVEDALE COURT CARE HOME,05/04/2016,"1,356.03",73373-RESIDENTIAL & NURSING CARE PLACEMENTS,OP COMMISSIONING,Third Party Payments,,Revenue, 
Walsall Council,http://opendatacommunities.org/id/metropolitan-district-council/walsall,WC67-,WC67-485,30/04/2016,Social Care & Inclusion,DOVEDALE COURT CARE HOME,26/04/2016,"1,998.36",73373-RESIDENTIAL & NURSING CARE PLACEMENTS,OP COMMISSIONING,Third Party Payments,,Revenue, 
Walsall Council,http://opendatacommunities.org/id/metropolitan-district-council/walsall,WC67-,WC67-486,30/04/2016,Social Care & Inclusion,DRAKE COURT RESIDENTIAL HOME,13/04/2016,746.62,73373-RESIDENTIAL & NURSING CARE PLACEMENTS,OP COMMISSIONING,Third Party Payments,,Revenue, 
Walsall Council,http://opendatacommunities.org/id/metropolitan-district-council/walsall,WC67-,WC67-487,30/04/2016,Social Care & Inclusion,DRAKE COURT RESIDENTIAL HOME,13/04/2016,"1,490.96",73373-RESIDENTIAL & NURSING CARE PLACEMENTS,OP COMMISSIONING,Third Party Payments,,Revenue, 
Walsall Council,http://opendatacommunities.org/id/metropolitan-district-council/walsall,WC67-,WC67-488,30/04/2016,Social Care & Inclusion,DRAKE COURT RESIDENTIAL HOME,13/04/2016,"1,490.96",73373-RESIDENTIAL & NURSING CARE PLACEMENTS,OP COMMISSIONING,Third Party Payments,,Revenue, 
Walsall Council,http://opendatacommunities.org/id/metropolitan-district-council/walsall,WC67-,WC67-489,30/04/2016,Social Care & Inclusion,DRAKE COURT RESIDENTIAL HOME,13/04/2016,"1,490.96",73373-RESIDENTIAL & NURSING CARE PLACEMENTS,OP COMMISSIONING,Third Party Payments,,Revenue, 
Walsall Council,http://opendatacommunities.org/id/metropolitan-district-council/walsall,WC67-,WC67-490,30/04/2016,Social Care & Inclusion,DRAKE COURT RESIDENTIAL HOME,13/04/2016,"1,493.24",73373-RESIDENTIAL & NURSING CARE PLACEMENTS,OP COMMISSIONING,Third Party Payments,,Revenue, 
Walsall Council,http://opendatacommunities.org/id/metropolitan-district-council/walsall,WC67-,WC67-491,30/04/2016,Social Care & Inclusion,DRAKE COURT RESIDENTIAL HOME,13/04/2016,"1,493.24",73373-RESIDENTIAL & NURSING CARE PLACEMENTS,OP COMMISSIONING,Third Party Payments,,Revenue, 
Walsall Council,http://opendatacommunities.org/id/metropolitan-district-council/walsall,WC67-,WC67-492,30/04/2016,Social Care & Inclusion,DRAKE COURT RESIDENTIAL HOME,13/04/2016,"1,493.24",73373-RESIDENTIAL & NURSING CARE PLACEMENTS,OP COMMISSIONING,Third Party Payments,,Revenue, 
Walsall Council,http://opendatacommunities.org/id/metropolitan-district-council/walsall,WC67-,WC67-493,30/04/2016,Social Care & Inclusion,DRAKE COURT RESIDENTIAL HOME,13/04/2016,"1,493.24",73373-RESIDENTIAL & NURSING CARE PLACEMENTS,OP COMMISSIONING,Third Party Payments,,Revenue, 
Walsall Council,http://opendatacommunities.org/id/metropolitan-district-council/walsall,WC67-,WC67-494,30/04/2016,Social Care & Inclusion,DRAKE COURT RESIDENTIAL HOME,13/04/2016,"1,493.24",73373-RESIDENTIAL & NURSING CARE PLACEMENTS,OP COMMISSIONING,Third Party Payments,,Revenue, 
Walsall Council,http://opendatacommunities.org/id/metropolitan-district-council/walsall,WC67-,WC67-495,30/04/2016,Social Care & Inclusion,DRAKE COURT RESIDENTIAL HOME,13/04/2016,"1,493.24",73373-RESIDENTIAL & NURSING CARE PLACEMENTS,OP COMMISSIONING,Third Party Payments,,Revenue, 
Walsall Council,http://opendatacommunities.org/id/metropolitan-district-council/walsall,WC67-,WC67-496,30/04/2016,Social Care & Inclusion,DRAKE COURT RESIDENTIAL HOME,13/04/2016,"1,493.24",73373-RESIDENTIAL & NURSING CARE PLACEMENTS,OP COMMISSIONING,Third Party Payments,,Revenue, 
Walsall Council,http://opendatacommunities.org/id/metropolitan-district-council/walsall,WC67-,WC67-497,30/04/2016,Social Care & Inclusion,DRAKE COURT RESIDENTIAL HOME,13/04/2016,"1,493.24",73373-RESIDENTIAL & NURSING CARE PLACEMENTS,MH COMMISSIONING,Third Party Payments,,Revenue, 
Walsall Council,http://opendatacommunities.org/id/metropolitan-district-council/walsall,WC67-,WC67-498,30/04/2016,Social Care & Inclusion,DRAKE COURT RESIDENTIAL HOME,13/04/2016,"1,493.24",73373-RESIDENTIAL & NURSING CARE PLACEMENTS,OP COMMISSIONING,Third Party Payments,,Revenue, 
Walsall Council,http://opendatacommunities.org/id/metropolitan-district-council/walsall,WC67-,WC67-499,30/04/2016,Social Care & Inclusion,DRAKE COURT RESIDENTIAL HOME,13/04/2016,"1,493.24",73373-RESIDENTIAL & NURSING CARE PLACEMENTS,OP COMMISSIONING,Third Party Payments,,Revenue, 
Walsall Council,http://opendatacommunities.org/id/metropolitan-district-council/walsall,WC67-,WC67-500,30/04/2016,Social Care & Inclusion,DRAKE COURT RESIDENTIAL HOME,13/04/2016,"1,493.24",73373-RESIDENTIAL & NURSING CARE PLACEMENTS,OP COMMISSIONING,Third Party Payments,,Revenue, 
Walsall Council,http://opendatacommunities.org/id/metropolitan-district-council/walsall,WC67-,WC67-501,30/04/2016,Social Care & Inclusion,DRAKE COURT RESIDENTIAL HOME,13/04/2016,"1,493.24",73373-RESIDENTIAL & NURSING CARE PLACEMENTS,OP COMMISSIONING,Third Party Payments,,Revenue, 
Walsall Council,http://opendatacommunities.org/id/metropolitan-district-council/walsall,WC67-,WC67-502,30/04/2016,Social Care & Inclusion,DRAKE COURT RESIDENTIAL HOME,13/04/2016,"1,493.24",73373-RESIDENTIAL & NURSING CARE PLACEMENTS,OP COMMISSIONING,Third Party Payments,,Revenue, 
Walsall Council,http://opendatacommunities.org/id/metropolitan-district-council/walsall,WC67-,WC67-503,30/04/2016,Social Care & Inclusion,DRAKE COURT RESIDENTIAL HOME,13/04/2016,"1,493.24",73373-RESIDENTIAL & NURSING CARE PLACEMENTS,OP COMMISSIONING,Third Party Payments,,Revenue, 
Walsall Council,http://opendatacommunities.org/id/metropolitan-district-council/walsall,WC67-,WC67-504,30/04/2016,Social Care & Inclusion,DRAKE COURT RESIDENTIAL HOME,13/04/2016,"1,493.24",73373-RESIDENTIAL & NURSING CARE PLACEMENTS,OP COMMISSIONING,Third Party Payments,,Revenue, 
Walsall Council,http://opendatacommunities.org/id/metropolitan-district-council/walsall,WC67-,WC67-505,30/04/2016,Social Care & Inclusion,DRAKE COURT RESIDENTIAL HOME,13/04/2016,"1,493.24",73373-RESIDENTIAL & NURSING CARE PLACEMENTS,OP COMMISSIONING,Third Party Payments,,Revenue, 
Walsall Council,http://opendatacommunities.org/id/metropolitan-district-council/walsall,WC67-,WC67-506,30/04/2016,Social Care & Inclusion,DRAKE COURT RESIDENTIAL HOME,19/04/2016,"1,493.24",73373-RESIDENTIAL & NURSING CARE PLACEMENTS,OP COMMISSIONING,Third Party Payments,,Revenue, 
Walsall Council,http://opendatacommunities.org/id/metropolitan-district-council/walsall,WC67-,WC67-507,30/04/2016,Social Care & Inclusion,DRAKE COURT RESIDENTIAL HOME,19/04/2016,"1,493.24",73373-RESIDENTIAL & NURSING CARE PLACEMENTS,OP COMMISSIONING,Third Party Payments,,Revenue, 
Walsall Council,http://opendatacommunities.org/id/metropolitan-district-council/walsall,WC67-,WC67-508,30/04/2016,Social Care & Inclusion,DRAKE COURT RESIDENTIAL HOME,13/04/2016,"1,575.04",73373-RESIDENTIAL & NURSING CARE PLACEMENTS,OP COMMISSIONING,Third Party Payments,,Revenue, 
Walsall Council,http://opendatacommunities.org/id/metropolitan-district-council/walsall,WC67-,WC67-509,30/04/2016,Social Care & Inclusion,DRAKE COURT RESIDENTIAL HOME,13/04/2016,"1,575.04",73373-RESIDENTIAL & NURSING CARE PLACEMENTS,MH COMMISSIONING,Third Party Payments,,Revenue, 
Walsall Council,http://opendatacommunities.org/id/metropolitan-district-council/walsall,WC67-,WC67-510,30/04/2016,Social Care & Inclusion,DUCTBUSTERS LTD,06/04/2016,496.00,60008-MAINTENANCE-FURNITURE & EQUIPMENT,GOSCOTE,Supplies & Services,,Revenue, 
Walsall Council,http://opendatacommunities.org/id/metropolitan-district-council/walsall,WC67-,WC67-511,30/04/2016,Social Care & Inclusion,DUNSTALL ENTERPRISES LTD,13/04/2016,"3,633.88",73373-RESIDENTIAL & NURSING CARE PLACEMENTS,LD COMMISSIONING,Third Party Payments,,Revenue, 
Walsall Council,http://opendatacommunities.org/id/metropolitan-district-council/walsall,WC67-,WC67-512,30/04/2016,Social Care & Inclusion,DUNSTALL ENTERPRISES LTD,26/04/2016,"3,633.97",73373-RESIDENTIAL & NURSING CARE PLACEMENTS,LD COMMISSIONING,Third Party Payments,,Revenue, 
Walsall Council,http://opendatacommunities.org/id/metropolitan-district-council/walsall,WC67-,WC67-513,30/04/2016,Social Care & Inclusion,REDACTED,11/04/2016,769.44,76422-DIRECT PAYMENTS TO SOCIAL SERVICES CLIENTS,OP COMMISSIONING,Transfer Payments,,Revenue,Y
Walsall Council,http://opendatacommunities.org/id/metropolitan-district-council/walsall,WC67-,WC67-514,30/04/2016,Social Care & Inclusion,REDACTED,11/04/2016,300.00,76422-DIRECT PAYMENTS TO SOCIAL SERVICES CLIENTS,OP COMMISSIONING,Transfer Payments,,Revenue,Y
Walsall Council,http://opendatacommunities.org/id/metropolitan-district-council/walsall,WC67-,WC67-515,30/04/2016,Social Care & Inclusion,EJC2015 LTD,18/04/2016,340.00,63000-PROFESSIONAL FEES AND SERVICES,MENTAL HEALTH OUT-OF-HOURS SERVICE,Supplies & Services,,Revenue, 
Walsall Council,http://opendatacommunities.org/id/metropolitan-district-council/walsall,WC67-,WC67-516,30/04/2016,Social Care & Inclusion,REDACTED,11/04/2016,"1,832.40",76422-DIRECT PAYMENTS TO SOCIAL SERVICES CLIENTS,LD COMMISSIONING,Transfer Payments,,Revenue,Y
Walsall Council,http://opendatacommunities.org/id/metropolitan-district-council/walsall,WC67-,WC67-517,30/04/2016,Social Care & Inclusion,REDACTED,11/04/2016,954.04,76422-DIRECT PAYMENTS TO SOCIAL SERVICES CLIENTS,LD COMMISSIONING,Transfer Payments,,Revenue,Y
Walsall Council,http://opendatacommunities.org/id/metropolitan-district-council/walsall,WC67-,WC67-518,30/04/2016,Social Care & Inclusion,REDACTED,11/04/2016,924.84,76422-DIRECT PAYMENTS TO SOCIAL SERVICES CLIENTS,OP COMMISSIONING,Transfer Payments,,Revenue,Y
Walsall Council,http://opendatacommunities.org/id/metropolitan-district-council/walsall,WC67-,WC67-519,30/04/2016,Social Care & Inclusion,REDACTED,11/04/2016,261.16,76422-DIRECT PAYMENTS TO SOCIAL SERVICES CLIENTS,LD COMMISSIONING,Transfer Payments,,Revenue,Y
Walsall Council,http://opendatacommunities.org/id/metropolitan-district-council/walsall,WC67-,WC67-520,30/04/2016,Social Care & Inclusion,REDACTED,11/04/2016,"1,638.00",76422-DIRECT PAYMENTS TO SOCIAL SERVICES CLIENTS,OP COMMISSIONING,Transfer Payments,,Revenue,Y
Walsall Council,http://opendatacommunities.org/id/metropolitan-district-council/walsall,WC67-,WC67-521,30/04/2016,Social Care & Inclusion,REDACTED,11/04/2016,"1,075.03",76422-DIRECT PAYMENTS TO SOCIAL SERVICES CLIENTS,OP COMMISSIONING,Transfer Payments,,Revenue,Y
Walsall Council,http://opendatacommunities.org/id/metropolitan-district-council/walsall,WC67-,WC67-522,30/04/2016,Social Care & Inclusion,ELLIOTS HILL CARE,05/04/2016,"2,024.00",73373-RESIDENTIAL & NURSING CARE PLACEMENTS,MH COMMISSIONING,Third Party Payments,,Revenue, 
Walsall Council,http://opendatacommunities.org/id/metropolitan-district-council/walsall,WC67-,WC67-523,30/04/2016,Social Care & Inclusion,REDACTED,11/04/2016,"2,079.71",76422-DIRECT PAYMENTS TO SOCIAL SERVICES CLIENTS,YADS COMMISSIONING,Transfer Payments,,Revenue,Y
Walsall Council,http://opendatacommunities.org/id/metropolitan-district-council/walsall,WC67-,WC67-524,30/04/2016,Social Care & Inclusion,REDACTED,11/04/2016,"2,597.60",76422-DIRECT PAYMENTS TO SOCIAL SERVICES CLIENTS,LD COMMISSIONING,Transfer Payments,,Revenue,Y
Walsall Council,http://opendatacommunities.org/id/metropolitan-district-council/walsall,WC67-,WC67-525,30/04/2016,Social Care & Inclusion,EMPOWERING U CARE LTD,20/04/2016,648.00,73374-SUPPORTED & OTHER ACCOMMODATION,LD COMMISSIONING,Third Party Payments,,Revenue, 
Walsall Council,http://opendatacommunities.org/id/metropolitan-district-council/walsall,WC67-,WC67-526,30/04/2016,Social Care & Inclusion,EMPOWERING U CARE LTD,20/04/2016,"1,014.00",73374-SUPPORTED & OTHER ACCOMMODATION,LD COMMISSIONING,Third Party Payments,,Revenue, 
Walsall Council,http://opendatacommunities.org/id/metropolitan-district-council/walsall,WC67-,WC67-527,30/04/2016,Social Care & Inclusion,EMPOWERING U CARE LTD,20/04/2016,"1,080.00",73374-SUPPORTED & OTHER ACCOMMODATION,LD COMMISSIONING,Third Party Payments,,Revenue, 
Walsall Council,http://opendatacommunities.org/id/metropolitan-district-council/walsall,WC67-,WC67-528,30/04/2016,Social Care & Inclusion,EMPOWERING U CARE LTD,11/04/2016,"1,118.00",73374-SUPPORTED & OTHER ACCOMMODATION,YADS COMMISSIONING,Third Party Payments,,Revenue, 
Walsall Council,http://opendatacommunities.org/id/metropolitan-district-council/walsall,WC67-,WC67-529,30/04/2016,Social Care & Inclusion,EMPOWERING U CARE LTD,11/04/2016,"1,118.00",73374-SUPPORTED & OTHER ACCOMMODATION,YADS COMMISSIONING,Third Party Payments,,Revenue, 
Walsall Council,http://opendatacommunities.org/id/metropolitan-district-council/walsall,WC67-,WC67-530,30/04/2016,Social Care & Inclusion,EMPOWERING U CARE LTD,11/04/2016,"1,118.00",73374-SUPPORTED & OTHER ACCOMMODATION,YADS COMMISSIONING,Third Party Payments,,Revenue, 
Walsall Council,http://opendatacommunities.org/id/metropolitan-district-council/walsall,WC67-,WC67-531,30/04/2016,Social Care & Inclusion,EMPOWERING U CARE LTD,11/04/2016,"1,118.00",73374-SUPPORTED & OTHER ACCOMMODATION,YADS COMMISSIONING,Third Party Payments,,Revenue, 
Walsall Council,http://opendatacommunities.org/id/metropolitan-district-council/walsall,WC67-,WC67-532,30/04/2016,Social Care & Inclusion,EMPOWERING U CARE LTD,11/04/2016,"1,118.00",73374-SUPPORTED & OTHER ACCOMMODATION,YADS COMMISSIONING,Third Party Payments,,Revenue, 
Walsall Council,http://opendatacommunities.org/id/metropolitan-district-council/walsall,WC67-,WC67-533,30/04/2016,Social Care & Inclusion,EMPOWERING U CARE LTD,20/04/2016,"1,118.00",73374-SUPPORTED & OTHER ACCOMMODATION,LD COMMISSIONING,Third Party Payments,,Revenue, 
Walsall Council,http://opendatacommunities.org/id/metropolitan-district-council/walsall,WC67-,WC67-534,30/04/2016,Social Care & Inclusion,EMPOWERING U CARE LTD,20/04/2016,"1,296.00",73374-SUPPORTED & OTHER ACCOMMODATION,LD COMMISSIONING,Third Party Payments,,Revenue, 
Walsall Council,http://opendatacommunities.org/id/metropolitan-district-council/walsall,WC67-,WC67-535,30/04/2016,Social Care & Inclusion,EMPOWERING U CARE LTD,20/04/2016,"1,458.00",73374-SUPPORTED & OTHER ACCOMMODATION,LD COMMISSIONING,Third Party Payments,,Revenue, 
Walsall Council,http://opendatacommunities.org/id/metropolitan-district-council/walsall,WC67-,WC67-536,30/04/2016,Social Care & Inclusion,EMPOWERING U CARE LTD,20/04/2016,"1,903.52",73374-SUPPORTED & OTHER ACCOMMODATION,LD COMMISSIONING,Third Party Payments,,Revenue, 
Walsall Council,http://opendatacommunities.org/id/metropolitan-district-council/walsall,WC67-,WC67-537,30/04/2016,Social Care & Inclusion,EMPOWERING U CARE LTD,20/04/2016,"2,011.52",73374-SUPPORTED & OTHER ACCOMMODATION,LD COMMISSIONING,Third Party Payments,,Revenue, 
Walsall Council,http://opendatacommunities.org/id/metropolitan-district-council/walsall,WC67-,WC67-538,30/04/2016,Social Care & Inclusion,EMPOWERING U CARE LTD,20/04/2016,"2,187.00",73374-SUPPORTED & OTHER ACCOMMODATION,LD COMMISSIONING,Third Party Payments,,Revenue, 
Walsall Council,http://opendatacommunities.org/id/metropolitan-district-council/walsall,WC67-,WC67-539,30/04/2016,Social Care & Inclusion,EMPOWERING U CARE LTD,20/04/2016,"4,632.00",73374-SUPPORTED & OTHER ACCOMMODATION,YADS COMMISSIONING,Third Party Payments,,Revenue, 
Walsall Council,http://opendatacommunities.org/id/metropolitan-district-council/walsall,WC67-,WC67-540,30/04/2016,Social Care & Inclusion,EMPOWERING U CARE LTD,20/04/2016,"5,712.00",73374-SUPPORTED & OTHER ACCOMMODATION,YADS COMMISSIONING,Third Party Payments,,Revenue, 
Walsall Council,http://opendatacommunities.org/id/metropolitan-district-council/walsall,WC67-,WC67-541,30/04/2016,Social Care & Inclusion,REDACTED,11/04/2016,"1,511.64",76422-DIRECT PAYMENTS TO SOCIAL SERVICES CLIENTS,OP COMMISSIONING,Transfer Payments,,Revenue,Y
Walsall Council,http://opendatacommunities.org/id/metropolitan-district-council/walsall,WC67-,WC67-542,30/04/2016,Social Care & Inclusion,REDACTED,11/04/2016,"1,488.00",76422-DIRECT PAYMENTS TO SOCIAL SERVICES CLIENTS,OP COMMISSIONING,Transfer Payments,,Revenue,Y
Walsall Council,http://opendatacommunities.org/id/metropolitan-district-council/walsall,WC67-,WC67-543,30/04/2016,Social Care & Inclusion,FAR FILLIMORE CARE HOMES LTD T/A NIGHTINGALE COURT,19/04/2016,"1,553.82",73373-RESIDENTIAL & NURSING CARE PLACEMENTS,LD COMMISSIONING,Third Party Payments,,Revenue, 
Walsall Council,http://opendatacommunities.org/id/metropolitan-district-council/walsall,WC67-,WC67-544,30/04/2016,Social Care & Inclusion,REDACTED,11/04/2016,372.00,76422-DIRECT PAYMENTS TO SOCIAL SERVICES CLIENTS,MH COMMISSIONING,Transfer Payments,,Revenue,Y
Walsall Council,http://opendatacommunities.org/id/metropolitan-district-council/walsall,WC67-,WC67-545,30/04/2016,Social Care & Inclusion,REDACTED,11/04/2016,422.32,76422-DIRECT PAYMENTS TO SOCIAL SERVICES CLIENTS,LD COMMISSIONING,Transfer Payments,,Revenue,Y
Walsall Council,http://opendatacommunities.org/id/metropolitan-district-council/walsall,WC67-,WC67-546,30/04/2016,Social Care & Inclusion,FERNWOOD COURT CARE HOME,26/04/2016,560.23,73373-RESIDENTIAL & NURSING CARE PLACEMENTS,OP COMMISSIONING,Third Party Payments,,Revenue, 
Walsall Council,http://opendatacommunities.org/id/metropolitan-district-council/walsall,WC67-,WC67-547,30/04/2016,Social Care & Inclusion,FERNWOOD COURT CARE HOME,26/04/2016,560.23,73373-RESIDENTIAL & NURSING CARE PLACEMENTS,OP COMMISSIONING,Third Party Payments,,Revenue, 
Walsall Council,http://opendatacommunities.org/id/metropolitan-district-council/walsall,WC67-,WC67-548,30/04/2016,Social Care & Inclusion,FERNWOOD COURT CARE HOME,26/04/2016,620.47,73373-RESIDENTIAL & NURSING CARE PLACEMENTS,MH COMMISSIONING,Third Party Payments,,Revenue, 
Walsall Council,http://opendatacommunities.org/id/metropolitan-district-council/walsall,WC67-,WC67-549,30/04/2016,Social Care & Inclusion,FERNWOOD COURT CARE HOME,26/04/2016,620.47,73373-RESIDENTIAL & NURSING CARE PLACEMENTS,MH COMMISSIONING,Third Party Payments,,Revenue, 
Walsall Council,http://opendatacommunities.org/id/metropolitan-district-council/walsall,WC67-,WC67-550,30/04/2016,Social Care & Inclusion,FERNWOOD COURT CARE HOME,26/04/2016,672.27,73373-RESIDENTIAL & NURSING CARE PLACEMENTS,OP COMMISSIONING,Third Party Payments,,Revenue, 
Walsall Council,http://opendatacommunities.org/id/metropolitan-district-council/walsall,WC67-,WC67-551,30/04/2016,Social Care & Inclusion,FERNWOOD COURT CARE HOME,26/04/2016,952.39,73373-RESIDENTIAL & NURSING CARE PLACEMENTS,OP COMMISSIONING,Third Party Payments,,Revenue, 
Walsall Council,http://opendatacommunities.org/id/metropolitan-district-council/walsall,WC67-,WC67-552,30/04/2016,Social Care & Inclusion,FERNWOOD COURT CARE HOME,26/04/2016,"1,008.41",73373-RESIDENTIAL & NURSING CARE PLACEMENTS,OP COMMISSIONING,Third Party Payments,,Revenue, 
Walsall Council,http://opendatacommunities.org/id/metropolitan-district-council/walsall,WC67-,WC67-553,30/04/2016,Social Care & Inclusion,FERNWOOD COURT CARE HOME,26/04/2016,"1,116.85",73373-RESIDENTIAL & NURSING CARE PLACEMENTS,MH COMMISSIONING,Third Party Payments,,Revenue, 
Walsall Council,http://opendatacommunities.org/id/metropolitan-district-council/walsall,WC67-,WC67-554,30/04/2016,Social Care & Inclusion,FERNWOOD COURT CARE HOME,26/04/2016,"1,116.85",73373-RESIDENTIAL & NURSING CARE PLACEMENTS,MH COMMISSIONING,Third Party Payments,,Revenue, 
Walsall Council,http://opendatacommunities.org/id/metropolitan-district-council/walsall,WC67-,WC67-555,30/04/2016,Social Care & Inclusion,FERNWOOD COURT CARE HOME,26/04/2016,"1,400.57",73373-RESIDENTIAL & NURSING CARE PLACEMENTS,OP COMMISSIONING,Third Party Payments,,Revenue, 
Walsall Council,http://opendatacommunities.org/id/metropolitan-district-council/walsall,WC67-,WC67-556,30/04/2016,Social Care & Inclusion,FERNWOOD COURT CARE HOME,26/04/2016,"1,493.24",73373-RESIDENTIAL & NURSING CARE PLACEMENTS,OP COMMISSIONING,Third Party Payments,,Revenue, 
Walsall Council,http://opendatacommunities.org/id/metropolitan-district-council/walsall,WC67-,WC67-557,30/04/2016,Social Care & Inclusion,FERNWOOD COURT CARE HOME,26/04/2016,"1,568.64",73373-RESIDENTIAL & NURSING CARE PLACEMENTS,OP COMMISSIONING,Third Party Payments,,Revenue, 
Walsall Council,http://opendatacommunities.org/id/metropolitan-district-council/walsall,WC67-,WC67-558,30/04/2016,Social Care & Inclusion,FERNWOOD COURT CARE HOME,26/04/2016,"1,568.64",73373-RESIDENTIAL & NURSING CARE PLACEMENTS,OP COMMISSIONING,Third Party Payments,,Revenue, 
Walsall Council,http://opendatacommunities.org/id/metropolitan-district-council/walsall,WC67-,WC67-559,30/04/2016,Social Care & Inclusion,FERNWOOD COURT CARE HOME,26/04/2016,"1,568.64",73373-RESIDENTIAL & NURSING CARE PLACEMENTS,OP COMMISSIONING,Third Party Payments,,Revenue, 
Walsall Council,http://opendatacommunities.org/id/metropolitan-district-council/walsall,WC67-,WC67-560,30/04/2016,Social Care & Inclusion,FERNWOOD COURT CARE HOME,26/04/2016,"1,568.64",73373-RESIDENTIAL & NURSING CARE PLACEMENTS,OP COMMISSIONING,Third Party Payments,,Revenue, 
Walsall Council,http://opendatacommunities.org/id/metropolitan-district-council/walsall,WC67-,WC67-561,30/04/2016,Social Care & Inclusion,FERNWOOD COURT CARE HOME,26/04/2016,"1,568.64",73373-RESIDENTIAL & NURSING CARE PLACEMENTS,OP COMMISSIONING,Third Party Payments,,Revenue, 
Walsall Council,http://opendatacommunities.org/id/metropolitan-district-council/walsall,WC67-,WC67-562,30/04/2016,Social Care & Inclusion,FERNWOOD COURT CARE HOME,26/04/2016,"1,568.64",73373-RESIDENTIAL & NURSING CARE PLACEMENTS,MH COMMISSIONING,Third Party Payments,,Revenue, 
Walsall Council,http://opendatacommunities.org/id/metropolitan-district-council/walsall,WC67-,WC67-563,30/04/2016,Social Care & Inclusion,FERNWOOD COURT CARE HOME,26/04/2016,"1,592.64",73373-RESIDENTIAL & NURSING CARE PLACEMENTS,MH COMMISSIONING,Third Party Payments,,Revenue, 
Walsall Council,http://opendatacommunities.org/id/metropolitan-district-council/walsall,WC67-,WC67-564,30/04/2016,Social Care & Inclusion,FERNWOOD COURT CARE HOME,26/04/2016,"1,592.64",73373-RESIDENTIAL & NURSING CARE PLACEMENTS,OP COMMISSIONING,Third Party Payments,,Revenue, 
Walsall Council,http://opendatacommunities.org/id/metropolitan-district-council/walsall,WC67-,WC67-565,30/04/2016,Social Care & Inclusion,FERNWOOD COURT CARE HOME,26/04/2016,"1,703.44",73373-RESIDENTIAL & NURSING CARE PLACEMENTS,MH COMMISSIONING,Third Party Payments,,Revenue, 
Walsall Council,http://opendatacommunities.org/id/metropolitan-district-council/walsall,WC67-,WC67-566,30/04/2016,Social Care & Inclusion,FERNWOOD COURT CARE HOME,26/04/2016,"1,703.68",73373-RESIDENTIAL & NURSING CARE PLACEMENTS,MH COMMISSIONING,Third Party Payments,,Revenue, 
Walsall Council,http://opendatacommunities.org/id/metropolitan-district-council/walsall,WC67-,WC67-567,30/04/2016,Social Care & Inclusion,FERNWOOD COURT CARE HOME,13/04/2016,"1,737.32",73373-RESIDENTIAL & NURSING CARE PLACEMENTS,MH COMMISSIONING,Third Party Payments,,Revenue, 
Walsall Council,http://opendatacommunities.org/id/metropolitan-district-council/walsall,WC67-,WC67-568,30/04/2016,Social Care & Inclusion,FERNWOOD COURT CARE HOME,26/04/2016,"1,737.32",73373-RESIDENTIAL & NURSING CARE PLACEMENTS,MH COMMISSIONING,Third Party Payments,,Revenue, 
Walsall Council,http://opendatacommunities.org/id/metropolitan-district-council/walsall,WC67-,WC67-569,30/04/2016,Social Care & Inclusion,FERNWOOD COURT CARE HOME,26/04/2016,"1,737.32",73373-RESIDENTIAL & NURSING CARE PLACEMENTS,MH COMMISSIONING,Third Party Payments,,Revenue, 
Walsall Council,http://opendatacommunities.org/id/metropolitan-district-council/walsall,WC67-,WC67-570,30/04/2016,Social Care & Inclusion,FERNWOOD COURT CARE HOME,26/04/2016,"1,737.32",73373-RESIDENTIAL & NURSING CARE PLACEMENTS,OP COMMISSIONING,Third Party Payments,,Revenue, 
Walsall Council,http://opendatacommunities.org/id/metropolitan-district-council/walsall,WC67-,WC67-571,30/04/2016,Social Care & Inclusion,FERNWOOD COURT CARE HOME,26/04/2016,"1,768.64",73373-RESIDENTIAL & NURSING CARE PLACEMENTS,OP COMMISSIONING,Third Party Payments,,Revenue, 
Walsall Council,http://opendatacommunities.org/id/metropolitan-district-council/walsall,WC67-,WC67-572,30/04/2016,Social Care & Inclusion,FERNWOOD COURT CARE HOME,26/04/2016,"1,768.64",73373-RESIDENTIAL & NURSING CARE PLACEMENTS,OP COMMISSIONING,Third Party Payments,,Revenue, 
Walsall Council,http://opendatacommunities.org/id/metropolitan-district-council/walsall,WC67-,WC67-573,30/04/2016,Social Care & Inclusion,FERNWOOD COURT CARE HOME,26/04/2016,"1,822.40",73373-RESIDENTIAL & NURSING CARE PLACEMENTS,MH COMMISSIONING,Third Party Payments,,Revenue, 
Walsall Council,http://opendatacommunities.org/id/metropolitan-district-council/walsall,WC67-,WC67-574,30/04/2016,Social Care & Inclusion,FERNWOOD COURT CARE HOME,26/04/2016,"1,840.52",73373-RESIDENTIAL & NURSING CARE PLACEMENTS,MH COMMISSIONING,Third Party Payments,,Revenue, 
Walsall Council,http://opendatacommunities.org/id/metropolitan-district-council/walsall,WC67-,WC67-575,30/04/2016,Social Care & Inclusion,REDACTED,11/04/2016,786.00,76422-DIRECT PAYMENTS TO SOCIAL SERVICES CLIENTS,LD COMMISSIONING,Transfer Payments,,Revenue,Y
Walsall Council,http://opendatacommunities.org/id/metropolitan-district-council/walsall,WC67-,WC67-576,30/04/2016,Social Care & Inclusion,FIRST FOR CARE LTD,13/04/2016,"1,599.99",73373-RESIDENTIAL & NURSING CARE PLACEMENTS,OP COMMISSIONING,Third Party Payments,,Revenue, 
Walsall Council,http://opendatacommunities.org/id/metropolitan-district-council/walsall,WC67-,WC67-577,30/04/2016,Social Care & Inclusion,FIRST FOR CARE LTD,13/04/2016,"1,680.69",73373-RESIDENTIAL & NURSING CARE PLACEMENTS,OP COMMISSIONING,Third Party Payments,,Revenue, 
Walsall Council,http://opendatacommunities.org/id/metropolitan-district-council/walsall,WC67-,WC67-578,30/04/2016,Social Care & Inclusion,FIRST FOR CARE LTD,13/04/2016,"1,680.73",73373-RESIDENTIAL & NURSING CARE PLACEMENTS,MH COMMISSIONING,Third Party Payments,,Revenue, 
Walsall Council,http://opendatacommunities.org/id/metropolitan-district-council/walsall,WC67-,WC67-579,30/04/2016,Social Care & Inclusion,FIRST FOR CARE LTD,13/04/2016,"1,680.73",73373-RESIDENTIAL & NURSING CARE PLACEMENTS,OP COMMISSIONING,Third Party Payments,,Revenue, 
Walsall Council,http://opendatacommunities.org/id/metropolitan-district-council/walsall,WC67-,WC67-580,30/04/2016,Social Care & Inclusion,FIRST FOR CARE LTD,13/04/2016,"2,261.70",73373-RESIDENTIAL & NURSING CARE PLACEMENTS,YADS COMMISSIONING,Third Party Payments,,Revenue, 
Walsall Council,http://opendatacommunities.org/id/metropolitan-district-council/walsall,WC67-,WC67-581,30/04/2016,Social Care & Inclusion,FOREST COMMUNITY ASSOCIATION,08/04/2016,251.80,70000-SOCIAL SERVICES-FEES TO VOLUNTARY BODIES,CARERS SERVICES,Third Party Payments,,Revenue, 
Walsall Council,http://opendatacommunities.org/id/metropolitan-district-council/walsall,WC67-,WC67-582,30/04/2016,Social Care & Inclusion,FOUR SEASONS HEALTH CARE 001,26/04/2016,"1,527.60",73373-RESIDENTIAL & NURSING CARE PLACEMENTS,OP COMMISSIONING,Third Party Payments,,Revenue, 
Walsall Council,http://opendatacommunities.org/id/metropolitan-district-council/walsall,WC67-,WC67-583,30/04/2016,Social Care & Inclusion,FOUR SEASONS HEALTH CARE 001,26/04/2016,"1,527.60",73373-RESIDENTIAL & NURSING CARE PLACEMENTS,OP COMMISSIONING,Third Party Payments,,Revenue, 
Walsall Council,http://opendatacommunities.org/id/metropolitan-district-council/walsall,WC67-,WC67-584,30/04/2016,Social Care & Inclusion,REDACTED,20/04/2016,367.62,73374-SUPPORTED & OTHER ACCOMMODATION,LD COMMISSIONING,Third Party Payments,,Revenue,Y
Walsall Council,http://opendatacommunities.org/id/metropolitan-district-council/walsall,WC67-,WC67-585,30/04/2016,Social Care & Inclusion,REDACTED,20/04/2016,574.22,73374-SUPPORTED & OTHER ACCOMMODATION,LD COMMISSIONING,Third Party Payments,,Revenue,Y
Walsall Council,http://opendatacommunities.org/id/metropolitan-district-council/walsall,WC67-,WC67-586,30/04/2016,Social Care & Inclusion,REDACTED,11/04/2016,"1,342.00",76422-DIRECT PAYMENTS TO SOCIAL SERVICES CLIENTS,YADS COMMISSIONING,Transfer Payments,,Revenue,Y
Walsall Council,http://opendatacommunities.org/id/metropolitan-district-council/walsall,WC67-,WC67-587,30/04/2016,Social Care & Inclusion,REDACTED,11/04/2016,"4,055.41",76422-DIRECT PAYMENTS TO SOCIAL SERVICES CLIENTS,LD COMMISSIONING,Transfer Payments,,Revenue,Y
Walsall Council,http://opendatacommunities.org/id/metropolitan-district-council/walsall,WC67-,WC67-588,30/04/2016,Social Care & Inclusion,REDACTED,11/04/2016,902.96,76422-DIRECT PAYMENTS TO SOCIAL SERVICES CLIENTS,MH COMMISSIONING,Transfer Payments,,Revenue,Y
Walsall Council,http://opendatacommunities.org/id/metropolitan-district-council/walsall,WC67-,WC67-589,30/04/2016,Social Care & Inclusion,REDACTED,11/04/2016,"1,510.60",76422-DIRECT PAYMENTS TO SOCIAL SERVICES CLIENTS,YADS COMMISSIONING,Transfer Payments,,Revenue,Y
Walsall Council,http://opendatacommunities.org/id/metropolitan-district-council/walsall,WC67-,WC67-590,30/04/2016,Social Care & Inclusion,REDACTED,11/04/2016,"1,316.00",76422-DIRECT PAYMENTS TO SOCIAL SERVICES CLIENTS,YADS COMMISSIONING,Transfer Payments,,Revenue,Y
Walsall Council,http://opendatacommunities.org/id/metropolitan-district-council/walsall,WC67-,WC67-591,30/04/2016,Social Care & Inclusion,REDACTED,08/04/2016,"1,418.80",73374-SUPPORTED & OTHER ACCOMMODATION,LD COMMISSIONING,Third Party Payments,,Revenue,Y
Walsall Council,http://opendatacommunities.org/id/metropolitan-district-council/walsall,WC67-,WC67-592,30/04/2016,Social Care & Inclusion,GENERAL MANAGER LEGAL SERVICE,06/04/2016,"1,200.00",73010-MINESHAFT INV-PRIV CONTRACTOR FEES,MENTAL HEALTH MANAGEMENT TEAM,Third Party Payments,,Revenue, 
Walsall Council,http://opendatacommunities.org/id/metropolitan-district-council/walsall,WC67-,WC67-593,30/04/2016,Social Care & Inclusion,REDACTED,11/04/2016,577.51,76422-DIRECT PAYMENTS TO SOCIAL SERVICES CLIENTS,OP COMMISSIONING,Transfer Payments,,Revenue,Y
Walsall Council,http://opendatacommunities.org/id/metropolitan-district-council/walsall,WC67-,WC67-594,30/04/2016,Social Care & Inclusion,REDACTED,11/04/2016,"2,159.04",76422-DIRECT PAYMENTS TO SOCIAL SERVICES CLIENTS,OP COMMISSIONING,Transfer Payments,,Revenue,Y
Walsall Council,http://opendatacommunities.org/id/metropolitan-district-council/walsall,WC67-,WC67-595,30/04/2016,Social Care & Inclusion,REDACTED,11/04/2016,"1,047.28",76422-DIRECT PAYMENTS TO SOCIAL SERVICES CLIENTS,YADS COMMISSIONING,Transfer Payments,,Revenue,Y
Walsall Council,http://opendatacommunities.org/id/metropolitan-district-council/walsall,WC67-,WC67-596,30/04/2016,Social Care & Inclusion,REDACTED,11/04/2016,"1,772.00",76422-DIRECT PAYMENTS TO SOCIAL SERVICES CLIENTS,OP COMMISSIONING,Transfer Payments,,Revenue,Y
Walsall Council,http://opendatacommunities.org/id/metropolitan-district-council/walsall,WC67-,WC67-597,30/04/2016,Social Care & Inclusion,REDACTED,11/04/2016,"1,224.00",76422-DIRECT PAYMENTS TO SOCIAL SERVICES CLIENTS,YADS COMMISSIONING,Transfer Payments,,Revenue,Y
Walsall Council,http://opendatacommunities.org/id/metropolitan-district-council/walsall,WC67-,WC67-598,30/04/2016,Social Care & Inclusion,REDACTED,11/04/2016,"3,090.72",76422-DIRECT PAYMENTS TO SOCIAL SERVICES CLIENTS,YADS COMMISSIONING,Transfer Payments,,Revenue,Y
Walsall Council,http://opendatacommunities.org/id/metropolitan-district-council/walsall,WC67-,WC67-599,30/04/2016,Social Care & Inclusion,REDACTED,11/04/2016,"1,444.72",76422-DIRECT PAYMENTS TO SOCIAL SERVICES CLIENTS,YADS COMMISSIONING,Transfer Payments,,Revenue,Y
Walsall Council,http://opendatacommunities.org/id/metropolitan-district-council/walsall,WC67-,WC67-600,30/04/2016,Social Care & Inclusion,GRANGEMOOR CARE HOMES,13/04/2016,"3,505.71",73373-RESIDENTIAL & NURSING CARE PLACEMENTS,MH COMMISSIONING,Third Party Payments,,Revenue, 
Walsall Council,http://opendatacommunities.org/id/metropolitan-district-council/walsall,WC67-,WC67-601,30/04/2016,Social Care & Inclusion,GTG CARE AND NURSING SERVICES,12/04/2016,398.60,73372-DOMICILIARY CARE,OP COMMISSIONING,Third Party Payments,,Revenue, 
Walsall Council,http://opendatacommunities.org/id/metropolitan-district-council/walsall,WC67-,WC67-602,30/04/2016,Social Care & Inclusion,GTG CARE AND NURSING SERVICES,26/04/2016,"13,771.32",73372-DOMICILIARY CARE,OP COMMISSIONING,Third Party Payments,,Revenue, 
Walsall Council,http://opendatacommunities.org/id/metropolitan-district-council/walsall,WC67-,WC67-603,30/04/2016,Social Care & Inclusion,GTG CARE AND NURSING SERVICES,26/04/2016,"16,887.00",73372-DOMICILIARY CARE,OP COMMISSIONING,Third Party Payments,,Revenue, 
Walsall Council,http://opendatacommunities.org/id/metropolitan-district-council/walsall,WC67-,WC67-604,30/04/2016,Social Care & Inclusion,REDACTED,11/04/2016,353.47,76422-DIRECT PAYMENTS TO SOCIAL SERVICES CLIENTS,OP COMMISSIONING,Transfer Payments,,Revenue,Y
Walsall Council,http://opendatacommunities.org/id/metropolitan-district-council/walsall,WC67-,WC67-605,30/04/2016,Social Care & Inclusion,REDACTED,11/04/2016,320.00,76422-DIRECT PAYMENTS TO SOCIAL SERVICES CLIENTS,OP COMMISSIONING,Transfer Payments,,Revenue,Y
Walsall Council,http://opendatacommunities.org/id/metropolitan-district-council/walsall,WC67-,WC67-606,30/04/2016,Social Care & Inclusion,REDACTED,11/04/2016,"1,475.95",76422-DIRECT PAYMENTS TO SOCIAL SERVICES CLIENTS,LD COMMISSIONING,Transfer Payments,,Revenue,Y
Walsall Council,http://opendatacommunities.org/id/metropolitan-district-council/walsall,WC67-,WC67-607,30/04/2016,Social Care & Inclusion,REDACTED,11/04/2016,442.00,76422-DIRECT PAYMENTS TO SOCIAL SERVICES CLIENTS,YADS COMMISSIONING,Transfer Payments,,Revenue,Y
Walsall Council,http://opendatacommunities.org/id/metropolitan-district-council/walsall,WC67-,WC67-608,30/04/2016,Social Care & Inclusion,REDACTED,11/04/2016,408.00,76422-DIRECT PAYMENTS TO SOCIAL SERVICES CLIENTS,YADS COMMISSIONING,Transfer Payments,,Revenue,Y
Walsall Council,http://opendatacommunities.org/id/metropolitan-district-council/walsall,WC67-,WC67-609,30/04/2016,Social Care & Inclusion,HAFOD CARE HOME,13/04/2016,"2,116.71",73373-RESIDENTIAL & NURSING CARE PLACEMENTS,OP COMMISSIONING,Third Party Payments,,Revenue, 
Walsall Council,http://opendatacommunities.org/id/metropolitan-district-council/walsall,WC67-,WC67-610,30/04/2016,Social Care & Inclusion,REDACTED,22/04/2016,380.00,63000-PROFESSIONAL FEES AND SERVICES,MENTAL HEALTH OUT-OF-HOURS SERVICE,Supplies & Services,,Revenue,Y
Walsall Council,http://opendatacommunities.org/id/metropolitan-district-council/walsall,WC67-,WC67-611,30/04/2016,Social Care & Inclusion,HARMONY CARE HOMES (2003) LTD,08/04/2016,260.00,73374-SUPPORTED & OTHER ACCOMMODATION,LD COMMISSIONING,Third Party Payments,,Revenue, 
Walsall Council,http://opendatacommunities.org/id/metropolitan-district-council/walsall,WC67-,WC67-612,30/04/2016,Social Care & Inclusion,HARMONY CARE HOMES (2003) LTD,27/04/2016,260.00,73374-SUPPORTED & OTHER ACCOMMODATION,LD COMMISSIONING,Third Party Payments,,Revenue, 
Walsall Council,http://opendatacommunities.org/id/metropolitan-district-council/walsall,WC67-,WC67-613,30/04/2016,Social Care & Inclusion,HARMONY CARE HOMES (2003) LTD,27/04/2016,279.00,73374-SUPPORTED & OTHER ACCOMMODATION,LD COMMISSIONING,Third Party Payments,,Revenue, 
Walsall Council,http://opendatacommunities.org/id/metropolitan-district-council/walsall,WC67-,WC67-614,30/04/2016,Social Care & Inclusion,HARMONY CARE HOMES (2003) LTD,08/04/2016,330.00,73374-SUPPORTED & OTHER ACCOMMODATION,LD COMMISSIONING,Third Party Payments,,Revenue, 
Walsall Council,http://opendatacommunities.org/id/metropolitan-district-council/walsall,WC67-,WC67-615,30/04/2016,Social Care & Inclusion,HARMONY CARE HOMES (2003) LTD,08/04/2016,336.00,73374-SUPPORTED & OTHER ACCOMMODATION,LD COMMISSIONING,Third Party Payments,,Revenue, 
Walsall Council,http://opendatacommunities.org/id/metropolitan-district-council/walsall,WC67-,WC67-616,30/04/2016,Social Care & Inclusion,HARMONY CARE HOMES (2003) LTD,27/04/2016,336.00,73374-SUPPORTED & OTHER ACCOMMODATION,LD COMMISSIONING,Third Party Payments,,Revenue, 
Walsall Council,http://opendatacommunities.org/id/metropolitan-district-council/walsall,WC67-,WC67-617,30/04/2016,Social Care & Inclusion,HARMONY CARE HOMES (2003) LTD,08/04/2016,360.00,73372-DOMICILIARY CARE,LD COMMISSIONING,Third Party Payments,,Revenue, 
Walsall Council,http://opendatacommunities.org/id/metropolitan-district-council/walsall,WC67-,WC67-618,30/04/2016,Social Care & Inclusion,HARMONY CARE HOMES (2003) LTD,27/04/2016,360.00,73374-SUPPORTED & OTHER ACCOMMODATION,LD COMMISSIONING,Third Party Payments,,Revenue, 
Walsall Council,http://opendatacommunities.org/id/metropolitan-district-council/walsall,WC67-,WC67-619,30/04/2016,Social Care & Inclusion,HARMONY CARE HOMES (2003) LTD,20/04/2016,360.10,73374-SUPPORTED & OTHER ACCOMMODATION,LD COMMISSIONING,Third Party Payments,,Revenue, 
Walsall Council,http://opendatacommunities.org/id/metropolitan-district-council/walsall,WC67-,WC67-620,30/04/2016,Social Care & Inclusion,HARMONY CARE HOMES (2003) LTD,08/04/2016,364.00,73374-SUPPORTED & OTHER ACCOMMODATION,LD COMMISSIONING,Third Party Payments,,Revenue, 
Walsall Council,http://opendatacommunities.org/id/metropolitan-district-council/walsall,WC67-,WC67-621,30/04/2016,Social Care & Inclusion,HARMONY CARE HOMES (2003) LTD,27/04/2016,364.00,73374-SUPPORTED & OTHER ACCOMMODATION,LD COMMISSIONING,Third Party Payments,,Revenue, 
Walsall Council,http://opendatacommunities.org/id/metropolitan-district-council/walsall,WC67-,WC67-622,30/04/2016,Social Care & Inclusion,HARMONY CARE HOMES (2003) LTD,08/04/2016,442.00,73374-SUPPORTED & OTHER ACCOMMODATION,LD COMMISSIONING,Third Party Payments,,Revenue, 
Walsall Council,http://opendatacommunities.org/id/metropolitan-district-council/walsall,WC67-,WC67-623,30/04/2016,Social Care & Inclusion,HARMONY CARE HOMES (2003) LTD,08/04/2016,504.00,73374-SUPPORTED & OTHER ACCOMMODATION,LD COMMISSIONING,Third Party Payments,,Revenue, 
Walsall Council,http://opendatacommunities.org/id/metropolitan-district-council/walsall,WC67-,WC67-624,30/04/2016,Social Care & Inclusion,HARMONY CARE HOMES (2003) LTD,08/04/2016,520.00,73374-SUPPORTED & OTHER ACCOMMODATION,LD COMMISSIONING,Third Party Payments,,Revenue, 
Walsall Council,http://opendatacommunities.org/id/metropolitan-district-council/walsall,WC67-,WC67-625,30/04/2016,Social Care & Inclusion,HARMONY CARE HOMES (2003) LTD,27/04/2016,520.00,73374-SUPPORTED & OTHER ACCOMMODATION,LD COMMISSIONING,Third Party Payments,,Revenue, 
Walsall Council,http://opendatacommunities.org/id/metropolitan-district-council/walsall,WC67-,WC67-626,30/04/2016,Social Care & Inclusion,HARMONY CARE HOMES (2003) LTD,27/04/2016,546.00,73374-SUPPORTED & OTHER ACCOMMODATION,LD COMMISSIONING,Third Party Payments,,Revenue, 
Walsall Council,http://opendatacommunities.org/id/metropolitan-district-council/walsall,WC67-,WC67-627,30/04/2016,Social Care & Inclusion,HARMONY CARE HOMES (2003) LTD,08/04/2016,560.00,73374-SUPPORTED & OTHER ACCOMMODATION,LD COMMISSIONING,Third Party Payments,,Revenue, 
Walsall Council,http://opendatacommunities.org/id/metropolitan-district-council/walsall,WC67-,WC67-628,30/04/2016,Social Care & Inclusion,HARMONY CARE HOMES (2003) LTD,27/04/2016,560.00,73374-SUPPORTED & OTHER ACCOMMODATION,LD COMMISSIONING,Third Party Payments,,Revenue, 
Walsall Council,http://opendatacommunities.org/id/metropolitan-district-council/walsall,WC67-,WC67-629,30/04/2016,Social Care & Inclusion,HARMONY CARE HOMES (2003) LTD,27/04/2016,575.00,73374-SUPPORTED & OTHER ACCOMMODATION,LD COMMISSIONING,Third Party Payments,,Revenue, 
Walsall Council,http://opendatacommunities.org/id/metropolitan-district-council/walsall,WC67-,WC67-630,30/04/2016,Social Care & Inclusion,HARMONY CARE HOMES (2003) LTD,27/04/2016,588.00,73374-SUPPORTED & OTHER ACCOMMODATION,LD COMMISSIONING,Third Party Payments,,Revenue, 
Walsall Council,http://opendatacommunities.org/id/metropolitan-district-council/walsall,WC67-,WC67-631,30/04/2016,Social Care & Inclusion,HARMONY CARE HOMES (2003) LTD,27/04/2016,588.00,73374-SUPPORTED & OTHER ACCOMMODATION,LD COMMISSIONING,Third Party Payments,,Revenue, 
Walsall Council,http://opendatacommunities.org/id/metropolitan-district-council/walsall,WC67-,WC67-632,30/04/2016,Social Care & Inclusion,HARMONY CARE HOMES (2003) LTD,08/04/2016,594.00,73374-SUPPORTED & OTHER ACCOMMODATION,LD COMMISSIONING,Third Party Payments,,Revenue, 
Walsall Council,http://opendatacommunities.org/id/metropolitan-district-council/walsall,WC67-,WC67-633,30/04/2016,Social Care & Inclusion,HARMONY CARE HOMES (2003) LTD,27/04/2016,609.00,73374-SUPPORTED & OTHER ACCOMMODATION,LD COMMISSIONING,Third Party Payments,,Revenue, 
Walsall Council,http://opendatacommunities.org/id/metropolitan-district-council/walsall,WC67-,WC67-634,30/04/2016,Social Care & Inclusion,HARMONY CARE HOMES (2003) LTD,08/04/2016,663.00,73374-SUPPORTED & OTHER ACCOMMODATION,LD COMMISSIONING,Third Party Payments,,Revenue, 
Walsall Council,http://opendatacommunities.org/id/metropolitan-district-council/walsall,WC67-,WC67-635,30/04/2016,Social Care & Inclusion,HARMONY CARE HOMES (2003) LTD,08/04/2016,672.00,73374-SUPPORTED & OTHER ACCOMMODATION,LD COMMISSIONING,Third Party Payments,,Revenue, 
Walsall Council,http://opendatacommunities.org/id/metropolitan-district-council/walsall,WC67-,WC67-636,30/04/2016,Social Care & Inclusion,HARMONY CARE HOMES (2003) LTD,08/04/2016,672.00,73374-SUPPORTED & OTHER ACCOMMODATION,LD COMMISSIONING,Third Party Payments,,Revenue, 
Walsall Council,http://opendatacommunities.org/id/metropolitan-district-council/walsall,WC67-,WC67-637,30/04/2016,Social Care & Inclusion,HARMONY CARE HOMES (2003) LTD,08/04/2016,672.00,73374-SUPPORTED & OTHER ACCOMMODATION,LD COMMISSIONING,Third Party Payments,,Revenue, 
Walsall Council,http://opendatacommunities.org/id/metropolitan-district-council/walsall,WC67-,WC67-638,30/04/2016,Social Care & Inclusion,HARMONY CARE HOMES (2003) LTD,27/04/2016,672.00,73374-SUPPORTED & OTHER ACCOMMODATION,LD COMMISSIONING,Third Party Payments,,Revenue, 
Walsall Council,http://opendatacommunities.org/id/metropolitan-district-council/walsall,WC67-,WC67-639,30/04/2016,Social Care & Inclusion,HARMONY CARE HOMES (2003) LTD,27/04/2016,692.00,73374-SUPPORTED & OTHER ACCOMMODATION,LD COMMISSIONING,Third Party Payments,,Revenue, 
Walsall Council,http://opendatacommunities.org/id/metropolitan-district-council/walsall,WC67-,WC67-640,30/04/2016,Social Care & Inclusion,HARMONY CARE HOMES (2003) LTD,27/04/2016,703.00,73374-SUPPORTED & OTHER ACCOMMODATION,LD COMMISSIONING,Third Party Payments,,Revenue, 
Walsall Council,http://opendatacommunities.org/id/metropolitan-district-council/walsall,WC67-,WC67-641,30/04/2016,Social Care & Inclusion,HARMONY CARE HOMES (2003) LTD,08/04/2016,710.50,73374-SUPPORTED & OTHER ACCOMMODATION,LD COMMISSIONING,Third Party Payments,,Revenue, 
Walsall Council,http://opendatacommunities.org/id/metropolitan-district-council/walsall,WC67-,WC67-642,30/04/2016,Social Care & Inclusion,HARMONY CARE HOMES (2003) LTD,08/04/2016,720.00,73374-SUPPORTED & OTHER ACCOMMODATION,LD COMMISSIONING,Third Party Payments,,Revenue, 
Walsall Council,http://opendatacommunities.org/id/metropolitan-district-council/walsall,WC67-,WC67-643,30/04/2016,Social Care & Inclusion,HARMONY CARE HOMES (2003) LTD,08/04/2016,784.00,73374-SUPPORTED & OTHER ACCOMMODATION,LD COMMISSIONING,Third Party Payments,,Revenue, 
Walsall Council,http://opendatacommunities.org/id/metropolitan-district-council/walsall,WC67-,WC67-644,30/04/2016,Social Care & Inclusion,HARMONY CARE HOMES (2003) LTD,27/04/2016,784.00,73374-SUPPORTED & OTHER ACCOMMODATION,LD COMMISSIONING,Third Party Payments,,Revenue, 
Walsall Council,http://opendatacommunities.org/id/metropolitan-district-council/walsall,WC67-,WC67-645,30/04/2016,Social Care & Inclusion,HARMONY CARE HOMES (2003) LTD,27/04/2016,812.00,73374-SUPPORTED & OTHER ACCOMMODATION,LD COMMISSIONING,Third Party Payments,,Revenue, 
Walsall Council,http://opendatacommunities.org/id/metropolitan-district-council/walsall,WC67-,WC67-646,30/04/2016,Social Care & Inclusion,HARMONY CARE HOMES (2003) LTD,27/04/2016,833.00,73374-SUPPORTED & OTHER ACCOMMODATION,LD COMMISSIONING,Third Party Payments,,Revenue, 
Walsall Council,http://opendatacommunities.org/id/metropolitan-district-council/walsall,WC67-,WC67-647,30/04/2016,Social Care & Inclusion,HARMONY CARE HOMES (2003) LTD,08/04/2016,840.00,73374-SUPPORTED & OTHER ACCOMMODATION,LD COMMISSIONING,Third Party Payments,,Revenue, 
Walsall Council,http://opendatacommunities.org/id/metropolitan-district-council/walsall,WC67-,WC67-648,30/04/2016,Social Care & Inclusion,HARMONY CARE HOMES (2003) LTD,27/04/2016,840.00,73374-SUPPORTED & OTHER ACCOMMODATION,LD COMMISSIONING,Third Party Payments,,Revenue, 
Walsall Council,http://opendatacommunities.org/id/metropolitan-district-council/walsall,WC67-,WC67-649,30/04/2016,Social Care & Inclusion,HARMONY CARE HOMES (2003) LTD,08/04/2016,851.50,73374-SUPPORTED & OTHER ACCOMMODATION,LD COMMISSIONING,Third Party Payments,,Revenue, 
Walsall Council,http://opendatacommunities.org/id/metropolitan-district-council/walsall,WC67-,WC67-650,30/04/2016,Social Care & Inclusion,HARMONY CARE HOMES (2003) LTD,08/04/2016,870.00,73374-SUPPORTED & OTHER ACCOMMODATION,LD COMMISSIONING,Third Party Payments,,Revenue, 
Walsall Council,http://opendatacommunities.org/id/metropolitan-district-council/walsall,WC67-,WC67-651,30/04/2016,Social Care & Inclusion,HARMONY CARE HOMES (2003) LTD,27/04/2016,913.25,73374-SUPPORTED & OTHER ACCOMMODATION,LD COMMISSIONING,Third Party Payments,,Revenue, 
Walsall Council,http://opendatacommunities.org/id/metropolitan-district-council/walsall,WC67-,WC67-652,30/04/2016,Social Care & Inclusion,HARMONY CARE HOMES (2003) LTD,08/04/2016,936.00,73374-SUPPORTED & OTHER ACCOMMODATION,LD COMMISSIONING,Third Party Payments,,Revenue, 
Walsall Council,http://opendatacommunities.org/id/metropolitan-district-council/walsall,WC67-,WC67-653,30/04/2016,Social Care & Inclusion,HARMONY CARE HOMES (2003) LTD,08/04/2016,936.00,73374-SUPPORTED & OTHER ACCOMMODATION,LD COMMISSIONING,Third Party Payments,,Revenue, 
Walsall Council,http://opendatacommunities.org/id/metropolitan-district-council/walsall,WC67-,WC67-654,30/04/2016,Social Care & Inclusion,HARMONY CARE HOMES (2003) LTD,27/04/2016,936.00,73374-SUPPORTED & OTHER ACCOMMODATION,LD COMMISSIONING,Third Party Payments,,Revenue, 
Walsall Council,http://opendatacommunities.org/id/metropolitan-district-council/walsall,WC67-,WC67-655,30/04/2016,Social Care & Inclusion,HARMONY CARE HOMES (2003) LTD,27/04/2016,936.00,73374-SUPPORTED & OTHER ACCOMMODATION,LD COMMISSIONING,Third Party Payments,,Revenue, 
Walsall Council,http://opendatacommunities.org/id/metropolitan-district-council/walsall,WC67-,WC67-656,30/04/2016,Social Care & Inclusion,HARMONY CARE HOMES (2003) LTD,08/04/2016,"1,008.00",73374-SUPPORTED & OTHER ACCOMMODATION,YADS COMMISSIONING,Third Party Payments,,Revenue, 
Walsall Council,http://opendatacommunities.org/id/metropolitan-district-council/walsall,WC67-,WC67-657,30/04/2016,Social Care & Inclusion,HARMONY CARE HOMES (2003) LTD,27/04/2016,"1,008.00",73374-SUPPORTED & OTHER ACCOMMODATION,LD COMMISSIONING,Third Party Payments,,Revenue, 
Walsall Council,http://opendatacommunities.org/id/metropolitan-district-council/walsall,WC67-,WC67-658,30/04/2016,Social Care & Inclusion,HARMONY CARE HOMES (2003) LTD,27/04/2016,"1,010.00",73374-SUPPORTED & OTHER ACCOMMODATION,LD COMMISSIONING,Third Party Payments,,Revenue, 
Walsall Council,http://opendatacommunities.org/id/metropolitan-district-council/walsall,WC67-,WC67-659,30/04/2016,Social Care & Inclusion,HARMONY CARE HOMES (2003) LTD,27/04/2016,"1,028.00",73374-SUPPORTED & OTHER ACCOMMODATION,LD COMMISSIONING,Third Party Payments,,Revenue, 
Walsall Council,http://opendatacommunities.org/id/metropolitan-district-council/walsall,WC67-,WC67-660,30/04/2016,Social Care & Inclusion,HARMONY CARE HOMES (2003) LTD,08/04/2016,"1,044.00",73374-SUPPORTED & OTHER ACCOMMODATION,LD COMMISSIONING,Third Party Payments,,Revenue, 
Walsall Council,http://opendatacommunities.org/id/metropolitan-district-council/walsall,WC67-,WC67-661,30/04/2016,Social Care & Inclusion,HARMONY CARE HOMES (2003) LTD,08/04/2016,"1,061.00",73374-SUPPORTED & OTHER ACCOMMODATION,LD COMMISSIONING,Third Party Payments,,Revenue, 
Walsall Council,http://opendatacommunities.org/id/metropolitan-district-council/walsall,WC67-,WC67-662,30/04/2016,Social Care & Inclusion,HARMONY CARE HOMES (2003) LTD,27/04/2016,"1,087.50",73374-SUPPORTED & OTHER ACCOMMODATION,LD COMMISSIONING,Third Party Payments,,Revenue, 
Walsall Council,http://opendatacommunities.org/id/metropolitan-district-council/walsall,WC67-,WC67-663,30/04/2016,Social Care & Inclusion,HARMONY CARE HOMES (2003) LTD,27/04/2016,"1,101.00",73374-SUPPORTED & OTHER ACCOMMODATION,LD COMMISSIONING,Third Party Payments,,Revenue, 
Walsall Council,http://opendatacommunities.org/id/metropolitan-district-council/walsall,WC67-,WC67-664,30/04/2016,Social Care & Inclusion,HARMONY CARE HOMES (2003) LTD,08/04/2016,"1,179.00",73374-SUPPORTED & OTHER ACCOMMODATION,LD COMMISSIONING,Third Party Payments,,Revenue, 
Walsall Council,http://opendatacommunities.org/id/metropolitan-district-council/walsall,WC67-,WC67-665,30/04/2016,Social Care & Inclusion,HARMONY CARE HOMES (2003) LTD,08/04/2016,"1,220.24",73374-SUPPORTED & OTHER ACCOMMODATION,LD COMMISSIONING,Third Party Payments,,Revenue, 
Walsall Council,http://opendatacommunities.org/id/metropolitan-district-council/walsall,WC67-,WC67-666,30/04/2016,Social Care & Inclusion,HARMONY CARE HOMES (2003) LTD,27/04/2016,"1,252.88",73374-SUPPORTED & OTHER ACCOMMODATION,LD COMMISSIONING,Third Party Payments,,Revenue, 
Walsall Council,http://opendatacommunities.org/id/metropolitan-district-council/walsall,WC67-,WC67-667,30/04/2016,Social Care & Inclusion,HARMONY CARE HOMES (2003) LTD,08/04/2016,"1,255.50",73374-SUPPORTED & OTHER ACCOMMODATION,LD COMMISSIONING,Third Party Payments,,Revenue, 
Walsall Council,http://opendatacommunities.org/id/metropolitan-district-council/walsall,WC67-,WC67-668,30/04/2016,Social Care & Inclusion,HARMONY CARE HOMES (2003) LTD,27/04/2016,"1,269.00",73374-SUPPORTED & OTHER ACCOMMODATION,LD COMMISSIONING,Third Party Payments,,Revenue, 
Walsall Council,http://opendatacommunities.org/id/metropolitan-district-council/walsall,WC67-,WC67-669,30/04/2016,Social Care & Inclusion,HARMONY CARE HOMES (2003) LTD,08/04/2016,"1,300.00",73374-SUPPORTED & OTHER ACCOMMODATION,LD COMMISSIONING,Third Party Payments,,Revenue, 
Walsall Council,http://opendatacommunities.org/id/metropolitan-district-council/walsall,WC67-,WC67-670,30/04/2016,Social Care & Inclusion,HARMONY CARE HOMES (2003) LTD,27/04/2016,"1,300.00",73374-SUPPORTED & OTHER ACCOMMODATION,LD COMMISSIONING,Third Party Payments,,Revenue, 
Walsall Council,http://opendatacommunities.org/id/metropolitan-district-council/walsall,WC67-,WC67-671,30/04/2016,Social Care & Inclusion,HARMONY CARE HOMES (2003) LTD,27/04/2016,"1,330.00",73374-SUPPORTED & OTHER ACCOMMODATION,LD COMMISSIONING,Third Party Payments,,Revenue, 
Walsall Council,http://opendatacommunities.org/id/metropolitan-district-council/walsall,WC67-,WC67-672,30/04/2016,Social Care & Inclusion,HARMONY CARE HOMES (2003) LTD,27/04/2016,"1,332.50",73374-SUPPORTED & OTHER ACCOMMODATION,LD COMMISSIONING,Third Party Payments,,Revenue, 
Walsall Council,http://opendatacommunities.org/id/metropolitan-district-council/walsall,WC67-,WC67-673,30/04/2016,Social Care & Inclusion,HARMONY CARE HOMES (2003) LTD,08/04/2016,"1,421.00",73374-SUPPORTED & OTHER ACCOMMODATION,LD COMMISSIONING,Third Party Payments,,Revenue, 
Walsall Council,http://opendatacommunities.org/id/metropolitan-district-council/walsall,WC67-,WC67-674,30/04/2016,Social Care & Inclusion,HARMONY CARE HOMES (2003) LTD,27/04/2016,"1,533.00",73374-SUPPORTED & OTHER ACCOMMODATION,LD COMMISSIONING,Third Party Payments,,Revenue, 
Walsall Council,http://opendatacommunities.org/id/metropolitan-district-council/walsall,WC67-,WC67-675,30/04/2016,Social Care & Inclusion,HARMONY CARE HOMES (2003) LTD,08/04/2016,"1,540.00",73374-SUPPORTED & OTHER ACCOMMODATION,LD COMMISSIONING,Third Party Payments,,Revenue, 
Walsall Council,http://opendatacommunities.org/id/metropolitan-district-council/walsall,WC67-,WC67-676,30/04/2016,Social Care & Inclusion,HARMONY CARE HOMES (2003) LTD,08/04/2016,"1,540.00",73374-SUPPORTED & OTHER ACCOMMODATION,LD COMMISSIONING,Third Party Payments,,Revenue, 
Walsall Council,http://opendatacommunities.org/id/metropolitan-district-council/walsall,WC67-,WC67-677,30/04/2016,Social Care & Inclusion,HARMONY CARE HOMES (2003) LTD,27/04/2016,"1,540.00",73374-SUPPORTED & OTHER ACCOMMODATION,LD COMMISSIONING,Third Party Payments,,Revenue, 
Walsall Council,http://opendatacommunities.org/id/metropolitan-district-council/walsall,WC67-,WC67-678,30/04/2016,Social Care & Inclusion,HARMONY CARE HOMES (2003) LTD,27/04/2016,"1,624.00",73374-SUPPORTED & OTHER ACCOMMODATION,LD COMMISSIONING,Third Party Payments,,Revenue, 
Walsall Council,http://opendatacommunities.org/id/metropolitan-district-council/walsall,WC67-,WC67-679,30/04/2016,Social Care & Inclusion,HARMONY CARE HOMES (2003) LTD,27/04/2016,"1,638.00",73374-SUPPORTED & OTHER ACCOMMODATION,LD COMMISSIONING,Third Party Payments,,Revenue, 
Walsall Council,http://opendatacommunities.org/id/metropolitan-district-council/walsall,WC67-,WC67-680,30/04/2016,Social Care & Inclusion,HARMONY CARE HOMES (2003) LTD,08/04/2016,"1,664.00",73374-SUPPORTED & OTHER ACCOMMODATION,LD COMMISSIONING,Third Party Payments,,Revenue, 
Walsall Council,http://opendatacommunities.org/id/metropolitan-district-council/walsall,WC67-,WC67-681,30/04/2016,Social Care & Inclusion,HARMONY CARE HOMES (2003) LTD,08/04/2016,"1,696.50",73374-SUPPORTED & OTHER ACCOMMODATION,LD COMMISSIONING,Third Party Payments,,Revenue, 
Walsall Council,http://opendatacommunities.org/id/metropolitan-district-council/walsall,WC67-,WC67-682,30/04/2016,Social Care & Inclusion,HARMONY CARE HOMES (2003) LTD,27/04/2016,"1,820.00",73374-SUPPORTED & OTHER ACCOMMODATION,LD COMMISSIONING,Third Party Payments,,Revenue, 
Walsall Council,http://opendatacommunities.org/id/metropolitan-district-council/walsall,WC67-,WC67-683,30/04/2016,Social Care & Inclusion,HARMONY CARE HOMES (2003) LTD,27/04/2016,"1,974.00",73374-SUPPORTED & OTHER ACCOMMODATION,LD COMMISSIONING,Third Party Payments,,Revenue, 
Walsall Council,http://opendatacommunities.org/id/metropolitan-district-council/walsall,WC67-,WC67-684,30/04/2016,Social Care & Inclusion,HARMONY CARE HOMES (2003) LTD,26/04/2016,"1,995.71",73373-RESIDENTIAL & NURSING CARE PLACEMENTS,OP COMMISSIONING,Third Party Payments,,Revenue, 
Walsall Council,http://opendatacommunities.org/id/metropolitan-district-council/walsall,WC67-,WC67-685,30/04/2016,Social Care & Inclusion,HARMONY CARE HOMES (2003) LTD,08/04/2016,"2,001.00",73374-SUPPORTED & OTHER ACCOMMODATION,LD COMMISSIONING,Third Party Payments,,Revenue, 
Walsall Council,http://opendatacommunities.org/id/metropolitan-district-council/walsall,WC67-,WC67-686,30/04/2016,Social Care & Inclusion,HARMONY CARE HOMES (2003) LTD,08/04/2016,"2,034.50",73374-SUPPORTED & OTHER ACCOMMODATION,LD COMMISSIONING,Third Party Payments,,Revenue, 
Walsall Council,http://opendatacommunities.org/id/metropolitan-district-council/walsall,WC67-,WC67-687,30/04/2016,Social Care & Inclusion,HARMONY CARE HOMES (2003) LTD,26/04/2016,"2,040.62",73373-RESIDENTIAL & NURSING CARE PLACEMENTS,OP COMMISSIONING,Third Party Payments,,Revenue, 
Walsall Council,http://opendatacommunities.org/id/metropolitan-district-council/walsall,WC67-,WC67-688,30/04/2016,Social Care & Inclusion,HARMONY CARE HOMES (2003) LTD,27/04/2016,"2,055.25",73374-SUPPORTED & OTHER ACCOMMODATION,LD COMMISSIONING,Third Party Payments,,Revenue, 
Walsall Council,http://opendatacommunities.org/id/metropolitan-district-council/walsall,WC67-,WC67-689,30/04/2016,Social Care & Inclusion,HARMONY CARE HOMES (2003) LTD,08/04/2016,"2,085.50",73374-SUPPORTED & OTHER ACCOMMODATION,LD COMMISSIONING,Third Party Payments,,Revenue, 
Walsall Council,http://opendatacommunities.org/id/metropolitan-district-council/walsall,WC67-,WC67-690,30/04/2016,Social Care & Inclusion,HARMONY CARE HOMES (2003) LTD,27/04/2016,"2,123.00",73374-SUPPORTED & OTHER ACCOMMODATION,LD COMMISSIONING,Third Party Payments,,Revenue, 
Walsall Council,http://opendatacommunities.org/id/metropolitan-district-council/walsall,WC67-,WC67-691,30/04/2016,Social Care & Inclusion,HARMONY CARE HOMES (2003) LTD,27/04/2016,"2,158.00",73374-SUPPORTED & OTHER ACCOMMODATION,LD COMMISSIONING,Third Party Payments,,Revenue, 
Walsall Council,http://opendatacommunities.org/id/metropolitan-district-council/walsall,WC67-,WC67-692,30/04/2016,Social Care & Inclusion,HARMONY CARE HOMES (2003) LTD,08/04/2016,"2,240.00",73374-SUPPORTED & OTHER ACCOMMODATION,LD COMMISSIONING,Third Party Payments,,Revenue, 
Walsall Council,http://opendatacommunities.org/id/metropolitan-district-council/walsall,WC67-,WC67-693,30/04/2016,Social Care & Inclusion,HARMONY CARE HOMES (2003) LTD,27/04/2016,"2,240.00",73374-SUPPORTED & OTHER ACCOMMODATION,LD COMMISSIONING,Third Party Payments,,Revenue, 
Walsall Council,http://opendatacommunities.org/id/metropolitan-district-council/walsall,WC67-,WC67-694,30/04/2016,Social Care & Inclusion,HARMONY CARE HOMES (2003) LTD,27/04/2016,"2,327.00",73374-SUPPORTED & OTHER ACCOMMODATION,LD COMMISSIONING,Third Party Payments,,Revenue, 
Walsall Council,http://opendatacommunities.org/id/metropolitan-district-council/walsall,WC67-,WC67-695,30/04/2016,Social Care & Inclusion,HARMONY CARE HOMES (2003) LTD,08/04/2016,"2,331.00",73374-SUPPORTED & OTHER ACCOMMODATION,LD COMMISSIONING,Third Party Payments,,Revenue, 
Walsall Council,http://opendatacommunities.org/id/metropolitan-district-council/walsall,WC67-,WC67-696,30/04/2016,Social Care & Inclusion,HARMONY CARE HOMES (2003) LTD,08/04/2016,"2,380.00",73374-SUPPORTED & OTHER ACCOMMODATION,LD COMMISSIONING,Third Party Payments,,Revenue, 
Walsall Council,http://opendatacommunities.org/id/metropolitan-district-council/walsall,WC67-,WC67-697,30/04/2016,Social Care & Inclusion,HARMONY CARE HOMES (2003) LTD,08/04/2016,"2,391.50",73374-SUPPORTED & OTHER ACCOMMODATION,LD COMMISSIONING,Third Party Payments,,Revenue, 
Walsall Council,http://opendatacommunities.org/id/metropolitan-district-council/walsall,WC67-,WC67-698,30/04/2016,Social Care & Inclusion,HARMONY CARE HOMES (2003) LTD,27/04/2016,"2,398.00",73374-SUPPORTED & OTHER ACCOMMODATION,LD COMMISSIONING,Third Party Payments,,Revenue, 
Walsall Council,http://opendatacommunities.org/id/metropolitan-district-council/walsall,WC67-,WC67-699,30/04/2016,Social Care & Inclusion,HARMONY CARE HOMES (2003) LTD,27/04/2016,"2,408.00",73374-SUPPORTED & OTHER ACCOMMODATION,LD COMMISSIONING,Third Party Payments,,Revenue, 
Walsall Council,http://opendatacommunities.org/id/metropolitan-district-council/walsall,WC67-,WC67-700,30/04/2016,Social Care & Inclusion,HARMONY CARE HOMES (2003) LTD,27/04/2016,"2,691.00",73374-SUPPORTED & OTHER ACCOMMODATION,LD COMMISSIONING,Third Party Payments,,Revenue, 
Walsall Council,http://opendatacommunities.org/id/metropolitan-district-council/walsall,WC67-,WC67-701,30/04/2016,Social Care & Inclusion,HARMONY CARE HOMES (2003) LTD,08/04/2016,"2,761.00",73374-SUPPORTED & OTHER ACCOMMODATION,LD COMMISSIONING,Third Party Payments,,Revenue, 
Walsall Council,http://opendatacommunities.org/id/metropolitan-district-council/walsall,WC67-,WC67-702,30/04/2016,Social Care & Inclusion,HARMONY CARE HOMES (2003) LTD,08/04/2016,"2,800.00",73374-SUPPORTED & OTHER ACCOMMODATION,OP COMMISSIONING,Third Party Payments,,Revenue, 
Walsall Council,http://opendatacommunities.org/id/metropolitan-district-council/walsall,WC67-,WC67-703,30/04/2016,Social Care & Inclusion,HARMONY CARE HOMES (2003) LTD,08/04/2016,"2,818.00",73374-SUPPORTED & OTHER ACCOMMODATION,LD COMMISSIONING,Third Party Payments,,Revenue, 
Walsall Council,http://opendatacommunities.org/id/metropolitan-district-council/walsall,WC67-,WC67-704,30/04/2016,Social Care & Inclusion,HARMONY CARE HOMES (2003) LTD,08/04/2016,"2,864.00",73374-SUPPORTED & OTHER ACCOMMODATION,LD COMMISSIONING,Third Party Payments,,Revenue, 
Walsall Council,http://opendatacommunities.org/id/metropolitan-district-council/walsall,WC67-,WC67-705,30/04/2016,Social Care & Inclusion,HARMONY CARE HOMES (2003) LTD,08/04/2016,"2,871.00",73374-SUPPORTED & OTHER ACCOMMODATION,LD COMMISSIONING,Third Party Payments,,Revenue, 
Walsall Council,http://opendatacommunities.org/id/metropolitan-district-council/walsall,WC67-,WC67-706,30/04/2016,Social Care & Inclusion,HARMONY CARE HOMES (2003) LTD,27/04/2016,"2,950.00",73374-SUPPORTED & OTHER ACCOMMODATION,LD COMMISSIONING,Third Party Payments,,Revenue, 
Walsall Council,http://opendatacommunities.org/id/metropolitan-district-council/walsall,WC67-,WC67-707,30/04/2016,Social Care & Inclusion,HARMONY CARE HOMES (2003) LTD,05/04/2016,"2,997.50",73374-SUPPORTED & OTHER ACCOMMODATION,LD COMMISSIONING,Third Party Payments,,Revenue, 
Walsall Council,http://opendatacommunities.org/id/metropolitan-district-council/walsall,WC67-,WC67-708,30/04/2016,Social Care & Inclusion,HARMONY CARE HOMES (2003) LTD,26/04/2016,"3,084.29",73373-RESIDENTIAL & NURSING CARE PLACEMENTS,OP COMMISSIONING,Third Party Payments,,Revenue, 
Walsall Council,http://opendatacommunities.org/id/metropolitan-district-council/walsall,WC67-,WC67-709,30/04/2016,Social Care & Inclusion,HARMONY CARE HOMES (2003) LTD,26/04/2016,"3,153.70",73373-RESIDENTIAL & NURSING CARE PLACEMENTS,OP COMMISSIONING,Third Party Payments,,Revenue, 
Walsall Council,http://opendatacommunities.org/id/metropolitan-district-council/walsall,WC67-,WC67-710,30/04/2016,Social Care & Inclusion,HARMONY CARE HOMES (2003) LTD,05/04/2016,"3,288.00",73374-SUPPORTED & OTHER ACCOMMODATION,LD COMMISSIONING,Third Party Payments,,Revenue, 
Walsall Council,http://opendatacommunities.org/id/metropolitan-district-council/walsall,WC67-,WC67-711,30/04/2016,Social Care & Inclusion,HARMONY CARE HOMES (2003) LTD,05/04/2016,"3,294.50",73374-SUPPORTED & OTHER ACCOMMODATION,LD COMMISSIONING,Third Party Payments,,Revenue, 
Walsall Council,http://opendatacommunities.org/id/metropolitan-district-council/walsall,WC67-,WC67-712,30/04/2016,Social Care & Inclusion,HARMONY CARE HOMES (2003) LTD,27/04/2016,"3,429.00",73374-SUPPORTED & OTHER ACCOMMODATION,LD COMMISSIONING,Third Party Payments,,Revenue, 
Walsall Council,http://opendatacommunities.org/id/metropolitan-district-council/walsall,WC67-,WC67-713,30/04/2016,Social Care & Inclusion,HARMONY CARE HOMES (2003) LTD,08/04/2016,"3,457.50",73374-SUPPORTED & OTHER ACCOMMODATION,LD COMMISSIONING,Third Party Payments,,Revenue, 
Walsall Council,http://opendatacommunities.org/id/metropolitan-district-council/walsall,WC67-,WC67-714,30/04/2016,Social Care & Inclusion,HARMONY CARE HOMES (2003) LTD,08/04/2016,"3,478.63",73374-SUPPORTED & OTHER ACCOMMODATION,LD COMMISSIONING,Third Party Payments,,Revenue, 
Walsall Council,http://opendatacommunities.org/id/metropolitan-district-council/walsall,WC67-,WC67-715,30/04/2016,Social Care & Inclusion,HARMONY CARE HOMES (2003) LTD,08/04/2016,"3,510.00",73374-SUPPORTED & OTHER ACCOMMODATION,LD COMMISSIONING,Third Party Payments,,Revenue, 
Walsall Council,http://opendatacommunities.org/id/metropolitan-district-council/walsall,WC67-,WC67-716,30/04/2016,Social Care & Inclusion,HARMONY CARE HOMES (2003) LTD,05/04/2016,"3,548.00",73374-SUPPORTED & OTHER ACCOMMODATION,LD COMMISSIONING,Third Party Payments,,Revenue, 
Walsall Council,http://opendatacommunities.org/id/metropolitan-district-council/walsall,WC67-,WC67-717,30/04/2016,Social Care & Inclusion,HARMONY CARE HOMES (2003) LTD,27/04/2016,"3,550.66",73374-SUPPORTED & OTHER ACCOMMODATION,LD COMMISSIONING,Third Party Payments,,Revenue, 
Walsall Council,http://opendatacommunities.org/id/metropolitan-district-council/walsall,WC67-,WC67-718,30/04/2016,Social Care & Inclusion,HARMONY CARE HOMES (2003) LTD,27/04/2016,"3,600.50",73374-SUPPORTED & OTHER ACCOMMODATION,LD COMMISSIONING,Third Party Payments,,Revenue, 
Walsall Council,http://opendatacommunities.org/id/metropolitan-district-council/walsall,WC67-,WC67-719,30/04/2016,Social Care & Inclusion,HARMONY CARE HOMES (2003) LTD,22/04/2016,"3,614.50",73374-SUPPORTED & OTHER ACCOMMODATION,LD COMMISSIONING,Third Party Payments,,Revenue, 
Walsall Council,http://opendatacommunities.org/id/metropolitan-district-council/walsall,WC67-,WC67-720,30/04/2016,Social Care & Inclusion,HARMONY CARE HOMES (2003) LTD,08/04/2016,"3,630.00",73374-SUPPORTED & OTHER ACCOMMODATION,LD COMMISSIONING,Third Party Payments,,Revenue, 
Walsall Council,http://opendatacommunities.org/id/metropolitan-district-council/walsall,WC67-,WC67-721,30/04/2016,Social Care & Inclusion,HARMONY CARE HOMES (2003) LTD,08/04/2016,"3,654.00",73374-SUPPORTED & OTHER ACCOMMODATION,LD COMMISSIONING,Third Party Payments,,Revenue, 
Walsall Council,http://opendatacommunities.org/id/metropolitan-district-council/walsall,WC67-,WC67-722,30/04/2016,Social Care & Inclusion,HARMONY CARE HOMES (2003) LTD,27/04/2016,"3,654.00",73374-SUPPORTED & OTHER ACCOMMODATION,LD COMMISSIONING,Third Party Payments,,Revenue, 
Walsall Council,http://opendatacommunities.org/id/metropolitan-district-council/walsall,WC67-,WC67-723,30/04/2016,Social Care & Inclusion,HARMONY CARE HOMES (2003) LTD,27/04/2016,"3,668.00",73374-SUPPORTED & OTHER ACCOMMODATION,LD COMMISSIONING,Third Party Payments,,Revenue, 
Walsall Council,http://opendatacommunities.org/id/metropolitan-district-council/walsall,WC67-,WC67-724,30/04/2016,Social Care & Inclusion,HARMONY CARE HOMES (2003) LTD,27/04/2016,"3,678.50",73374-SUPPORTED & OTHER ACCOMMODATION,LD COMMISSIONING,Third Party Payments,,Revenue, 
Walsall Council,http://opendatacommunities.org/id/metropolitan-district-council/walsall,WC67-,WC67-725,30/04/2016,Social Care & Inclusion,HARMONY CARE HOMES (2003) LTD,08/04/2016,"3,734.50",73374-SUPPORTED & OTHER ACCOMMODATION,LD COMMISSIONING,Third Party Payments,,Revenue, 
Walsall Council,http://opendatacommunities.org/id/metropolitan-district-council/walsall,WC67-,WC67-726,30/04/2016,Social Care & Inclusion,HARMONY CARE HOMES (2003) LTD,11/04/2016,"3,768.00",73374-SUPPORTED & OTHER ACCOMMODATION,LD COMMISSIONING,Third Party Payments,,Revenue, 
Walsall Council,http://opendatacommunities.org/id/metropolitan-district-council/walsall,WC67-,WC67-727,30/04/2016,Social Care & Inclusion,HARMONY CARE HOMES (2003) LTD,08/04/2016,"3,787.00",73374-SUPPORTED & OTHER ACCOMMODATION,LD COMMISSIONING,Third Party Payments,,Revenue, 
Walsall Council,http://opendatacommunities.org/id/metropolitan-district-council/walsall,WC67-,WC67-728,30/04/2016,Social Care & Inclusion,HARMONY CARE HOMES (2003) LTD,22/04/2016,"3,834.39",73374-SUPPORTED & OTHER ACCOMMODATION,LD COMMISSIONING,Third Party Payments,,Revenue, 
Walsall Council,http://opendatacommunities.org/id/metropolitan-district-council/walsall,WC67-,WC67-729,30/04/2016,Social Care & Inclusion,HARMONY CARE HOMES (2003) LTD,27/04/2016,"4,141.75",73374-SUPPORTED & OTHER ACCOMMODATION,LD COMMISSIONING,Third Party Payments,,Revenue, 
Walsall Council,http://opendatacommunities.org/id/metropolitan-district-council/walsall,WC67-,WC67-730,30/04/2016,Social Care & Inclusion,HARMONY CARE HOMES (2003) LTD,08/04/2016,"4,697.50",73374-SUPPORTED & OTHER ACCOMMODATION,LD COMMISSIONING,Third Party Payments,,Revenue, 
